Organisation Code,Organisation Label,Effective Date,Organisational Unit,Service Division Label,Category Internal Name,Purpose,Detailed Expenditure Code,Payment Date,Transaction Number,Irrecoverable VAT Amount,Amount,Capital Or Revenue,Beneficiary Name,Procurement Card
Http://opendatacommunities.org/id/metropolitan-district-council/leeds,Leeds City Council,31/07/2020,City Development,Libraries  Arts & Heritage,Supplies and Services,Advertising,211,09/07/2020,2007-00001,0.00,375.00,R,A & N Media Finance Services Ltd,No
Http://opendatacommunities.org/id/metropolitan-district-council/leeds,Leeds City Council,31/07/2020,Adults and Health,Services For Older People Under 65 P/Dis,Third Party Payments,Sheltered Accommodation,569,22/07/2020,2007-00002,0.00,5400.00,R,A & V TRANSITIONAL HOMES,No
Http://opendatacommunities.org/id/metropolitan-district-council/leeds,Leeds City Council,31/07/2020,Resources and Housing,Leeds Building Services,Supplies and Services,Operational Materials,205,15/07/2020,2007-00003,0.00,20.63,R,A andREWS & SONS (MARBLES & TILES),No
Http://opendatacommunities.org/id/metropolitan-district-council/leeds,Leeds City Council,31/07/2020,Resources and Housing,Leeds Building Services,Supplies and Services,Operational Materials,205,15/07/2020,2007-00004,0.00,15.42,R,A andREWS & SONS (MARBLES & TILES),No
Http://opendatacommunities.org/id/metropolitan-district-council/leeds,Leeds City Council,31/07/2020,Children and Families,Social Care,Third Party Payments,Services Rendered By Other Organisations,511,03/07/2020,2007-00005,0.00,315.36,R,REDACTED PERSONAL DATA,No
Http://opendatacommunities.org/id/metropolitan-district-council/leeds,Leeds City Council,31/07/2020,Resources and Housing,Leeds Building Services,Supplies and Services,Other Hired and Contracted Services,265,16/07/2020,2007-00006,0.00,4850.00,R,A Buckler (Haulage) Ltd,No
Http://opendatacommunities.org/id/metropolitan-district-council/leeds,Leeds City Council,31/07/2020,Children and Families,Social Care,Third Party Payments,Services Rendered By Other Organisations,511,03/07/2020,2007-00007,0.00,861.99,R,REDACTED PERSONAL DATA,No
Http://opendatacommunities.org/id/metropolitan-district-council/leeds,Leeds City Council,31/07/2020,Children and Families,Social Care,Third Party Payments,Services Rendered By Other Organisations,511,03/07/2020,2007-00008,0.00,315.36,R,REDACTED PERSONAL DATA,No
Http://opendatacommunities.org/id/metropolitan-district-council/leeds,Leeds City Council,31/07/2020,Children and Families,Social Care,Transfer Payments,Leaving Care Grants,635,27/07/2020,2007-00009,0.00,500.00,R,REDACTED PERSONAL DATA,No
Http://opendatacommunities.org/id/metropolitan-district-council/leeds,Leeds City Council,31/07/2020,Resources and Housing,Leeds Building Services,Supplies and Services,Other Hired and Contracted Services,265,15/07/2020,2007-00010,0.00,85.00,R,A Coole Electrical Ltd,No
Http://opendatacommunities.org/id/metropolitan-district-council/leeds,Leeds City Council,31/07/2020,Resources and Housing,Leeds Building Services,Supplies and Services,Other Hired and Contracted Services,265,15/07/2020,2007-00011,0.00,85.00,R,A Coole Electrical Ltd,No
Http://opendatacommunities.org/id/metropolitan-district-council/leeds,Leeds City Council,31/07/2020,Resources and Housing,Leeds Building Services,Supplies and Services,Other Hired and Contracted Services,265,15/07/2020,2007-00012,0.00,160.00,R,A Coole Electrical Ltd,No
Http://opendatacommunities.org/id/metropolitan-district-council/leeds,Leeds City Council,31/07/2020,Resources and Housing,Leeds Building Services,Supplies and Services,Other Hired and Contracted Services,265,24/07/2020,2007-00013,0.00,85.00,R,A Coole Electrical Ltd,No
Http://opendatacommunities.org/id/metropolitan-district-council/leeds,Leeds City Council,31/07/2020,Resources and Housing,Leeds Building Services,Supplies and Services,Other Hired and Contracted Services,265,24/07/2020,2007-00014,0.00,85.00,R,A Coole Electrical Ltd,No
Http://opendatacommunities.org/id/metropolitan-district-council/leeds,Leeds City Council,31/07/2020,Resources and Housing,Leeds Building Services,Supplies and Services,Other Hired and Contracted Services,265,24/07/2020,2007-00015,0.00,85.00,R,A Coole Electrical Ltd,No
Http://opendatacommunities.org/id/metropolitan-district-council/leeds,Leeds City Council,31/07/2020,Resources and Housing,Leeds Building Services,Supplies and Services,Other Hired and Contracted Services,265,24/07/2020,2007-00016,0.00,210.00,R,A Coole Electrical Ltd,No
Http://opendatacommunities.org/id/metropolitan-district-council/leeds,Leeds City Council,31/07/2020,Communities and Environment,Customer Access,Supplies and Services,Bought In Professional Services,277,22/07/2020,2007-00017,0.00,18.00,R,A D Dumitru,No
Http://opendatacommunities.org/id/metropolitan-district-council/leeds,Leeds City Council,31/07/2020,Communities and Environment,Customer Access,Supplies and Services,Bought In Professional Services,277,29/07/2020,2007-00018,0.00,9.00,R,A D Dumitru,No
Http://opendatacommunities.org/id/metropolitan-district-council/leeds,Leeds City Council,31/07/2020,Communities and Environment,Customer Access,Supplies and Services,Bought In Professional Services,277,29/07/2020,2007-00019,0.00,22.50,R,A D Dumitru,No
Http://opendatacommunities.org/id/metropolitan-district-council/leeds,Leeds City Council,31/07/2020,Resources and Housing,HRA Housing Leeds,Capital,OTHER COSTS,7,09/07/2020,2007-00020,0.00,100.00,C,REDACTED PERSONAL DATA,No
Http://opendatacommunities.org/id/metropolitan-district-council/leeds,Leeds City Council,31/07/2020,Resources and Housing,HRA Housing Leeds,Capital,OTHER COSTS,7,02/07/2020,2007-00021,0.00,170.09,C,REDACTED PERSONAL DATA,No
Http://opendatacommunities.org/id/metropolitan-district-council/leeds,Leeds City Council,31/07/2020,Children and Families,Social Care,Third Party Payments,Services Rendered By Voluntary Sector,505,01/07/2020,2007-00022,0.00,950.40,R,REDACTED PERSONAL DATA,No
Http://opendatacommunities.org/id/metropolitan-district-council/leeds,Leeds City Council,31/07/2020,Children and Families,Social Care,Third Party Payments,Services Rendered By Voluntary Sector,505,03/07/2020,2007-00023,0.00,4910.86,R,REDACTED PERSONAL DATA,No
Http://opendatacommunities.org/id/metropolitan-district-council/leeds,Leeds City Council,31/07/2020,Children and Families,Social Care,Third Party Payments,Services Rendered By Other Organisations,511,01/07/2020,2007-00024,0.00,570.24,R,REDACTED PERSONAL DATA,No
Http://opendatacommunities.org/id/metropolitan-district-council/leeds,Leeds City Council,31/07/2020,Children and Families,Social Care,Third Party Payments,Services Rendered By Other Organisations,511,03/07/2020,2007-00025,0.00,630.72,R,REDACTED PERSONAL DATA,No
Http://opendatacommunities.org/id/metropolitan-district-council/leeds,Leeds City Council,31/07/2020,Children and Families,Social Care,Third Party Payments,Services Rendered By Other Organisations,511,03/07/2020,2007-00026,0.00,478.30,R,REDACTED PERSONAL DATA,No
Http://opendatacommunities.org/id/metropolitan-district-council/leeds,Leeds City Council,31/07/2020,Children and Families,Social Care,Third Party Payments,Services Rendered By Other Organisations,511,01/07/2020,2007-00027,0.00,190.08,R,REDACTED PERSONAL DATA,No
Http://opendatacommunities.org/id/metropolitan-district-council/leeds,Leeds City Council,31/07/2020,Children and Families,Social Care,Third Party Payments,Services Rendered By Other Organisations,511,03/07/2020,2007-00028,0.00,315.36,R,REDACTED PERSONAL DATA,No
Http://opendatacommunities.org/id/metropolitan-district-council/leeds,Leeds City Council,31/07/2020,Children and Families,Social Care,Third Party Payments,Services Rendered By Other Organisations,511,03/07/2020,2007-00029,0.00,157.68,R,REDACTED PERSONAL DATA,No
Http://opendatacommunities.org/id/metropolitan-district-council/leeds,Leeds City Council,31/07/2020,Adults and Health,Other Generic Services,Third Party Payments,Fees To Carers,563,10/07/2020,2007-00030,0.00,295.02,R,REDACTED PERSONAL DATA,No
Http://opendatacommunities.org/id/metropolitan-district-council/leeds,Leeds City Council,31/07/2020,Adults and Health,Other Generic Services,Third Party Payments,Fees To Carers,563,16/07/2020,2007-00031,0.00,440.64,R,REDACTED PERSONAL DATA,No
Http://opendatacommunities.org/id/metropolitan-district-council/leeds,Leeds City Council,31/07/2020,Adults and Health,Other Generic Services,Third Party Payments,Fees To Carers,563,16/07/2020,2007-00032,0.00,50.40,R,REDACTED PERSONAL DATA,No
Http://opendatacommunities.org/id/metropolitan-district-council/leeds,Leeds City Council,31/07/2020,Children and Families,Social Care  ,Supplies and Services,Office Consumables,210,23/06/2020,2007-00033,0.00,35.57,R,A J Fishing Tackle,Yes
Http://opendatacommunities.org/id/metropolitan-district-council/leeds,Leeds City Council,31/07/2020,Resources and Housing,Leeds Building Services,Supplies and Services,Operational Materials,205,03/07/2020,2007-00034,0.00,157.85,R,A J H  Pump Supply & Repair Ltd,No
Http://opendatacommunities.org/id/metropolitan-district-council/leeds,Leeds City Council,31/07/2020,Resources and Housing,Leeds Building Services,Supplies and Services,Operational Materials,205,03/07/2020,2007-00035,0.00,153.45,R,A J H  Pump Supply & Repair Ltd,No
Http://opendatacommunities.org/id/metropolitan-district-council/leeds,Leeds City Council,31/07/2020,Resources and Housing,Leeds Building Services,Supplies and Services,Operational Materials,205,03/07/2020,2007-00036,0.00,275.00,R,A J H  Pump Supply & Repair Ltd,No
Http://opendatacommunities.org/id/metropolitan-district-council/leeds,Leeds City Council,31/07/2020,Resources and Housing,Leeds Building Services,Supplies and Services,Operational Materials,205,03/07/2020,2007-00037,0.00,147.50,R,A J H  Pump Supply & Repair Ltd,No
Http://opendatacommunities.org/id/metropolitan-district-council/leeds,Leeds City Council,31/07/2020,Resources and Housing,Leeds Building Services,Supplies and Services,Operational Materials,205,03/07/2020,2007-00038,0.00,71.51,R,A J H  Pump Supply & Repair Ltd,No
Http://opendatacommunities.org/id/metropolitan-district-council/leeds,Leeds City Council,31/07/2020,Resources and Housing,Leeds Building Services,Supplies and Services,Operational Materials,205,03/07/2020,2007-00039,0.00,585.90,R,A J H  Pump Supply & Repair Ltd,No
Http://opendatacommunities.org/id/metropolitan-district-council/leeds,Leeds City Council,31/07/2020,Resources and Housing,Leeds Building Services,Supplies and Services,Operational Materials,205,03/07/2020,2007-00040,0.00,268.97,R,A J H  Pump Supply & Repair Ltd,No
Http://opendatacommunities.org/id/metropolitan-district-council/leeds,Leeds City Council,31/07/2020,Resources and Housing,Leeds Building Services,Supplies and Services,Operational Materials,205,03/07/2020,2007-00041,0.00,78.36,R,A J H  Pump Supply & Repair Ltd,No
Http://opendatacommunities.org/id/metropolitan-district-council/leeds,Leeds City Council,31/07/2020,Resources and Housing,Leeds Building Services,Supplies and Services,Operational Materials,205,03/07/2020,2007-00042,0.00,154.74,R,A J H  Pump Supply & Repair Ltd,No
Http://opendatacommunities.org/id/metropolitan-district-council/leeds,Leeds City Council,31/07/2020,Resources and Housing,Leeds Building Services,Supplies and Services,Operational Materials,205,09/07/2020,2007-00043,0.00,489.81,R,A J H  Pump Supply & Repair Ltd,No
Http://opendatacommunities.org/id/metropolitan-district-council/leeds,Leeds City Council,31/07/2020,Resources and Housing,Leeds Building Services,Supplies and Services,Operational Materials,205,09/07/2020,2007-00044,0.00,285.24,R,A J H  Pump Supply & Repair Ltd,No
Http://opendatacommunities.org/id/metropolitan-district-council/leeds,Leeds City Council,31/07/2020,Resources and Housing,Leeds Building Services,Supplies and Services,Operational Materials,205,09/07/2020,2007-00045,0.00,128.00,R,A J H  Pump Supply & Repair Ltd,No
Http://opendatacommunities.org/id/metropolitan-district-council/leeds,Leeds City Council,31/07/2020,Resources and Housing,Leeds Building Services,Supplies and Services,Operational Materials,205,09/07/2020,2007-00046,0.00,137.50,R,A J H  Pump Supply & Repair Ltd,No
Http://opendatacommunities.org/id/metropolitan-district-council/leeds,Leeds City Council,31/07/2020,Resources and Housing,Leeds Building Services,Supplies and Services,Operational Materials,205,09/07/2020,2007-00047,0.00,361.00,R,A J H  Pump Supply & Repair Ltd,No
Http://opendatacommunities.org/id/metropolitan-district-council/leeds,Leeds City Council,31/07/2020,Resources and Housing,Leeds Building Services,Supplies and Services,Operational Materials,205,09/07/2020,2007-00048,0.00,135.00,R,A J H  Pump Supply & Repair Ltd,No
Http://opendatacommunities.org/id/metropolitan-district-council/leeds,Leeds City Council,31/07/2020,Resources and Housing,Leeds Building Services,Supplies and Services,Operational Materials,205,09/07/2020,2007-00049,0.00,15.95,R,A J H  Pump Supply & Repair Ltd,No
Http://opendatacommunities.org/id/metropolitan-district-council/leeds,Leeds City Council,31/07/2020,Resources and Housing,Leeds Building Services,Supplies and Services,Operational Materials,205,09/07/2020,2007-00050,0.00,130.00,R,A J H  Pump Supply & Repair Ltd,No
Http://opendatacommunities.org/id/metropolitan-district-council/leeds,Leeds City Council,31/07/2020,Resources and Housing,Leeds Building Services,Supplies and Services,Operational Materials,205,09/07/2020,2007-00051,0.00,328.49,R,A J H  Pump Supply & Repair Ltd,No
Http://opendatacommunities.org/id/metropolitan-district-council/leeds,Leeds City Council,31/07/2020,Resources and Housing,Leeds Building Services,Supplies and Services,Operational Materials,205,09/07/2020,2007-00052,0.00,88.98,R,A J H  Pump Supply & Repair Ltd,No
Http://opendatacommunities.org/id/metropolitan-district-council/leeds,Leeds City Council,31/07/2020,Resources and Housing,Leeds Building Services,Supplies and Services,Operational Materials,205,09/07/2020,2007-00053,0.00,41.26,R,A J H  Pump Supply & Repair Ltd,No
Http://opendatacommunities.org/id/metropolitan-district-council/leeds,Leeds City Council,31/07/2020,Resources and Housing,Leeds Building Services,Supplies and Services,Operational Materials,205,09/07/2020,2007-00054,0.00,349.15,R,A J H  Pump Supply & Repair Ltd,No
Http://opendatacommunities.org/id/metropolitan-district-council/leeds,Leeds City Council,31/07/2020,Resources and Housing,Leeds Building Services,Supplies and Services,Operational Materials,205,09/07/2020,2007-00055,0.00,123.41,R,A J H  Pump Supply & Repair Ltd,No
Http://opendatacommunities.org/id/metropolitan-district-council/leeds,Leeds City Council,31/07/2020,Resources and Housing,Leeds Building Services,Supplies and Services,Operational Materials,205,09/07/2020,2007-00056,0.00,1045.00,R,A J H  Pump Supply & Repair Ltd,No
Http://opendatacommunities.org/id/metropolitan-district-council/leeds,Leeds City Council,31/07/2020,Resources and Housing,Leeds Building Services,Supplies and Services,Operational Materials,205,09/07/2020,2007-00057,0.00,74.45,R,A J H  Pump Supply & Repair Ltd,No
Http://opendatacommunities.org/id/metropolitan-district-council/leeds,Leeds City Council,31/07/2020,Resources and Housing,Leeds Building Services,Supplies and Services,Operational Materials,205,09/07/2020,2007-00058,0.00,112.50,R,A J H  Pump Supply & Repair Ltd,No
Http://opendatacommunities.org/id/metropolitan-district-council/leeds,Leeds City Council,31/07/2020,Resources and Housing,Leeds Building Services,Supplies and Services,Operational Materials,205,10/07/2020,2007-00059,0.00,178.00,R,A J H  Pump Supply & Repair Ltd,No
Http://opendatacommunities.org/id/metropolitan-district-council/leeds,Leeds City Council,31/07/2020,Resources and Housing,Leeds Building Services,Supplies and Services,Operational Materials,205,17/07/2020,2007-00060,0.00,71.82,R,A J H  Pump Supply & Repair Ltd,No
Http://opendatacommunities.org/id/metropolitan-district-council/leeds,Leeds City Council,31/07/2020,Resources and Housing,Leeds Building Services,Supplies and Services,Operational Materials,205,17/07/2020,2007-00061,0.00,76.85,R,A J H  Pump Supply & Repair Ltd,No
Http://opendatacommunities.org/id/metropolitan-district-council/leeds,Leeds City Council,31/07/2020,Resources and Housing,Leeds Building Services,Supplies and Services,Operational Materials,205,17/07/2020,2007-00062,0.00,295.00,R,A J H  Pump Supply & Repair Ltd,No
Http://opendatacommunities.org/id/metropolitan-district-council/leeds,Leeds City Council,31/07/2020,Resources and Housing,Leeds Building Services,Supplies and Services,Operational Materials,205,17/07/2020,2007-00063,0.00,104.40,R,A J H  Pump Supply & Repair Ltd,No
Http://opendatacommunities.org/id/metropolitan-district-council/leeds,Leeds City Council,31/07/2020,Resources and Housing,Leeds Building Services,Supplies and Services,Operational Materials,205,17/07/2020,2007-00064,0.00,291.67,R,A J H  Pump Supply & Repair Ltd,No
Http://opendatacommunities.org/id/metropolitan-district-council/leeds,Leeds City Council,31/07/2020,Resources and Housing,Leeds Building Services,Supplies and Services,Operational Materials,205,17/07/2020,2007-00065,0.00,605.00,R,A J H  Pump Supply & Repair Ltd,No
Http://opendatacommunities.org/id/metropolitan-district-council/leeds,Leeds City Council,31/07/2020,Resources and Housing,Leeds Building Services,Supplies and Services,Operational Materials,205,17/07/2020,2007-00066,0.00,159.00,R,A J H  Pump Supply & Repair Ltd,No
Http://opendatacommunities.org/id/metropolitan-district-council/leeds,Leeds City Council,31/07/2020,Resources and Housing,Leeds Building Services,Supplies and Services,Operational Materials,205,17/07/2020,2007-00067,0.00,56.25,R,A J H  Pump Supply & Repair Ltd,No
Http://opendatacommunities.org/id/metropolitan-district-council/leeds,Leeds City Council,31/07/2020,Resources and Housing,Leeds Building Services,Supplies and Services,Operational Materials,205,17/07/2020,2007-00068,0.00,25.80,R,A J H  Pump Supply & Repair Ltd,No
Http://opendatacommunities.org/id/metropolitan-district-council/leeds,Leeds City Council,31/07/2020,Resources and Housing,Leeds Building Services,Supplies and Services,Operational Materials,205,17/07/2020,2007-00069,0.00,655.00,R,A J H  Pump Supply & Repair Ltd,No
Http://opendatacommunities.org/id/metropolitan-district-council/leeds,Leeds City Council,31/07/2020,Resources and Housing,Leeds Building Services,Supplies and Services,Operational Materials,205,17/07/2020,2007-00070,0.00,226.13,R,A J H  Pump Supply & Repair Ltd,No
Http://opendatacommunities.org/id/metropolitan-district-council/leeds,Leeds City Council,31/07/2020,Resources and Housing,Leeds Building Services,Supplies and Services,Operational Materials,205,17/07/2020,2007-00071,0.00,58.99,R,A J H  Pump Supply & Repair Ltd,No
Http://opendatacommunities.org/id/metropolitan-district-council/leeds,Leeds City Council,31/07/2020,Resources and Housing,Leeds Building Services,Supplies and Services,Operational Materials,205,17/07/2020,2007-00072,0.00,46.67,R,A J H  Pump Supply & Repair Ltd,No
Http://opendatacommunities.org/id/metropolitan-district-council/leeds,Leeds City Council,31/07/2020,Resources and Housing,Leeds Building Services,Supplies and Services,Operational Materials,205,17/07/2020,2007-00073,0.00,72.00,R,A J H  Pump Supply & Repair Ltd,No
Http://opendatacommunities.org/id/metropolitan-district-council/leeds,Leeds City Council,31/07/2020,Resources and Housing,Leeds Building Services,Supplies and Services,Operational Materials,205,17/07/2020,2007-00074,0.00,320.00,R,A J H  Pump Supply & Repair Ltd,No
Http://opendatacommunities.org/id/metropolitan-district-council/leeds,Leeds City Council,31/07/2020,Resources and Housing,Leeds Building Services,Supplies and Services,Operational Materials,205,17/07/2020,2007-00075,0.00,75.00,R,A J H  Pump Supply & Repair Ltd,No
Http://opendatacommunities.org/id/metropolitan-district-council/leeds,Leeds City Council,31/07/2020,Resources and Housing,Leeds Building Services,Supplies and Services,Operational Materials,205,22/07/2020,2007-00076,0.00,195.00,R,A J H  Pump Supply & Repair Ltd,No
Http://opendatacommunities.org/id/metropolitan-district-council/leeds,Leeds City Council,31/07/2020,Resources and Housing,Leeds Building Services,Supplies and Services,Operational Materials,205,22/07/2020,2007-00077,0.00,404.45,R,A J H  Pump Supply & Repair Ltd,No
Http://opendatacommunities.org/id/metropolitan-district-council/leeds,Leeds City Council,31/07/2020,Resources and Housing,Leeds Building Services,Supplies and Services,Operational Materials,205,24/07/2020,2007-00078,0.00,147.50,R,A J H  Pump Supply & Repair Ltd,No
Http://opendatacommunities.org/id/metropolitan-district-council/leeds,Leeds City Council,31/07/2020,Resources and Housing,Leeds Building Services,Supplies and Services,Operational Materials,205,24/07/2020,2007-00079,0.00,31.01,R,A J H  Pump Supply & Repair Ltd,No
Http://opendatacommunities.org/id/metropolitan-district-council/leeds,Leeds City Council,31/07/2020,Resources and Housing,Leeds Building Services,Supplies and Services,Operational Materials,205,24/07/2020,2007-00080,0.00,64.95,R,A J H  Pump Supply & Repair Ltd,No
Http://opendatacommunities.org/id/metropolitan-district-council/leeds,Leeds City Council,31/07/2020,Resources and Housing,Leeds Building Services,Supplies and Services,Operational Materials,205,24/07/2020,2007-00081,0.00,112.45,R,A J H  Pump Supply & Repair Ltd,No
Http://opendatacommunities.org/id/metropolitan-district-council/leeds,Leeds City Council,31/07/2020,Resources and Housing,Leeds Building Services,Supplies and Services,Operational Materials,205,24/07/2020,2007-00082,0.00,109.50,R,A J H  Pump Supply & Repair Ltd,No
Http://opendatacommunities.org/id/metropolitan-district-council/leeds,Leeds City Council,31/07/2020,Resources and Housing,Leeds Building Services,Supplies and Services,Operational Materials,205,24/07/2020,2007-00083,0.00,405.10,R,A J H  Pump Supply & Repair Ltd,No
Http://opendatacommunities.org/id/metropolitan-district-council/leeds,Leeds City Council,31/07/2020,Resources and Housing,Leeds Building Services,Supplies and Services,Operational Materials,205,24/07/2020,2007-00084,0.00,162.90,R,A J H  Pump Supply & Repair Ltd,No
Http://opendatacommunities.org/id/metropolitan-district-council/leeds,Leeds City Council,31/07/2020,Resources and Housing,Leeds Building Services,Supplies and Services,Operational Materials,205,24/07/2020,2007-00085,0.00,324.00,R,A J H  Pump Supply & Repair Ltd,No
Http://opendatacommunities.org/id/metropolitan-district-council/leeds,Leeds City Council,31/07/2020,Resources and Housing,Leeds Building Services,Supplies and Services,Operational Materials,205,24/07/2020,2007-00086,0.00,10.45,R,A J H  Pump Supply & Repair Ltd,No
Http://opendatacommunities.org/id/metropolitan-district-council/leeds,Leeds City Council,31/07/2020,Resources and Housing,Leeds Building Services,Supplies and Services,Operational Materials,205,24/07/2020,2007-00087,0.00,18.50,R,A J H  Pump Supply & Repair Ltd,No
Http://opendatacommunities.org/id/metropolitan-district-council/leeds,Leeds City Council,31/07/2020,Resources and Housing,Leeds Building Services,Supplies and Services,Operational Materials,205,24/07/2020,2007-00088,0.00,120.38,R,A J H  Pump Supply & Repair Ltd,No
Http://opendatacommunities.org/id/metropolitan-district-council/leeds,Leeds City Council,31/07/2020,Resources and Housing,Leeds Building Services,Supplies and Services,Operational Materials,205,24/07/2020,2007-00089,0.00,74.25,R,A J H  Pump Supply & Repair Ltd,No
Http://opendatacommunities.org/id/metropolitan-district-council/leeds,Leeds City Council,31/07/2020,Resources and Housing,Leeds Building Services,Supplies and Services,Operational Materials,205,24/07/2020,2007-00090,0.00,71.00,R,A J H  Pump Supply & Repair Ltd,No
Http://opendatacommunities.org/id/metropolitan-district-council/leeds,Leeds City Council,31/07/2020,Resources and Housing,Leeds Building Services,Supplies and Services,Operational Materials,205,24/07/2020,2007-00091,0.00,186.06,R,A J H  Pump Supply & Repair Ltd,No
Http://opendatacommunities.org/id/metropolitan-district-council/leeds,Leeds City Council,31/07/2020,Resources and Housing,Leeds Building Services,Supplies and Services,Operational Furniture and Equipment,203,24/07/2020,2007-00092,0.00,129.00,R,A J H  Pump Supply & Repair Ltd,No
Http://opendatacommunities.org/id/metropolitan-district-council/leeds,Leeds City Council,31/07/2020,Resources and Housing,Leeds Building Services,Supplies and Services,Operational Materials,205,24/07/2020,2007-00093,0.00,175.00,R,A J H  Pump Supply & Repair Ltd,No
Http://opendatacommunities.org/id/metropolitan-district-council/leeds,Leeds City Council,31/07/2020,Resources and Housing,Leeds Building Services,Supplies and Services,Operational Materials,205,24/07/2020,2007-00094,0.00,1228.06,R,A J H  Pump Supply & Repair Ltd,No
Http://opendatacommunities.org/id/metropolitan-district-council/leeds,Leeds City Council,31/07/2020,Resources and Housing,Leeds Building Services,Supplies and Services,Operational Materials,205,24/07/2020,2007-00095,0.00,261.51,R,A J H  Pump Supply & Repair Ltd,No
Http://opendatacommunities.org/id/metropolitan-district-council/leeds,Leeds City Council,31/07/2020,Resources and Housing,Leeds Building Services,Supplies and Services,Operational Materials,205,28/07/2020,2007-00096,0.00,585.90,R,A J H  Pump Supply & Repair Ltd,No
Http://opendatacommunities.org/id/metropolitan-district-council/leeds,Leeds City Council,31/07/2020,Resources and Housing,Leeds Building Services,Supplies and Services,Operational Materials,205,28/07/2020,2007-00097,0.00,145.50,R,A J H  Pump Supply & Repair Ltd,No
Http://opendatacommunities.org/id/metropolitan-district-council/leeds,Leeds City Council,31/07/2020,Resources and Housing,Leeds Building Services,Supplies and Services,Operational Materials,205,28/07/2020,2007-00098,0.00,291.00,R,A J H  Pump Supply & Repair Ltd,No
Http://opendatacommunities.org/id/metropolitan-district-council/leeds,Leeds City Council,31/07/2020,Resources and Housing,Leeds Building Services,Supplies and Services,Operational Materials,205,28/07/2020,2007-00099,0.00,32.70,R,A J H  Pump Supply & Repair Ltd,No
Http://opendatacommunities.org/id/metropolitan-district-council/leeds,Leeds City Council,31/07/2020,Resources and Housing,Leeds Building Services,Supplies and Services,Operational Materials,205,28/07/2020,2007-00100,0.00,248.65,R,A J H  Pump Supply & Repair Ltd,No
Http://opendatacommunities.org/id/metropolitan-district-council/leeds,Leeds City Council,31/07/2020,Resources and Housing,Leeds Building Services,Supplies and Services,Operational Materials,205,28/07/2020,2007-00101,0.00,375.50,R,A J H  Pump Supply & Repair Ltd,No
Http://opendatacommunities.org/id/metropolitan-district-council/leeds,Leeds City Council,31/07/2020,Resources and Housing,Leeds Building Services,Supplies and Services,Operational Materials,205,28/07/2020,2007-00102,0.00,135.62,R,A J H  Pump Supply & Repair Ltd,No
Http://opendatacommunities.org/id/metropolitan-district-council/leeds,Leeds City Council,31/07/2020,Resources and Housing,Leeds Building Services,Supplies and Services,Operational Materials,205,28/07/2020,2007-00103,0.00,119.70,R,A J H  Pump Supply & Repair Ltd,No
Http://opendatacommunities.org/id/metropolitan-district-council/leeds,Leeds City Council,31/07/2020,Resources and Housing,Leeds Building Services,Supplies and Services,Operational Materials,205,29/07/2020,2007-00104,0.00,223.95,R,A J H  Pump Supply & Repair Ltd,No
Http://opendatacommunities.org/id/metropolitan-district-council/leeds,Leeds City Council,31/07/2020,City Development,Libraries  Arts & Heritage,Supplies and Services,ART GALLERIES TOTAL STORES,3,10/07/2020,2007-00105,0.00,770.00,R,A J PROMOTIONS,No
Http://opendatacommunities.org/id/metropolitan-district-council/leeds,Leeds City Council,31/07/2020,City Development,Economic Development,Supplies and Services,Grants To Businesses,243,10/07/2020,2007-00106,0.00,3450.00,R,A J Yeadon,No
Http://opendatacommunities.org/id/metropolitan-district-council/leeds,Leeds City Council,31/07/2020,Children and Families,Social Care,Third Party Payments,Services Rendered By Other Organisations,511,03/07/2020,2007-00107,0.00,2049.84,R,REDACTED PERSONAL DATA,No
Http://opendatacommunities.org/id/metropolitan-district-council/leeds,Leeds City Council,31/07/2020,Adults and Health,Public Health,Third Party Payments,Public Health Commissioned Services,526,08/07/2020,2007-00108,0.00,64.00,R,A Khan & K Muneer,No
Http://opendatacommunities.org/id/metropolitan-district-council/leeds,Leeds City Council,31/07/2020,Children and Families,Social Care,Third Party Payments,Contact,548,22/07/2020,2007-00109,0.00,16.00,R,REDACTED PERSONAL DATA,No
Http://opendatacommunities.org/id/metropolitan-district-council/leeds,Leeds City Council,31/07/2020,Children and Families,Social Care,Third Party Payments,Services Rendered By Voluntary Sector,505,17/07/2020,2007-00110,0.00,700.00,R,A Little Something Extra Ltd,No
Http://opendatacommunities.org/id/metropolitan-district-council/leeds,Leeds City Council,31/07/2020,Children and Families,Social Care,Employees,Agency Staff,8,17/07/2020,2007-00111,0.00,210.00,R,A Little Something Extra Ltd,No
Http://opendatacommunities.org/id/metropolitan-district-council/leeds,Leeds City Council,31/07/2020,Children and Families,Social Care,Supplies and Services,Operational Furniture and Equipment,203,17/07/2020,2007-00112,0.00,25.00,R,A Little Something Extra Ltd,No
Http://opendatacommunities.org/id/metropolitan-district-council/leeds,Leeds City Council,31/07/2020,Children and Families,Social Care,Supplies and Services,Bought In Professional Services,277,21/07/2020,2007-00113,0.00,875.00,R,A Little Something Extra Ltd,No
Http://opendatacommunities.org/id/metropolitan-district-council/leeds,Leeds City Council,31/07/2020,Communities and Environment,Customer Access,Supplies and Services,Bought In Professional Services,277,08/07/2020,2007-00114,0.00,18.00,R,A MOHAMMED,No
Http://opendatacommunities.org/id/metropolitan-district-council/leeds,Leeds City Council,31/07/2020,Communities and Environment,Customer Access,Supplies and Services,Bought In Professional Services,277,15/07/2020,2007-00115,0.00,18.00,R,A MOHAMMED,No
Http://opendatacommunities.org/id/metropolitan-district-council/leeds,Leeds City Council,31/07/2020,Children and Families,Social Care,Third Party Payments,Services Rendered By Other Organisations,511,01/07/2020,2007-00116,0.00,570.24,R,REDACTED PERSONAL DATA,No
Http://opendatacommunities.org/id/metropolitan-district-council/leeds,Leeds City Council,31/07/2020,Children and Families,Social Care,Third Party Payments,Services Rendered By Other Organisations,511,03/07/2020,2007-00117,0.00,2522.88,R,REDACTED PERSONAL DATA,No
Http://opendatacommunities.org/id/metropolitan-district-council/leeds,Leeds City Council,31/07/2020,Communities and Environment,Customer Access,Supplies and Services,Bought In Professional Services,277,08/07/2020,2007-00118,0.00,18.00,R,A NAMAKI,No
Http://opendatacommunities.org/id/metropolitan-district-council/leeds,Leeds City Council,31/07/2020,Children and Families,Social Care,Third Party Payments,Services Rendered By Other Organisations,511,03/07/2020,2007-00119,0.00,331.13,R,REDACTED PERSONAL DATA,No
Http://opendatacommunities.org/id/metropolitan-district-council/leeds,Leeds City Council,31/07/2020,Resources and Housing,HRA Housing Leeds,Capital,OTHER COSTS,7,23/07/2020,2007-00120,0.00,94.17,C,REDACTED PERSONAL DATA,No
Http://opendatacommunities.org/id/metropolitan-district-council/leeds,Leeds City Council,31/07/2020,City Development,Libraries  Arts & Heritage,Supplies and Services,Non-Recurring Grants,227,21/07/2020,2007-00121,0.00,400.00,R,A Quiet Word Ltd,No
Http://opendatacommunities.org/id/metropolitan-district-council/leeds,Leeds City Council,31/07/2020,Children and Families,Social Care,Support Services,Legal Disbursements,411,16/07/2020,2007-00122,0.00,3700.00,R,A R Markos,No
Http://opendatacommunities.org/id/metropolitan-district-council/leeds,Leeds City Council,31/07/2020,Children and Families,Social Care,Third Party Payments,Services Rendered By Other Organisations,511,01/07/2020,2007-00123,0.00,190.08,R,REDACTED PERSONAL DATA,No
Http://opendatacommunities.org/id/metropolitan-district-council/leeds,Leeds City Council,31/07/2020,Children and Families,Social Care,Third Party Payments,Services Rendered By Other Organisations,511,03/07/2020,2007-00124,0.00,157.68,R,REDACTED PERSONAL DATA,No
Http://opendatacommunities.org/id/metropolitan-district-council/leeds,Leeds City Council,31/07/2020,Children and Families,Social Care,Third Party Payments,Services Rendered By Other Organisations,511,03/07/2020,2007-00125,0.00,473.04,R,REDACTED PERSONAL DATA,No
Http://opendatacommunities.org/id/metropolitan-district-council/leeds,Leeds City Council,31/07/2020,Children and Families,Social Care,Third Party Payments,Section 17,551,17/07/2020,2007-00126,0.00,1206.24,R,REDACTED PERSONAL DATA,No
Http://opendatacommunities.org/id/metropolitan-district-council/leeds,Leeds City Council,31/07/2020,Children and Families,Social Care,Third Party Payments,Section 17,551,24/07/2020,2007-00127,0.00,201.04,R,REDACTED PERSONAL DATA,No
Http://opendatacommunities.org/id/metropolitan-district-council/leeds,Leeds City Council,31/07/2020,Children and Families,Social Care,Third Party Payments,Section 17,551,31/07/2020,2007-00128,0.00,201.04,R,REDACTED PERSONAL DATA,No
Http://opendatacommunities.org/id/metropolitan-district-council/leeds,Leeds City Council,31/07/2020,Children and Families,Social Care,Third Party Payments,Services Rendered By Other Organisations,511,03/07/2020,2007-00129,0.00,473.04,R,REDACTED PERSONAL DATA,No
Http://opendatacommunities.org/id/metropolitan-district-council/leeds,Leeds City Council,31/07/2020,Children and Families,Social Care,Third Party Payments,Services Rendered By Other Organisations,511,03/07/2020,2007-00130,0.00,315.36,R,REDACTED PERSONAL DATA,No
Http://opendatacommunities.org/id/metropolitan-district-council/leeds,Leeds City Council,31/07/2020,Children and Families,Social Care,Third Party Payments,General External Residential Placements,507,03/07/2020,2007-00131,0.00,880.00,R,A Wilderness Way Ltd,No
Http://opendatacommunities.org/id/metropolitan-district-council/leeds,Leeds City Council,31/07/2020,Children and Families,Social Care,Third Party Payments,General External Residential Placements,507,09/07/2020,2007-00132,0.00,-880.00,R,A Wilderness Way Ltd,No
Http://opendatacommunities.org/id/metropolitan-district-council/leeds,Leeds City Council,31/07/2020,Children and Families,Social Care,Third Party Payments,General External Residential Placements,507,09/07/2020,2007-00133,0.00,5418.55,R,A Wilderness Way Ltd,No
Http://opendatacommunities.org/id/metropolitan-district-council/leeds,Leeds City Council,31/07/2020,Children and Families,Social Care,Third Party Payments,General External Residential Placements,507,14/07/2020,2007-00134,0.00,51.30,R,A Wilderness Way Ltd,No
Http://opendatacommunities.org/id/metropolitan-district-council/leeds,Leeds City Council,31/07/2020,Children and Families,Social Care,Third Party Payments,General External Residential Placements,507,14/07/2020,2007-00135,0.00,2167.42,R,A Wilderness Way Ltd,No
Http://opendatacommunities.org/id/metropolitan-district-council/leeds,Leeds City Council,31/07/2020,Children and Families,Social Care,Third Party Payments,General External Residential Placements,507,15/07/2020,2007-00136,0.00,27857.10,R,A Wilderness Way Ltd,No
Http://opendatacommunities.org/id/metropolitan-district-council/leeds,Leeds City Council,31/07/2020,Children and Families,Social Care,Third Party Payments,General External Residential Placements,507,17/07/2020,2007-00137,0.00,221.40,R,A Wilderness Way Ltd,No
Http://opendatacommunities.org/id/metropolitan-district-council/leeds,Leeds City Council,31/07/2020,Children and Families,Social Care,Third Party Payments,General External Residential Placements,507,31/07/2020,2007-00138,0.00,311.35,R,A Wilderness Way Ltd,No
Http://opendatacommunities.org/id/metropolitan-district-council/leeds,Leeds City Council,31/07/2020,Children and Families,Social Care,Third Party Payments,General External Residential Placements,507,31/07/2020,2007-00139,0.00,28785.67,R,A Wilderness Way Ltd,No
Http://opendatacommunities.org/id/metropolitan-district-council/leeds,Leeds City Council,31/07/2020,Resources and Housing,HRA Housing Leeds,Capital,OTHER COSTS,7,23/07/2020,2007-00140,0.00,100.00,C,REDACTED PERSONAL DATA,No
Http://opendatacommunities.org/id/metropolitan-district-council/leeds,Leeds City Council,31/07/2020,Communities and Environment,Parks and Countryside  ,Supplies and Services,Resaleable Materials,204,01/06/2020,2007-00141,0.00,2630.00,R,A.Mir & Co Ltd,Yes
Http://opendatacommunities.org/id/metropolitan-district-council/leeds,Leeds City Council,31/07/2020,Communities and Environment,Parks and Countryside  ,Supplies and Services,Resaleable Materials,204,23/06/2020,2007-00142,0.00,3420.00,R,A.Mir & Co Ltd,Yes
Http://opendatacommunities.org/id/metropolitan-district-council/leeds,Leeds City Council,31/07/2020,Resources and Housing,Leeds Building Services,Supplies and Services,Other Hired and Contracted Services,265,06/07/2020,2007-00143,0.00,595.00,R,A1 STAIR LIFT SERVICES,No
Http://opendatacommunities.org/id/metropolitan-district-council/leeds,Leeds City Council,31/07/2020,Resources and Housing,Leeds Building Services,Supplies and Services,Operational Materials,205,24/07/2020,2007-00144,0.00,595.00,R,A1 STAIR LIFT SERVICES,No
Http://opendatacommunities.org/id/metropolitan-district-council/leeds,Leeds City Council,31/07/2020,Resources and Housing,Leeds Building Services,Supplies and Services,Other Hired and Contracted Services,265,24/07/2020,2007-00145,0.00,760.00,R,A1 STAIR LIFT SERVICES,No
Http://opendatacommunities.org/id/metropolitan-district-council/leeds,Leeds City Council,31/07/2020,Children and Families,Social Care  ,Supplies and Services,Operational Furniture and Equipment,203,23/06/2020,2007-00146,0.00,7.89,R,Aardvark Archery,Yes
Http://opendatacommunities.org/id/metropolitan-district-council/leeds,Leeds City Council,31/07/2020,Children and Families,Social Care  ,Supplies and Services,Office Consumables,210,24/06/2020,2007-00147,0.00,315.75,R,Aardvark Archery,Yes
Http://opendatacommunities.org/id/metropolitan-district-council/leeds,Leeds City Council,31/07/2020,Children and Families,Social Care,Third Party Payments,Section 17,551,06/07/2020,2007-00148,0.00,30.00,R,REDACTED PERSONAL DATA,No
Http://opendatacommunities.org/id/metropolitan-district-council/leeds,Leeds City Council,31/07/2020,Children and Families,Social Care,Third Party Payments,Allowances,546,07/07/2020,2007-00149,0.00,712.22,R,ABBIE O MAHONY,No
Http://opendatacommunities.org/id/metropolitan-district-council/leeds,Leeds City Council,31/07/2020,Children and Families,Social Care,Third Party Payments,Services Rendered By Other Organisations,511,01/07/2020,2007-00150,0.00,950.40,R,Abc Daycare and Ozone Out Of School,No
Http://opendatacommunities.org/id/metropolitan-district-council/leeds,Leeds City Council,31/07/2020,Children and Families,Social Care,Third Party Payments,Services Rendered By Other Organisations,511,03/07/2020,2007-00151,0.00,7253.28,R,Abc Daycare and Ozone Out Of School,No
Http://opendatacommunities.org/id/metropolitan-district-council/leeds,Leeds City Council,31/07/2020,Children and Families,Social Care,Third Party Payments,Services Rendered By Voluntary Sector,505,07/07/2020,2007-00152,0.00,2052.63,R,Abc Daycare and Ozone Out Of School,No
Http://opendatacommunities.org/id/metropolitan-district-council/leeds,Leeds City Council,31/07/2020,City Development,Economic Development,Supplies and Services,Grants To Businesses,243,14/07/2020,2007-00153,0.00,8105.00,R,Abc Nursery @ Leeds United Fc,No
Http://opendatacommunities.org/id/metropolitan-district-council/leeds,Leeds City Council,31/07/2020,Children and Families,Social Care,Third Party Payments,Services Rendered By Other Organisations,511,01/07/2020,2007-00154,0.00,1520.64,R,ABC NURSERY AT LUFC,No
Http://opendatacommunities.org/id/metropolitan-district-council/leeds,Leeds City Council,31/07/2020,Children and Families,Social Care,Third Party Payments,Services Rendered By Other Organisations,511,03/07/2020,2007-00155,0.00,7726.32,R,ABC NURSERY AT LUFC,No
Http://opendatacommunities.org/id/metropolitan-district-council/leeds,Leeds City Council,31/07/2020,Children and Families,Social Care,Third Party Payments,Services Rendered By Other Organisations,511,01/07/2020,2007-00156,0.00,1520.64,R,Abc@D'S Childcare,No
Http://opendatacommunities.org/id/metropolitan-district-council/leeds,Leeds City Council,31/07/2020,Children and Families,Social Care,Third Party Payments,Services Rendered By Other Organisations,511,03/07/2020,2007-00157,0.00,5361.12,R,Abc@D'S Childcare,No
Http://opendatacommunities.org/id/metropolitan-district-council/leeds,Leeds City Council,31/07/2020,Communities and Environment,Customer Access,Supplies and Services,Bought In Professional Services,277,01/07/2020,2007-00158,0.00,18.00,R,Abdul Kalam,No
Http://opendatacommunities.org/id/metropolitan-district-council/leeds,Leeds City Council,31/07/2020,Communities and Environment,Customer Access,Supplies and Services,Bought In Professional Services,277,01/07/2020,2007-00159,0.00,22.50,R,Abdul Kalam,No
Http://opendatacommunities.org/id/metropolitan-district-council/leeds,Leeds City Council,31/07/2020,Communities and Environment,Customer Access,Supplies and Services,Bought In Professional Services,277,01/07/2020,2007-00160,0.00,18.00,R,Abdul Kalam,No
Http://opendatacommunities.org/id/metropolitan-district-council/leeds,Leeds City Council,31/07/2020,Communities and Environment,Customer Access,Supplies and Services,Bought In Professional Services,277,08/07/2020,2007-00161,0.00,18.00,R,Abdul Kalam,No
Http://opendatacommunities.org/id/metropolitan-district-council/leeds,Leeds City Council,31/07/2020,Communities and Environment,Customer Access,Supplies and Services,Bought In Professional Services,277,08/07/2020,2007-00162,0.00,27.00,R,Abdul Kalam,No
Http://opendatacommunities.org/id/metropolitan-district-council/leeds,Leeds City Council,31/07/2020,Communities and Environment,Customer Access,Supplies and Services,Bought In Professional Services,277,08/07/2020,2007-00163,0.00,18.00,R,Abdul Kalam,No
Http://opendatacommunities.org/id/metropolitan-district-council/leeds,Leeds City Council,31/07/2020,Communities and Environment,Customer Access,Supplies and Services,Bought In Professional Services,277,15/07/2020,2007-00164,0.00,18.00,R,Abdul Kalam,No
Http://opendatacommunities.org/id/metropolitan-district-council/leeds,Leeds City Council,31/07/2020,Communities and Environment,Customer Access,Supplies and Services,Bought In Professional Services,277,15/07/2020,2007-00165,0.00,18.00,R,Abdul Kalam,No
Http://opendatacommunities.org/id/metropolitan-district-council/leeds,Leeds City Council,31/07/2020,Communities and Environment,Customer Access,Supplies and Services,Bought In Professional Services,277,15/07/2020,2007-00166,0.00,9.00,R,Abdul Kalam,No
Http://opendatacommunities.org/id/metropolitan-district-council/leeds,Leeds City Council,31/07/2020,Communities and Environment,Customer Access,Supplies and Services,Bought In Professional Services,277,15/07/2020,2007-00167,0.00,18.00,R,Abdul Kalam,No
Http://opendatacommunities.org/id/metropolitan-district-council/leeds,Leeds City Council,31/07/2020,Communities and Environment,Customer Access,Supplies and Services,Bought In Professional Services,277,08/07/2020,2007-00168,0.00,9.00,R,Abdulahad Denha,No
Http://opendatacommunities.org/id/metropolitan-district-council/leeds,Leeds City Council,31/07/2020,Communities and Environment,Customer Access,Supplies and Services,Bought In Professional Services,277,29/07/2020,2007-00169,0.00,9.00,R,Abdulrahim Dastyar,No
Http://opendatacommunities.org/id/metropolitan-district-council/leeds,Leeds City Council,31/07/2020,Communities and Environment,Customer Access,Supplies and Services,Bought In Professional Services,277,29/07/2020,2007-00170,0.00,9.00,R,Abdulrahim Dastyar,No
Http://opendatacommunities.org/id/metropolitan-district-council/leeds,Leeds City Council,31/07/2020,Adults and Health,Services For Older People - 65 and Over,Third Party Payments,Nursing Home,570,01/07/2020,2007-00171,0.00,2172.40,R,Aberford Hall,No
Http://opendatacommunities.org/id/metropolitan-district-council/leeds,Leeds City Council,31/07/2020,Resources and Housing,Leeds Building Services,Supplies and Services,Operational Materials,205,29/07/2020,2007-00172,0.00,10.00,R,ABI GARAGE DOORS LTD,No
Http://opendatacommunities.org/id/metropolitan-district-council/leeds,Leeds City Council,31/07/2020,Resources and Housing,Leeds Building Services,Supplies and Services,Operational Materials,205,29/07/2020,2007-00173,0.00,10.00,R,ABI GARAGE DOORS LTD,No
Http://opendatacommunities.org/id/metropolitan-district-council/leeds,Leeds City Council,31/07/2020,Resources and Housing,Leeds Building Services,Supplies and Services,Operational Materials,205,29/07/2020,2007-00174,0.00,10.00,R,ABI GARAGE DOORS LTD,No
Http://opendatacommunities.org/id/metropolitan-district-council/leeds,Leeds City Council as Accountable Body,31/07/2020,Social Services Pooled Budgets,Jcs For People With Learning Disabilitie,Transfer Payments,Direct Payments,626,01/07/2020,2007-00175,0.00,12778.07,R,REDACTED PERSONAL DATA,No
Http://opendatacommunities.org/id/metropolitan-district-council/leeds,Leeds City Council,31/07/2020,Adults and Health,Services For Adults Under 65 Mental/Dis,Third Party Payments,Fees - Level 4,520,09/07/2020,2007-00176,0.00,175.00,R,Abubaker Denja Mohammed,No
Http://opendatacommunities.org/id/metropolitan-district-council/leeds,Leeds City Council,31/07/2020,Adults and Health,Services For Adults Under 65 Mental/Dis,Third Party Payments,Fees - Level 4,520,14/07/2020,2007-00177,0.00,175.00,R,Abubaker Denja Mohammed,No
Http://opendatacommunities.org/id/metropolitan-district-council/leeds,Leeds City Council,31/07/2020,Adults and Health,Services For Adults Under 65 Mental/Dis,Third Party Payments,Fees - Level 4,520,14/07/2020,2007-00178,0.00,175.00,R,Abubaker Denja Mohammed,No
Http://opendatacommunities.org/id/metropolitan-district-council/leeds,Leeds City Council,31/07/2020,Adults and Health,Services For Adults Under 65 Mental/Dis,Third Party Payments,Fees - Level 4,520,14/07/2020,2007-00179,0.00,175.00,R,Abubaker Denja Mohammed,No
Http://opendatacommunities.org/id/metropolitan-district-council/leeds,Leeds City Council,31/07/2020,Adults and Health,Services For Adults Under 65 Mental/Dis,Third Party Payments,Fees - Level 4,520,14/07/2020,2007-00180,0.00,175.00,R,Abubaker Denja Mohammed,No
Http://opendatacommunities.org/id/metropolitan-district-council/leeds,Leeds City Council,31/07/2020,Adults and Health,Services For Adults Under 65 Mental/Dis,Third Party Payments,Fees - Level 4,520,14/07/2020,2007-00181,0.00,175.00,R,Abubaker Denja Mohammed,No
Http://opendatacommunities.org/id/metropolitan-district-council/leeds,Leeds City Council,31/07/2020,Adults and Health,Services For Adults Under 65 Mental/Dis,Third Party Payments,Fees - Level 4,520,14/07/2020,2007-00182,0.00,175.00,R,Abubaker Denja Mohammed,No
Http://opendatacommunities.org/id/metropolitan-district-council/leeds,Leeds City Council,31/07/2020,Adults and Health,Services For Adults Under 65 Mental/Dis,Third Party Payments,Fees - Level 4,520,15/07/2020,2007-00183,0.00,175.00,R,Abubaker Denja Mohammed,No
Http://opendatacommunities.org/id/metropolitan-district-council/leeds,Leeds City Council,31/07/2020,Adults and Health,Services For Older People - 65 and Over,Third Party Payments,Home Care,568,01/07/2020,2007-00184,0.00,77.64,R,Academy Care Ltd,No
Http://opendatacommunities.org/id/metropolitan-district-council/leeds,Leeds City Council,31/07/2020,Adults and Health,Services For Older People - 65 and Over,Third Party Payments,Home Care,568,15/07/2020,2007-00185,0.00,1695.85,R,Academy Care Ltd,No
Http://opendatacommunities.org/id/metropolitan-district-council/leeds,Leeds City Council,31/07/2020,Adults and Health,Services For Older People - 65 and Over,Third Party Payments,Home Care,568,15/07/2020,2007-00186,0.00,1826.30,R,Academy Care Ltd,No
Http://opendatacommunities.org/id/metropolitan-district-council/leeds,Leeds City Council,31/07/2020,Adults and Health,Services For Older People - 65 and Over,Third Party Payments,Home Care,568,15/07/2020,2007-00187,0.00,680.14,R,Academy Care Ltd,No
Http://opendatacommunities.org/id/metropolitan-district-council/leeds,Leeds City Council,31/07/2020,Adults and Health,Services For Older People - 65 and Over,Third Party Payments,Home Care,568,22/07/2020,2007-00188,0.00,780.78,R,Academy Care Ltd,No
Http://opendatacommunities.org/id/metropolitan-district-council/leeds,Leeds City Council,31/07/2020,Resources and Housing,Strategic Housing Partnership & Support,Supplies and Services,Other Hired and Contracted Services,265,03/07/2020,2007-00189,0.00,186.58,R,Accent Foundation Ltd,No
Http://opendatacommunities.org/id/metropolitan-district-council/leeds,Leeds City Council,31/07/2020,Communities and Environment,Community Safety,Transport,Hire Of Movable Plant & Machinery,315,01/07/2020,2007-00190,0.00,10.00,R,Access Hire Nationwide Ltd,No
Http://opendatacommunities.org/id/metropolitan-district-council/leeds,Leeds City Council,31/07/2020,Communities and Environment,Community Safety,Transport,Hire Of Movable Plant & Machinery,315,09/07/2020,2007-00191,0.00,1388.57,R,Access Hire Nationwide Ltd,No
Http://opendatacommunities.org/id/metropolitan-district-council/leeds,Leeds City Council,31/07/2020,Communities and Environment,Environmental Action (City Centre)  ,Supplies and Services,Operational Furniture and Equipment,203,09/06/2020,2007-00192,0.00,116.66,R,Access Locksmiths,Yes
Http://opendatacommunities.org/id/metropolitan-district-council/leeds,Leeds City Council,31/07/2020,Strategic Landlord,Property and Contracts,Premises,General Maintenance,104,09/07/2020,2007-00193,0.00,45.91,R,ACCESS LOCKSMITHS (LEEDS) LIMITED,No
Http://opendatacommunities.org/id/metropolitan-district-council/leeds,Leeds City Council,31/07/2020,Strategic Landlord,Property and Contracts,Premises,General Maintenance,104,09/07/2020,2007-00194,0.00,429.20,R,ACCESS LOCKSMITHS (LEEDS) LIMITED,No
Http://opendatacommunities.org/id/metropolitan-district-council/leeds,Leeds City Council,31/07/2020,Strategic Landlord,Property and Contracts,Premises,General Maintenance,104,09/07/2020,2007-00195,0.00,200.81,R,ACCESS LOCKSMITHS (LEEDS) LIMITED,No
Http://opendatacommunities.org/id/metropolitan-district-council/leeds,Leeds City Council,31/07/2020,Strategic Landlord,Property and Contracts,Premises,General Maintenance,104,09/07/2020,2007-00196,0.00,45.83,R,ACCESS LOCKSMITHS (LEEDS) LIMITED,No
Http://opendatacommunities.org/id/metropolitan-district-council/leeds,Leeds City Council,31/07/2020,Strategic Landlord,Property and Contracts,Premises,General Maintenance,104,09/07/2020,2007-00197,0.00,45.83,R,ACCESS LOCKSMITHS (LEEDS) LIMITED,No
Http://opendatacommunities.org/id/metropolitan-district-council/leeds,Leeds City Council,31/07/2020,Strategic Landlord,Property and Contracts,Premises,General Maintenance,104,09/07/2020,2007-00198,0.00,139.28,R,ACCESS LOCKSMITHS (LEEDS) LIMITED,No
Http://opendatacommunities.org/id/metropolitan-district-council/leeds,Leeds City Council,31/07/2020,Strategic Landlord,Property and Contracts,Premises,General Maintenance,104,09/07/2020,2007-00199,0.00,138.90,R,ACCESS LOCKSMITHS (LEEDS) LIMITED,No
Http://opendatacommunities.org/id/metropolitan-district-council/leeds,Leeds City Council,31/07/2020,Strategic Landlord,Property and Contracts,Premises,General Maintenance,104,09/07/2020,2007-00200,0.00,45.83,R,ACCESS LOCKSMITHS (LEEDS) LIMITED,No
Http://opendatacommunities.org/id/metropolitan-district-council/leeds,Leeds City Council,31/07/2020,Strategic Landlord,Property and Contracts,Premises,General Maintenance,104,09/07/2020,2007-00201,0.00,63.54,R,ACCESS LOCKSMITHS (LEEDS) LIMITED,No
Http://opendatacommunities.org/id/metropolitan-district-council/leeds,Leeds City Council,31/07/2020,Strategic Landlord,Property and Contracts,Premises,General Maintenance,104,09/07/2020,2007-00202,0.00,200.78,R,ACCESS LOCKSMITHS (LEEDS) LIMITED,No
Http://opendatacommunities.org/id/metropolitan-district-council/leeds,Leeds City Council,31/07/2020,Strategic Landlord,Property and Contracts,Premises,General Maintenance,104,09/07/2020,2007-00203,0.00,175.79,R,ACCESS LOCKSMITHS (LEEDS) LIMITED,No
Http://opendatacommunities.org/id/metropolitan-district-council/leeds,Leeds City Council,31/07/2020,Strategic Landlord,Property and Contracts,Premises,General Maintenance,104,13/07/2020,2007-00204,0.00,45.83,R,ACCESS LOCKSMITHS (LEEDS) LIMITED,No
Http://opendatacommunities.org/id/metropolitan-district-council/leeds,Leeds City Council,31/07/2020,Resources and Housing,Leeds Building Services,Supplies and Services,Other Hired and Contracted Services,265,13/07/2020,2007-00205,0.00,50.00,R,ACCESS LOCKSMITHS (LEEDS) LIMITED,No
Http://opendatacommunities.org/id/metropolitan-district-council/leeds,Leeds City Council,31/07/2020,Resources and Housing,Leeds Building Services,Supplies and Services,Other Hired and Contracted Services,265,13/07/2020,2007-00206,0.00,135.00,R,ACCESS LOCKSMITHS (LEEDS) LIMITED,No
Http://opendatacommunities.org/id/metropolitan-district-council/leeds,Leeds City Council,31/07/2020,City Development,Libraries  Arts & Heritage,Supplies and Services,Other Hired and Contracted Services,265,15/07/2020,2007-00207,0.00,46.50,R,ACE CONTAINER SERVICES LIMITED,No
Http://opendatacommunities.org/id/metropolitan-district-council/leeds,Leeds City Council,31/07/2020,City Development,Recreation,Transport,External Hire -Occasional,304,15/07/2020,2007-00208,0.00,128.65,R,ACE CONTAINER SERVICES LIMITED,No
Http://opendatacommunities.org/id/metropolitan-district-council/leeds,Leeds City Council,31/07/2020,City Development,Recreation,Supplies and Services,Operational Furniture and Equipment,203,20/07/2020,2007-00209,0.00,93.00,R,ACE CONTAINER SERVICES LIMITED,No
Http://opendatacommunities.org/id/metropolitan-district-council/leeds,Leeds City Council,31/07/2020,Resources and Housing,Sustainable Energy & Air Quality,Supplies and Services,Schools related grant expenditure,299,09/07/2020,2007-00210,0.00,268.80,R,Acorn Construction (Yorkshire) Ltd,No
Http://opendatacommunities.org/id/metropolitan-district-council/leeds,Leeds City Council,31/07/2020,Resources and Housing,Sustainable Energy & Air Quality,Supplies and Services,PFI Deferred Prepayments,280,13/07/2020,2007-00211,0.00,224.00,R,Acorn Construction (Yorkshire) Ltd,No
Http://opendatacommunities.org/id/metropolitan-district-council/leeds,Leeds City Council,31/07/2020,Resources and Housing,Sustainable Energy & Air Quality,Supplies and Services,PFI Deferred Prepayments,280,13/07/2020,2007-00212,0.00,224.00,R,Acorn Construction (Yorkshire) Ltd,No
Http://opendatacommunities.org/id/metropolitan-district-council/leeds,Leeds City Council,31/07/2020,Resources and Housing,Sustainable Energy & Air Quality,Supplies and Services,PFI Deferred Prepayments,280,13/07/2020,2007-00213,0.00,224.00,R,Acorn Construction (Yorkshire) Ltd,No
Http://opendatacommunities.org/id/metropolitan-district-council/leeds,Leeds City Council,31/07/2020,Adults and Health,Services For Older People - 65 and Over,Third Party Payments,Residential Care Dementia,571,22/07/2020,2007-00214,0.00,1589.72,R,Acorn Nursing Home,No
Http://opendatacommunities.org/id/metropolitan-district-council/leeds,Leeds City Council,31/07/2020,Adults and Health,Services For Older People - 65 and Over,Third Party Payments,Nursing Care Dementia,574,22/07/2020,2007-00215,0.00,1720.08,R,Acorn Nursing Home,No
Http://opendatacommunities.org/id/metropolitan-district-council/leeds,Leeds City Council,31/07/2020,Children and Families,Social Care,Third Party Payments,Services Rendered By Other Organisations,511,01/07/2020,2007-00216,0.00,190.08,R,ACORNS NURSERY,No
Http://opendatacommunities.org/id/metropolitan-district-council/leeds,Leeds City Council,31/07/2020,Children and Families,Social Care,Third Party Payments,Services Rendered By Other Organisations,511,03/07/2020,2007-00217,0.00,6898.50,R,ACORNS NURSERY,No
Http://opendatacommunities.org/id/metropolitan-district-council/leeds,Leeds City Council,31/07/2020,Adults and Health,Services For Older People - 65 and Over,Third Party Payments,Nursing Home,570,01/07/2020,2007-00218,0.00,2721.00,R,Acre Green,No
Http://opendatacommunities.org/id/metropolitan-district-council/leeds,Leeds City Council,31/07/2020,Adults and Health,Services For Older People - 65 and Over,Third Party Payments,Nursing Home,570,22/07/2020,2007-00219,0.00,11867.83,R,Acre Green,No
Http://opendatacommunities.org/id/metropolitan-district-council/leeds,Leeds City Council,31/07/2020,Adults and Health,Services For Older People - 65 and Over,Third Party Payments,Residential,580,22/07/2020,2007-00220,0.00,3876.60,R,Acre Green,No
Http://opendatacommunities.org/id/metropolitan-district-council/leeds,Leeds City Council,31/07/2020,Adults and Health,Services For Older People Under 65 P/Dis,Third Party Payments,Nursing Home,570,22/07/2020,2007-00221,0.00,2360.00,R,Acre Green,No
Http://opendatacommunities.org/id/metropolitan-district-council/leeds,Leeds City Council,31/07/2020,Adults and Health,Services For Older People Under 65 P/Dis,Third Party Payments,Residential,580,22/07/2020,2007-00222,0.00,1642.60,R,Acre Green,No
Http://opendatacommunities.org/id/metropolitan-district-council/leeds,Leeds City Council,31/07/2020,Children and Families,Social Care,Third Party Payments,Services Rendered By Other Organisations,511,01/07/2020,2007-00223,0.00,2090.88,R,Acre Wood Day Nursery,No
Http://opendatacommunities.org/id/metropolitan-district-council/leeds,Leeds City Council,31/07/2020,Children and Families,Social Care,Third Party Payments,Services Rendered By Other Organisations,511,03/07/2020,2007-00224,0.00,10722.24,R,Acre Wood Day Nursery,No
Http://opendatacommunities.org/id/metropolitan-district-council/leeds,Leeds City Council,31/07/2020,Children and Families,Social Care  ,Transfer Payments,Leaving Care Allowances,634,15/06/2020,2007-00225,0.00,60.00,R,Acro,Yes
Http://opendatacommunities.org/id/metropolitan-district-council/leeds,Leeds City Council,31/07/2020,Communities and Environment,Customer Access  ,Employees,Best Value Training,70,09/06/2020,2007-00226,0.00,99.00,R,Act Now Training Limit,Yes
Http://opendatacommunities.org/id/metropolitan-district-council/leeds,Leeds City Council,31/07/2020,Resources and Housing,Leeds Building Services,Supplies and Services,Operational Materials,205,29/07/2020,2007-00227,0.00,57.00,R,Actavo Hire and Sales Uk Limited,No
Http://opendatacommunities.org/id/metropolitan-district-council/leeds,Leeds City Council,31/07/2020,Children and Families,Social Care,Third Party Payments,Independent Fostering Agencies,509,27/07/2020,2007-00228,0.00,4997.10,R,Action For Children Services Ltd,No
Http://opendatacommunities.org/id/metropolitan-district-council/leeds,Leeds City Council,31/07/2020,Adults and Health,Services For Older People - 65 and Over,Third Party Payments,Payments To Voluntary Organisations,561,01/07/2020,2007-00229,0.00,49415.82,R,ACTION FOR GIPTON ELDERLY,No
Http://opendatacommunities.org/id/metropolitan-district-council/leeds,Leeds City Council,31/07/2020,Children and Families,Social Care,Third Party Payments,Services Rendered By Other Organisations,511,01/07/2020,2007-00230,0.00,411.84,R,ACTIVE KIDS YEADON LLP,No
Http://opendatacommunities.org/id/metropolitan-district-council/leeds,Leeds City Council,31/07/2020,Children and Families,Social Care,Third Party Payments,Services Rendered By Other Organisations,511,03/07/2020,2007-00231,0.00,6616.43,R,ACTIVE KIDS YEADON LLP,No
Http://opendatacommunities.org/id/metropolitan-district-council/leeds,Leeds City Council,31/07/2020,Adults and Health,Services For Older People - 65 and Over,Third Party Payments,Nursing Home,570,01/07/2020,2007-00232,0.00,527.03,R,Active Pathways,No
Http://opendatacommunities.org/id/metropolitan-district-council/leeds,Leeds City Council,31/07/2020,Adults and Health,Services For Adults Under 65 Mental/Dis,Third Party Payments,Sheltered Accommodation,569,22/07/2020,2007-00233,0.00,12037.32,R,Active Pathways,No
Http://opendatacommunities.org/id/metropolitan-district-council/leeds,Leeds City Council,31/07/2020,Adults and Health,Services For Older People Under 65 P/Dis,Third Party Payments,Sheltered Accommodation,569,22/07/2020,2007-00234,0.00,3320.68,R,Active Pathways,No
Http://opendatacommunities.org/id/metropolitan-district-council/leeds,Leeds City Council as Accountable Body,31/07/2020,Social Services Pooled Budgets,Jcs For People With Learning Disabilitie,Third Party Payments,Sheltered Accommodation,569,22/07/2020,2007-00235,0.00,20309.96,R,Active Pathways,No
Http://opendatacommunities.org/id/metropolitan-district-council/leeds,Leeds City Council,31/07/2020,Communities and Environment,Cleaner Neighbourhood Teams,Premises,Removal Of Workplace Waste,126,01/07/2020,2007-00236,0.00,116.60,R,Acumen Waste Services Ltd,No
Http://opendatacommunities.org/id/metropolitan-district-council/leeds,Leeds City Council,31/07/2020,Communities and Environment,Cleaner Neighbourhood Teams,Premises,Removal Of Workplace Waste,126,01/07/2020,2007-00237,0.00,116.60,R,Acumen Waste Services Ltd,No
Http://opendatacommunities.org/id/metropolitan-district-council/leeds,Leeds City Council,31/07/2020,Communities and Environment,Waste Management,Supplies and Services,Recycling & Reuse Charges,234,06/07/2020,2007-00238,0.00,992.15,R,Acumen Waste Services Ltd,No
Http://opendatacommunities.org/id/metropolitan-district-council/leeds,Leeds City Council,31/07/2020,Communities and Environment,Waste Management,Supplies and Services,Recycling & Reuse Charges,234,07/07/2020,2007-00239,0.00,2911.82,R,Acumen Waste Services Ltd,No
Http://opendatacommunities.org/id/metropolitan-district-council/leeds,Leeds City Council,31/07/2020,Communities and Environment,Cleaner Neighbourhood Teams,Premises,Removal Of Workplace Waste,126,09/07/2020,2007-00240,0.00,116.60,R,Acumen Waste Services Ltd,No
Http://opendatacommunities.org/id/metropolitan-district-council/leeds,Leeds City Council,31/07/2020,Communities and Environment,Cleaner Neighbourhood Teams,Premises,Removal Of Workplace Waste,126,09/07/2020,2007-00241,0.00,116.60,R,Acumen Waste Services Ltd,No
Http://opendatacommunities.org/id/metropolitan-district-council/leeds,Leeds City Council,31/07/2020,Communities and Environment,Waste Management,Supplies and Services,Recycling & Reuse Charges,234,15/07/2020,2007-00242,0.00,1962.28,R,Acumen Waste Services Ltd,No
Http://opendatacommunities.org/id/metropolitan-district-council/leeds,Leeds City Council,31/07/2020,Communities and Environment,Cleaner Neighbourhood Teams,Premises,Removal Of Workplace Waste,126,20/07/2020,2007-00243,0.00,116.60,R,Acumen Waste Services Ltd,No
Http://opendatacommunities.org/id/metropolitan-district-council/leeds,Leeds City Council,31/07/2020,Communities and Environment,Cleaner Neighbourhood Teams,Premises,Removal Of Workplace Waste,126,20/07/2020,2007-00244,0.00,116.60,R,Acumen Waste Services Ltd,No
Http://opendatacommunities.org/id/metropolitan-district-council/leeds,Leeds City Council,31/07/2020,Resources and Housing,Shared Services,Supplies and Services,Operational Materials,205,13/07/2020,2007-00245,0.00,366.60,R,AD3 Envelope Printers Limited,No
Http://opendatacommunities.org/id/metropolitan-district-council/leeds,Leeds City Council,31/07/2020,Resources and Housing,Human Resources,Support Services,Legal Disbursements,411,01/07/2020,2007-00246,0.00,9000.00,R,REDACTED PERSONAL DATA,No
Http://opendatacommunities.org/id/metropolitan-district-council/leeds,Leeds City Council,31/07/2020,Adults and Health,Social Services Support Services,Support Services,Legal Disbursements,411,16/07/2020,2007-00247,0.00,1000.00,R,Adam Fullwood,No
Http://opendatacommunities.org/id/metropolitan-district-council/leeds,Leeds City Council,31/07/2020,Adults and Health,Social Services Support Services,Employees,Training & Development,70,08/07/2020,2007-00248,0.00,13.00,R,REDACTED PERSONAL DATA,No
Http://opendatacommunities.org/id/metropolitan-district-council/leeds,Leeds City Council,31/07/2020,Adults and Health,Services For Older People - 65 and Over,Third Party Payments,Nursing Home,570,22/07/2020,2007-00249,0.00,2584.00,R,Adbolton Hall,No
Http://opendatacommunities.org/id/metropolitan-district-council/leeds,Leeds City Council,31/07/2020,Children and Families,Social Care  ,Supplies and Services,Operational Furniture and Equipment,203,08/06/2020,2007-00250,0.00,74.95,R,Addis.Co.Uk,Yes
Http://opendatacommunities.org/id/metropolitan-district-council/leeds,Leeds City Council,31/07/2020,Resources and Housing,Technology  ,Employees,Agency Staff,8,01/06/2020,2007-00251,0.00,75775.17,R,Adecco Alfred Marks,Yes
Http://opendatacommunities.org/id/metropolitan-district-council/leeds,Leeds City Council,31/07/2020,Resources and Housing,Technology  ,Employees,Agency Staff,8,05/06/2020,2007-00252,0.00,864.61,R,Adecco Alfred Marks,Yes
Http://opendatacommunities.org/id/metropolitan-district-council/leeds,Leeds City Council,31/07/2020,Resources and Housing,Technology  ,Employees,Agency Staff,8,23/06/2020,2007-00253,0.00,300.00,R,Adecco Alfred Marks,Yes
Http://opendatacommunities.org/id/metropolitan-district-council/leeds,Leeds City Council,31/07/2020,Resources and Housing,Technology  ,Employees,Agency Staff,8,29/06/2020,2007-00254,0.00,52497.86,R,Adecco Alfred Marks,Yes
Http://opendatacommunities.org/id/metropolitan-district-council/leeds,Leeds City Council,31/07/2020,City Development,Economic Development,Supplies and Services,Grants To Businesses,243,20/07/2020,2007-00255,0.00,8687.00,R,Adel Dental Practice,No
Http://opendatacommunities.org/id/metropolitan-district-council/leeds,Leeds City Council,31/07/2020,Children and Families,Social Care,Third Party Payments,Services Rendered By Voluntary Sector,505,01/07/2020,2007-00256,0.00,1520.64,R,ADEL PRE SCHOOL,No
Http://opendatacommunities.org/id/metropolitan-district-council/leeds,Leeds City Council,31/07/2020,Children and Families,Social Care,Third Party Payments,Services Rendered By Voluntary Sector,505,03/07/2020,2007-00257,0.00,6710.16,R,ADEL PRE SCHOOL,No
Http://opendatacommunities.org/id/metropolitan-district-council/leeds,Leeds City Council,31/07/2020,Children and Families,Social Care,Third Party Payments,Services Rendered By Other Organisations,511,01/07/2020,2007-00258,0.00,380.16,R,REDACTED PERSONAL DATA,No
Http://opendatacommunities.org/id/metropolitan-district-council/leeds,Leeds City Council,31/07/2020,Children and Families,Social Care,Third Party Payments,Services Rendered By Other Organisations,511,03/07/2020,2007-00259,0.00,758.62,R,REDACTED PERSONAL DATA,No
Http://opendatacommunities.org/id/metropolitan-district-council/leeds,Leeds City Council,31/07/2020,Resources and Housing,Leeds Building Services,Supplies and Services,Operational Materials,205,01/07/2020,2007-00260,0.00,275.30,R,ADI Global,No
Http://opendatacommunities.org/id/metropolitan-district-council/leeds,Leeds City Council,31/07/2020,Resources and Housing,Leeds Building Services,Supplies and Services,Operational Materials,205,01/07/2020,2007-00261,0.00,399.60,R,ADI Global,No
Http://opendatacommunities.org/id/metropolitan-district-council/leeds,Leeds City Council,31/07/2020,Resources and Housing,Leeds Building Services,Supplies and Services,Operational Materials,205,01/07/2020,2007-00262,0.00,1258.81,R,ADI Global,No
Http://opendatacommunities.org/id/metropolitan-district-council/leeds,Leeds City Council,31/07/2020,Communities and Environment,Community Safety  ,Supplies and Services,Other Hired and Contracted Services,265,08/06/2020,2007-00263,0.00,959.92,R,Adi-Gardiner Ltd,Yes
Http://opendatacommunities.org/id/metropolitan-district-council/leeds,Leeds City Council,31/07/2020,City Development,Libraries  Arts & Heritage  ,Supplies and Services,Computer Software & Equipment,214,02/06/2020,2007-00264,0.00,9.98,R,Adobe Photogphy Plan,Yes
Http://opendatacommunities.org/id/metropolitan-district-council/leeds,Leeds City Council,31/07/2020,Children and Families,Social Care,Third Party Payments,Independent Fostering Agencies,509,17/07/2020,2007-00265,0.00,3570.00,R,Adolescent and Childrens Trust,No
Http://opendatacommunities.org/id/metropolitan-district-council/leeds,Leeds City Council,31/07/2020,Children and Families,Social Care,Third Party Payments,Independent Fostering Agencies,509,17/07/2020,2007-00266,0.00,3390.00,R,Adolescent and Childrens Trust,No
Http://opendatacommunities.org/id/metropolitan-district-council/leeds,Leeds City Council,31/07/2020,Children and Families,Social Care,Third Party Payments,Independent Fostering Agencies,509,17/07/2020,2007-00267,0.00,3390.00,R,Adolescent and Childrens Trust,No
Http://opendatacommunities.org/id/metropolitan-district-council/leeds,Leeds City Council,31/07/2020,Children and Families,Social Care,Third Party Payments,Independent Fostering Agencies,509,17/07/2020,2007-00268,0.00,3390.00,R,Adolescent and Childrens Trust,No
Http://opendatacommunities.org/id/metropolitan-district-council/leeds,Leeds City Council,31/07/2020,Children and Families,Social Care,Third Party Payments,Independent Fostering Agencies,509,17/07/2020,2007-00269,0.00,3570.00,R,Adolescent and Childrens Trust,No
Http://opendatacommunities.org/id/metropolitan-district-council/leeds,Leeds City Council,31/07/2020,Children and Families,Social Care,Third Party Payments,Independent Fostering Agencies,509,17/07/2020,2007-00270,0.00,3570.00,R,Adolescent and Childrens Trust,No
Http://opendatacommunities.org/id/metropolitan-district-council/leeds,Leeds City Council,31/07/2020,Children and Families,Social Care,Third Party Payments,Independent Fostering Agencies,509,17/07/2020,2007-00271,0.00,3390.00,R,Adolescent and Childrens Trust,No
Http://opendatacommunities.org/id/metropolitan-district-council/leeds,Leeds City Council,31/07/2020,Children and Families,Social Care,Third Party Payments,Independent Fostering Agencies,509,17/07/2020,2007-00272,0.00,3390.00,R,Adolescent and Childrens Trust,No
Http://opendatacommunities.org/id/metropolitan-district-council/leeds,Leeds City Council,31/07/2020,Children and Families,Social Care,Third Party Payments,Independent Fostering Agencies,509,17/07/2020,2007-00273,0.00,3390.00,R,Adolescent and Childrens Trust,No
Http://opendatacommunities.org/id/metropolitan-district-council/leeds,Leeds City Council,31/07/2020,Children and Families,Social Care,Third Party Payments,Independent Fostering Agencies,509,17/07/2020,2007-00274,0.00,3480.00,R,Adolescent and Childrens Trust,No
Http://opendatacommunities.org/id/metropolitan-district-council/leeds,Leeds City Council,31/07/2020,Children and Families,Social Care,Third Party Payments,Independent Fostering Agencies,509,17/07/2020,2007-00275,0.00,3390.00,R,Adolescent and Childrens Trust,No
Http://opendatacommunities.org/id/metropolitan-district-council/leeds,Leeds City Council,31/07/2020,Children and Families,Social Care,Third Party Payments,Independent Fostering Agencies,509,17/07/2020,2007-00276,0.00,4388.70,R,Adolescent and Childrens Trust,No
Http://opendatacommunities.org/id/metropolitan-district-council/leeds,Leeds City Council,31/07/2020,Children and Families,Social Care,Third Party Payments,Independent Fostering Agencies,509,17/07/2020,2007-00277,0.00,3570.00,R,Adolescent and Childrens Trust,No
Http://opendatacommunities.org/id/metropolitan-district-council/leeds,Leeds City Council,31/07/2020,Children and Families,Social Care,Third Party Payments,Independent Fostering Agencies,509,17/07/2020,2007-00278,0.00,3570.00,R,Adolescent and Childrens Trust,No
Http://opendatacommunities.org/id/metropolitan-district-council/leeds,Leeds City Council as Accountable Body,31/07/2020,Social Services Pooled Budgets,Jcs For People With Learning Disabilitie,Third Party Payments,Residential,580,01/07/2020,2007-00279,0.00,120.43,R,ADRIAN HOUSE,No
Http://opendatacommunities.org/id/metropolitan-district-council/leeds,Leeds City Council as Accountable Body,31/07/2020,Social Services Pooled Budgets,Jcs For People With Learning Disabilitie,Third Party Payments,Residential,580,20/07/2020,2007-00280,0.00,2609.36,R,ADRIAN HOUSE,No
Http://opendatacommunities.org/id/metropolitan-district-council/leeds,Leeds City Council,31/07/2020,Children and Families,Social Care,Third Party Payments,Placement Support,550,24/07/2020,2007-00281,0.00,142.86,R,REDACTED PERSONAL DATA,No
Http://opendatacommunities.org/id/metropolitan-district-council/leeds,Leeds City Council,31/07/2020,City Development,Economic Development,Supplies and Services,Grants To Businesses,243,17/07/2020,2007-00282,0.00,3195.00,R,Ads Fleet Services,No
Http://opendatacommunities.org/id/metropolitan-district-council/leeds,Leeds City Council as Accountable Body,31/07/2020,Social Services Pooled Budgets,Jcs For People With Learning Disabilitie,Third Party Payments,Home Care,568,01/07/2020,2007-00283,0.00,87.11,R,Adult Placement Services,No
Http://opendatacommunities.org/id/metropolitan-district-council/leeds,Leeds City Council,31/07/2020,City Development,Economic Development,Supplies and Services,Grants To Businesses,243,17/07/2020,2007-00284,0.00,4281.00,R,Adventure Photography Ltd,No
Http://opendatacommunities.org/id/metropolitan-district-council/leeds,Leeds City Council,31/07/2020,Adults and Health,Services For Older People - 65 and Over,Third Party Payments,Nursing Home,570,01/07/2020,2007-00285,0.00,1013.41,R,ADVITAM LTD,No
Http://opendatacommunities.org/id/metropolitan-district-council/leeds,Leeds City Council as Accountable Body,31/07/2020,Social Services Pooled Budgets,Jcs For People With Learning Disabilitie,Third Party Payments,Residential,580,22/07/2020,2007-00286,0.00,17134.76,R,ADVITAM LTD,No
Http://opendatacommunities.org/id/metropolitan-district-council/leeds,Leeds City Council,31/07/2020,Adults and Health,Social Services Support Services,Employees,Training & Development,70,06/07/2020,2007-00287,0.00,540.00,R,Advonet,No
Http://opendatacommunities.org/id/metropolitan-district-council/leeds,Leeds City Council as Accountable Body,31/07/2020,Social Services Pooled Budgets,Jcs For People With Learning Disabilitie,Supplies and Services,Other Hired and Contracted Services,265,07/07/2020,2007-00288,0.00,267.60,R,Advonet,No
Http://opendatacommunities.org/id/metropolitan-district-council/leeds,Leeds City Council,31/07/2020,Children and Families,Social Care,Third Party Payments,Section 17,551,08/07/2020,2007-00289,0.00,117.60,R,Advonet,No
Http://opendatacommunities.org/id/metropolitan-district-council/leeds,Leeds City Council,31/07/2020,Children and Families,Social Care,Third Party Payments,Section 17,551,09/07/2020,2007-00290,0.00,240.60,R,Advonet,No
Http://opendatacommunities.org/id/metropolitan-district-council/leeds,Leeds City Council,31/07/2020,Adults and Health,Services For Adults Under 65 Mental/Dis,Third Party Payments,Fees - Level 4,520,07/07/2020,2007-00291,0.00,200.00,R,AE BIA Assessments Limited,No
Http://opendatacommunities.org/id/metropolitan-district-council/leeds,Leeds City Council,31/07/2020,Adults and Health,Services For Adults Under 65 Mental/Dis,Third Party Payments,Fees - Level 4,520,07/07/2020,2007-00292,0.00,200.00,R,AE BIA Assessments Limited,No
Http://opendatacommunities.org/id/metropolitan-district-council/leeds,Leeds City Council,31/07/2020,Adults and Health,Services For Adults Under 65 Mental/Dis,Third Party Payments,Fees - Level 4,520,07/07/2020,2007-00293,0.00,200.00,R,AE BIA Assessments Limited,No
Http://opendatacommunities.org/id/metropolitan-district-council/leeds,Leeds City Council,31/07/2020,Adults and Health,Services For Adults Under 65 Mental/Dis,Third Party Payments,Fees - Level 4,520,07/07/2020,2007-00294,0.00,200.00,R,AE BIA Assessments Limited,No
Http://opendatacommunities.org/id/metropolitan-district-council/leeds,Leeds City Council,31/07/2020,Adults and Health,Services For Adults Under 65 Mental/Dis,Third Party Payments,Fees - Level 4,520,07/07/2020,2007-00295,0.00,200.00,R,AE BIA Assessments Limited,No
Http://opendatacommunities.org/id/metropolitan-district-council/leeds,Leeds City Council,31/07/2020,Adults and Health,Services For Adults Under 65 Mental/Dis,Third Party Payments,Fees - Level 4,520,09/07/2020,2007-00296,0.00,200.00,R,AE BIA Assessments Limited,No
Http://opendatacommunities.org/id/metropolitan-district-council/leeds,Leeds City Council,31/07/2020,Adults and Health,Services For Adults Under 65 Mental/Dis,Third Party Payments,Fees - Level 4,520,10/07/2020,2007-00297,0.00,200.00,R,AE BIA Assessments Limited,No
Http://opendatacommunities.org/id/metropolitan-district-council/leeds,Leeds City Council,31/07/2020,Adults and Health,Services For Adults Under 65 Mental/Dis,Third Party Payments,Fees - Level 4,520,15/07/2020,2007-00298,0.00,200.00,R,AE BIA Assessments Limited,No
Http://opendatacommunities.org/id/metropolitan-district-council/leeds,Leeds City Council,31/07/2020,Adults and Health,Services For Adults Under 65 Mental/Dis,Third Party Payments,Fees - Level 4,520,16/07/2020,2007-00299,0.00,200.00,R,AE BIA Assessments Limited,No
Http://opendatacommunities.org/id/metropolitan-district-council/leeds,Leeds City Council,31/07/2020,City Development,Asset Management Services,Supplies and Services,Consultancy Services,259,06/07/2020,2007-00300,0.00,5000.00,R,Aecom Limited,No
Http://opendatacommunities.org/id/metropolitan-district-council/leeds,Leeds City Council,31/07/2020,City Development,Highways,Capital,OTHER COSTS,7,07/07/2020,2007-00301,0.00,2372.50,C,Aecom Limited,No
Http://opendatacommunities.org/id/metropolitan-district-council/leeds,Leeds City Council,31/07/2020,Adults and Health,Services For Older People - 65 and Over,Third Party Payments,Home Care,568,01/07/2020,2007-00302,0.00,8895.18,R,Aegis Care Solutions Ltd,No
Http://opendatacommunities.org/id/metropolitan-district-council/leeds,Leeds City Council,31/07/2020,Adults and Health,Services For Older People Under 65 P/Dis,Third Party Payments,Home Care,568,01/07/2020,2007-00303,0.00,4093.60,R,Aegis Care Solutions Ltd,No
Http://opendatacommunities.org/id/metropolitan-district-council/leeds,Leeds City Council as Accountable Body,31/07/2020,Social Services Pooled Budgets,Jcs For People With Learning Disabilitie,Third Party Payments,Home Care,568,01/07/2020,2007-00304,0.00,2314.20,R,Aegis Care Solutions Ltd,No
Http://opendatacommunities.org/id/metropolitan-district-council/leeds,Leeds City Council,31/07/2020,Adults and Health,Services For Older People - 65 and Over,Third Party Payments,Home Care,568,01/07/2020,2007-00305,0.00,241.02,R,Aegis Care Solutions Ltd,No
Http://opendatacommunities.org/id/metropolitan-district-council/leeds,Leeds City Council,31/07/2020,Adults and Health,Services For Older People - 65 and Over,Third Party Payments,Home Care,568,01/07/2020,2007-00306,0.00,365.42,R,Aegis Care Solutions Ltd,No
Http://opendatacommunities.org/id/metropolitan-district-council/leeds,Leeds City Council as Accountable Body,31/07/2020,Social Services Pooled Budgets,Jcs For People With Learning Disabilitie,Third Party Payments,Residential,580,01/07/2020,2007-00307,0.00,1.98,R,Aegis Care Solutions Ltd,No
Http://opendatacommunities.org/id/metropolitan-district-council/leeds,Leeds City Council,31/07/2020,Adults and Health,Services For Adults Under 65 Mental/Dis,Third Party Payments,Home Care,568,13/07/2020,2007-00308,0.00,915.13,R,Aegis Care Solutions Ltd,No
Http://opendatacommunities.org/id/metropolitan-district-council/leeds,Leeds City Council,31/07/2020,Adults and Health,Services For Adults Under 65 Mental/Dis,Third Party Payments,Home Care,568,13/07/2020,2007-00309,0.00,1291.30,R,Aegis Care Solutions Ltd,No
Http://opendatacommunities.org/id/metropolitan-district-council/leeds,Leeds City Council,31/07/2020,Adults and Health,Services For Adults Under 65 Mental/Dis,Third Party Payments,Home Care,568,13/07/2020,2007-00310,0.00,364.00,R,Aegis Care Solutions Ltd,No
Http://opendatacommunities.org/id/metropolitan-district-council/leeds,Leeds City Council,31/07/2020,Adults and Health,Services For Adults Under 65 Mental/Dis,Third Party Payments,Home Care,568,13/07/2020,2007-00311,0.00,158.40,R,Aegis Care Solutions Ltd,No
Http://opendatacommunities.org/id/metropolitan-district-council/leeds,Leeds City Council,31/07/2020,Adults and Health,Services For Adults Under 65 Mental/Dis,Third Party Payments,Home Care,568,13/07/2020,2007-00312,0.00,1411.45,R,Aegis Care Solutions Ltd,No
Http://opendatacommunities.org/id/metropolitan-district-council/leeds,Leeds City Council,31/07/2020,Adults and Health,Services For Adults Under 65 Mental/Dis,Third Party Payments,Home Care,568,13/07/2020,2007-00313,0.00,4246.40,R,Aegis Care Solutions Ltd,No
Http://opendatacommunities.org/id/metropolitan-district-council/leeds,Leeds City Council,31/07/2020,Adults and Health,Services For Adults Under 65 Mental/Dis,Third Party Payments,Home Care,568,15/07/2020,2007-00314,0.00,1201.05,R,Aegis Care Solutions Ltd,No
Http://opendatacommunities.org/id/metropolitan-district-council/leeds,Leeds City Council,31/07/2020,Adults and Health,Services For Adults Under 65 Mental/Dis,Third Party Payments,Home Care,568,16/07/2020,2007-00315,0.00,4096.00,R,Aegis Care Solutions Ltd,No
Http://opendatacommunities.org/id/metropolitan-district-council/leeds,Leeds City Council,31/07/2020,Adults and Health,Services For Adults Under 65 Mental/Dis,Third Party Payments,Home Care,568,16/07/2020,2007-00316,0.00,875.50,R,Aegis Care Solutions Ltd,No
Http://opendatacommunities.org/id/metropolitan-district-council/leeds,Leeds City Council,31/07/2020,Adults and Health,Services For Adults Under 65 Mental/Dis,Third Party Payments,Home Care,568,16/07/2020,2007-00317,0.00,1313.60,R,Aegis Care Solutions Ltd,No
Http://opendatacommunities.org/id/metropolitan-district-council/leeds,Leeds City Council,31/07/2020,Adults and Health,Services For Adults Under 65 Mental/Dis,Third Party Payments,Home Care,568,16/07/2020,2007-00318,0.00,1184.60,R,Aegis Care Solutions Ltd,No
Http://opendatacommunities.org/id/metropolitan-district-council/leeds,Leeds City Council,31/07/2020,Adults and Health,Services For Adults Under 65 Mental/Dis,Third Party Payments,Home Care,568,16/07/2020,2007-00319,0.00,1380.95,R,Aegis Care Solutions Ltd,No
Http://opendatacommunities.org/id/metropolitan-district-council/leeds,Leeds City Council,31/07/2020,Adults and Health,Services For Adults Under 65 Mental/Dis,Third Party Payments,Home Care,568,16/07/2020,2007-00320,0.00,284.80,R,Aegis Care Solutions Ltd,No
Http://opendatacommunities.org/id/metropolitan-district-council/leeds,Leeds City Council,31/07/2020,Adults and Health,Services For Adults Under 65 Mental/Dis,Third Party Payments,Home Care,568,16/07/2020,2007-00321,0.00,1941.42,R,Aegis Care Solutions Ltd,No
Http://opendatacommunities.org/id/metropolitan-district-council/leeds,Leeds City Council,31/07/2020,Adults and Health,Services For Adults Under 65 Mental/Dis,Third Party Payments,Home Care,568,20/07/2020,2007-00322,0.00,395.60,R,Aegis Care Solutions Ltd,No
Http://opendatacommunities.org/id/metropolitan-district-council/leeds,Leeds City Council,31/07/2020,Adults and Health,Services For Adults Under 65 Mental/Dis,Third Party Payments,Home Care,568,20/07/2020,2007-00323,0.00,971.00,R,Aegis Care Solutions Ltd,No
Http://opendatacommunities.org/id/metropolitan-district-council/leeds,Leeds City Council,31/07/2020,Adults and Health,Other Adult Services,Third Party Payments,Home Care,568,23/07/2020,2007-00324,0.00,2600.00,R,Aegis Care Solutions Ltd,No
Http://opendatacommunities.org/id/metropolitan-district-council/leeds,Leeds City Council,31/07/2020,Adults and Health,Services For Adults Under 65 Mental/Dis,Third Party Payments,Home Care,568,24/07/2020,2007-00325,0.00,178.00,R,Aegis Care Solutions Ltd,No
Http://opendatacommunities.org/id/metropolitan-district-council/leeds,Leeds City Council,31/07/2020,Adults and Health,Services For Older People - 65 and Over,Third Party Payments,Home Care,568,29/07/2020,2007-00326,0.00,7636.06,R,Aegis Care Solutions Ltd,No
Http://opendatacommunities.org/id/metropolitan-district-council/leeds,Leeds City Council,31/07/2020,Adults and Health,Services For Older People - 65 and Over,Third Party Payments,HCAIT Other,577,29/07/2020,2007-00327,0.00,153.20,R,Aegis Care Solutions Ltd,No
Http://opendatacommunities.org/id/metropolitan-district-council/leeds,Leeds City Council,31/07/2020,Adults and Health,Services For Older People Under 65 P/Dis,Third Party Payments,Home Care,568,29/07/2020,2007-00328,0.00,3070.20,R,Aegis Care Solutions Ltd,No
Http://opendatacommunities.org/id/metropolitan-district-council/leeds,Leeds City Council as Accountable Body,31/07/2020,Social Services Pooled Budgets,Jcs For People With Learning Disabilitie,Third Party Payments,Home Care,568,29/07/2020,2007-00329,0.00,1827.00,R,Aegis Care Solutions Ltd,No
Http://opendatacommunities.org/id/metropolitan-district-council/leeds,Leeds City Council,31/07/2020,City Development,Economic Development,Supplies and Services,Grants To Businesses,243,15/07/2020,2007-00330,0.00,6163.00,R,Aerotech Abrasives Group,No
Http://opendatacommunities.org/id/metropolitan-district-council/leeds,Leeds City Council as Accountable Body,31/07/2020,Social Services Pooled Budgets,Jcs For People With Learning Disabilitie,Third Party Payments,Day Centre,564,01/07/2020,2007-00331,0.00,416.64,R,Affinity Trust,No
Http://opendatacommunities.org/id/metropolitan-district-council/leeds,Leeds City Council as Accountable Body,31/07/2020,Social Services Pooled Budgets,Jcs For People With Learning Disabilitie,Third Party Payments,Home Care,568,01/07/2020,2007-00332,0.00,1485.00,R,Affinity Trust,No
Http://opendatacommunities.org/id/metropolitan-district-council/leeds,Leeds City Council as Accountable Body,31/07/2020,Social Services Pooled Budgets,Jcs For People With Learning Disabilitie,Third Party Payments,Home Care,568,01/07/2020,2007-00333,0.00,1211.04,R,Affinity Trust,No
Http://opendatacommunities.org/id/metropolitan-district-council/leeds,Leeds City Council as Accountable Body,31/07/2020,Social Services Pooled Budgets,Jcs For People With Learning Disabilitie,Third Party Payments,Home Care,568,01/07/2020,2007-00334,0.00,639.20,R,Affinity Trust,No
Http://opendatacommunities.org/id/metropolitan-district-council/leeds,Leeds City Council as Accountable Body,31/07/2020,Social Services Pooled Budgets,Jcs For People With Learning Disabilitie,Third Party Payments,Day Centre,564,01/07/2020,2007-00335,0.00,639.20,R,Affinity Trust,No
Http://opendatacommunities.org/id/metropolitan-district-council/leeds,Leeds City Council as Accountable Body,31/07/2020,Social Services Pooled Budgets,Jcs For People With Learning Disabilitie,Third Party Payments,Home Care,568,01/07/2020,2007-00336,0.00,408.00,R,Affinity Trust,No
Http://opendatacommunities.org/id/metropolitan-district-council/leeds,Leeds City Council as Accountable Body,31/07/2020,Social Services Pooled Budgets,Jcs For People With Learning Disabilitie,Third Party Payments,Home Care,568,01/07/2020,2007-00337,0.00,990.76,R,Affinity Trust,No
Http://opendatacommunities.org/id/metropolitan-district-council/leeds,Leeds City Council as Accountable Body,31/07/2020,Social Services Pooled Budgets,Jcs For People With Learning Disabilitie,Third Party Payments,Home Care,568,01/07/2020,2007-00338,0.00,2948.31,R,Affinity Trust,No
Http://opendatacommunities.org/id/metropolitan-district-council/leeds,Leeds City Council as Accountable Body,31/07/2020,Social Services Pooled Budgets,Jcs For People With Learning Disabilitie,Third Party Payments,Home Care,568,01/07/2020,2007-00339,0.00,204.32,R,Affinity Trust,No
Http://opendatacommunities.org/id/metropolitan-district-council/leeds,Leeds City Council as Accountable Body,31/07/2020,Social Services Pooled Budgets,Jcs For People With Learning Disabilitie,Third Party Payments,Home Care,568,01/07/2020,2007-00340,0.00,1244.68,R,Affinity Trust,No
Http://opendatacommunities.org/id/metropolitan-district-council/leeds,Leeds City Council as Accountable Body,31/07/2020,Social Services Pooled Budgets,Jcs For People With Learning Disabilitie,Third Party Payments,Home Care,568,01/07/2020,2007-00341,0.00,958.80,R,Affinity Trust,No
Http://opendatacommunities.org/id/metropolitan-district-council/leeds,Leeds City Council as Accountable Body,31/07/2020,Social Services Pooled Budgets,Jcs For People With Learning Disabilitie,Third Party Payments,Home Care,568,01/07/2020,2007-00342,0.00,767.04,R,Affinity Trust,No
Http://opendatacommunities.org/id/metropolitan-district-council/leeds,Leeds City Council as Accountable Body,31/07/2020,Social Services Pooled Budgets,Jcs For People With Learning Disabilitie,Third Party Payments,Home Care,568,01/07/2020,2007-00343,0.00,575.28,R,Affinity Trust,No
Http://opendatacommunities.org/id/metropolitan-district-council/leeds,Leeds City Council as Accountable Body,31/07/2020,Social Services Pooled Budgets,Jcs For People With Learning Disabilitie,Third Party Payments,Home Care,568,01/07/2020,2007-00344,0.00,191.76,R,Affinity Trust,No
Http://opendatacommunities.org/id/metropolitan-district-council/leeds,Leeds City Council as Accountable Body,31/07/2020,Social Services Pooled Budgets,Jcs For People With Learning Disabilitie,Third Party Payments,Home Care,568,01/07/2020,2007-00345,0.00,319.60,R,Affinity Trust,No
Http://opendatacommunities.org/id/metropolitan-district-council/leeds,Leeds City Council as Accountable Body,31/07/2020,Social Services Pooled Budgets,Jcs For People With Learning Disabilitie,Third Party Payments,Home Care,568,01/07/2020,2007-00346,0.00,420.00,R,Affinity Trust,No
Http://opendatacommunities.org/id/metropolitan-district-council/leeds,Leeds City Council as Accountable Body,31/07/2020,Social Services Pooled Budgets,Jcs For People With Learning Disabilitie,Third Party Payments,Day Centre,564,01/07/2020,2007-00347,0.00,1440.00,R,Affinity Trust,No
Http://opendatacommunities.org/id/metropolitan-district-council/leeds,Leeds City Council as Accountable Body,31/07/2020,Social Services Pooled Budgets,Jcs For People With Learning Disabilitie,Third Party Payments,Home Care,568,01/07/2020,2007-00348,0.00,1080.00,R,Affinity Trust,No
Http://opendatacommunities.org/id/metropolitan-district-council/leeds,Leeds City Council as Accountable Body,31/07/2020,Social Services Pooled Budgets,Jcs For People With Learning Disabilitie,Third Party Payments,Home Care,568,01/07/2020,2007-00349,0.00,2040.00,R,Affinity Trust,No
Http://opendatacommunities.org/id/metropolitan-district-council/leeds,Leeds City Council as Accountable Body,31/07/2020,Social Services Pooled Budgets,Jcs For People With Learning Disabilitie,Third Party Payments,Day Centre,564,01/07/2020,2007-00350,0.00,330.66,R,Affinity Trust,No
Http://opendatacommunities.org/id/metropolitan-district-council/leeds,Leeds City Council as Accountable Body,31/07/2020,Social Services Pooled Budgets,Jcs For People With Learning Disabilitie,Third Party Payments,Home Care,568,01/07/2020,2007-00351,0.00,1365.00,R,Affinity Trust,No
Http://opendatacommunities.org/id/metropolitan-district-council/leeds,Leeds City Council as Accountable Body,31/07/2020,Social Services Pooled Budgets,Jcs For People With Learning Disabilitie,Third Party Payments,Home Care,568,01/07/2020,2007-00352,0.00,2752.80,R,Affinity Trust,No
Http://opendatacommunities.org/id/metropolitan-district-council/leeds,Leeds City Council as Accountable Body,31/07/2020,Social Services Pooled Budgets,Jcs For People With Learning Disabilitie,Third Party Payments,Home Care,568,01/07/2020,2007-00353,0.00,1980.00,R,Affinity Trust,No
Http://opendatacommunities.org/id/metropolitan-district-council/leeds,Leeds City Council as Accountable Body,31/07/2020,Social Services Pooled Budgets,Jcs For People With Learning Disabilitie,Third Party Payments,Day Centre,564,01/07/2020,2007-00354,0.00,947.97,R,Affinity Trust,No
Http://opendatacommunities.org/id/metropolitan-district-council/leeds,Leeds City Council as Accountable Body,31/07/2020,Social Services Pooled Budgets,Jcs For People With Learning Disabilitie,Third Party Payments,Day Centre,564,01/07/2020,2007-00355,0.00,2031.48,R,Affinity Trust,No
Http://opendatacommunities.org/id/metropolitan-district-council/leeds,Leeds City Council as Accountable Body,31/07/2020,Social Services Pooled Budgets,Jcs For People With Learning Disabilitie,Third Party Payments,Home Care,568,01/07/2020,2007-00356,0.00,594.06,R,Affinity Trust,No
Http://opendatacommunities.org/id/metropolitan-district-council/leeds,Leeds City Council as Accountable Body,31/07/2020,Social Services Pooled Budgets,Jcs For People With Learning Disabilitie,Third Party Payments,Home Care,568,01/07/2020,2007-00357,0.00,2731.54,R,Affinity Trust,No
Http://opendatacommunities.org/id/metropolitan-district-council/leeds,Leeds City Council as Accountable Body,31/07/2020,Social Services Pooled Budgets,Jcs For People With Learning Disabilitie,Third Party Payments,Home Care,568,01/07/2020,2007-00358,0.00,1503.69,R,Affinity Trust,No
Http://opendatacommunities.org/id/metropolitan-district-council/leeds,Leeds City Council as Accountable Body,31/07/2020,Social Services Pooled Budgets,Jcs For People With Learning Disabilitie,Third Party Payments,Home Care,568,01/07/2020,2007-00359,0.00,1271.97,R,Affinity Trust,No
Http://opendatacommunities.org/id/metropolitan-district-council/leeds,Leeds City Council as Accountable Body,31/07/2020,Social Services Pooled Budgets,Jcs For People With Learning Disabilitie,Third Party Payments,Home Care,568,01/07/2020,2007-00360,0.00,1755.99,R,Affinity Trust,No
Http://opendatacommunities.org/id/metropolitan-district-council/leeds,Leeds City Council as Accountable Body,31/07/2020,Social Services Pooled Budgets,Jcs For People With Learning Disabilitie,Third Party Payments,Home Care,568,01/07/2020,2007-00361,0.00,1005.60,R,Affinity Trust,No
Http://opendatacommunities.org/id/metropolitan-district-council/leeds,Leeds City Council as Accountable Body,31/07/2020,Social Services Pooled Budgets,Jcs For People With Learning Disabilitie,Third Party Payments,Day Centre,564,01/07/2020,2007-00362,0.00,714.78,R,Affinity Trust,No
Http://opendatacommunities.org/id/metropolitan-district-council/leeds,Leeds City Council as Accountable Body,31/07/2020,Social Services Pooled Budgets,Jcs For People With Learning Disabilitie,Third Party Payments,Home Care,568,01/07/2020,2007-00363,0.00,2346.40,R,Affinity Trust,No
Http://opendatacommunities.org/id/metropolitan-district-council/leeds,Leeds City Council as Accountable Body,31/07/2020,Social Services Pooled Budgets,Jcs For People With Learning Disabilitie,Third Party Payments,Day Centre,564,01/07/2020,2007-00364,0.00,1234.62,R,Affinity Trust,No
Http://opendatacommunities.org/id/metropolitan-district-council/leeds,Leeds City Council as Accountable Body,31/07/2020,Social Services Pooled Budgets,Jcs For People With Learning Disabilitie,Third Party Payments,Home Care,568,01/07/2020,2007-00365,0.00,1342.32,R,Affinity Trust,No
Http://opendatacommunities.org/id/metropolitan-district-council/leeds,Leeds City Council as Accountable Body,31/07/2020,Social Services Pooled Budgets,Jcs For People With Learning Disabilitie,Third Party Payments,Home Care,568,01/07/2020,2007-00366,0.00,575.28,R,Affinity Trust,No
Http://opendatacommunities.org/id/metropolitan-district-council/leeds,Leeds City Council as Accountable Body,31/07/2020,Social Services Pooled Budgets,Jcs For People With Learning Disabilitie,Third Party Payments,Home Care,568,01/07/2020,2007-00367,0.00,990.76,R,Affinity Trust,No
Http://opendatacommunities.org/id/metropolitan-district-council/leeds,Leeds City Council as Accountable Body,31/07/2020,Social Services Pooled Budgets,Jcs For People With Learning Disabilitie,Third Party Payments,Day Centre,564,01/07/2020,2007-00368,0.00,416.64,R,Affinity Trust,No
Http://opendatacommunities.org/id/metropolitan-district-council/leeds,Leeds City Council as Accountable Body,31/07/2020,Social Services Pooled Budgets,Jcs For People With Learning Disabilitie,Third Party Payments,Home Care,568,01/07/2020,2007-00369,0.00,1476.75,R,Affinity Trust,No
Http://opendatacommunities.org/id/metropolitan-district-council/leeds,Leeds City Council as Accountable Body,31/07/2020,Social Services Pooled Budgets,Jcs For People With Learning Disabilitie,Third Party Payments,Home Care,568,01/07/2020,2007-00370,0.00,1211.04,R,Affinity Trust,No
Http://opendatacommunities.org/id/metropolitan-district-council/leeds,Leeds City Council as Accountable Body,31/07/2020,Social Services Pooled Budgets,Jcs For People With Learning Disabilitie,Third Party Payments,Home Care,568,01/07/2020,2007-00371,0.00,639.20,R,Affinity Trust,No
Http://opendatacommunities.org/id/metropolitan-district-council/leeds,Leeds City Council as Accountable Body,31/07/2020,Social Services Pooled Budgets,Jcs For People With Learning Disabilitie,Third Party Payments,Day Centre,564,01/07/2020,2007-00372,0.00,639.20,R,Affinity Trust,No
Http://opendatacommunities.org/id/metropolitan-district-council/leeds,Leeds City Council as Accountable Body,31/07/2020,Social Services Pooled Budgets,Jcs For People With Learning Disabilitie,Third Party Payments,Home Care,568,01/07/2020,2007-00373,0.00,408.00,R,Affinity Trust,No
Http://opendatacommunities.org/id/metropolitan-district-council/leeds,Leeds City Council as Accountable Body,31/07/2020,Social Services Pooled Budgets,Jcs For People With Learning Disabilitie,Third Party Payments,Home Care,568,01/07/2020,2007-00374,0.00,1086.64,R,Affinity Trust,No
Http://opendatacommunities.org/id/metropolitan-district-council/leeds,Leeds City Council as Accountable Body,31/07/2020,Social Services Pooled Budgets,Jcs For People With Learning Disabilitie,Third Party Payments,Home Care,568,01/07/2020,2007-00375,0.00,408.64,R,Affinity Trust,No
Http://opendatacommunities.org/id/metropolitan-district-council/leeds,Leeds City Council as Accountable Body,31/07/2020,Social Services Pooled Budgets,Jcs For People With Learning Disabilitie,Third Party Payments,Home Care,568,01/07/2020,2007-00376,0.00,941.92,R,Affinity Trust,No
Http://opendatacommunities.org/id/metropolitan-district-council/leeds,Leeds City Council as Accountable Body,31/07/2020,Social Services Pooled Budgets,Jcs For People With Learning Disabilitie,Third Party Payments,Home Care,568,01/07/2020,2007-00377,0.00,958.80,R,Affinity Trust,No
Http://opendatacommunities.org/id/metropolitan-district-council/leeds,Leeds City Council as Accountable Body,31/07/2020,Social Services Pooled Budgets,Jcs For People With Learning Disabilitie,Third Party Payments,Home Care,568,01/07/2020,2007-00378,0.00,767.04,R,Affinity Trust,No
Http://opendatacommunities.org/id/metropolitan-district-council/leeds,Leeds City Council as Accountable Body,31/07/2020,Social Services Pooled Budgets,Jcs For People With Learning Disabilitie,Third Party Payments,Home Care,568,01/07/2020,2007-00379,0.00,639.20,R,Affinity Trust,No
Http://opendatacommunities.org/id/metropolitan-district-council/leeds,Leeds City Council as Accountable Body,31/07/2020,Social Services Pooled Budgets,Jcs For People With Learning Disabilitie,Third Party Payments,Home Care,568,01/07/2020,2007-00380,0.00,255.68,R,Affinity Trust,No
Http://opendatacommunities.org/id/metropolitan-district-council/leeds,Leeds City Council as Accountable Body,31/07/2020,Social Services Pooled Budgets,Jcs For People With Learning Disabilitie,Third Party Payments,Home Care,568,01/07/2020,2007-00381,0.00,319.60,R,Affinity Trust,No
Http://opendatacommunities.org/id/metropolitan-district-council/leeds,Leeds City Council as Accountable Body,31/07/2020,Social Services Pooled Budgets,Jcs For People With Learning Disabilitie,Third Party Payments,Home Care,568,01/07/2020,2007-00382,0.00,420.00,R,Affinity Trust,No
Http://opendatacommunities.org/id/metropolitan-district-council/leeds,Leeds City Council as Accountable Body,31/07/2020,Social Services Pooled Budgets,Jcs For People With Learning Disabilitie,Third Party Payments,Home Care,568,01/07/2020,2007-00383,0.00,4426.46,R,Affinity Trust,No
Http://opendatacommunities.org/id/metropolitan-district-council/leeds,Leeds City Council as Accountable Body,31/07/2020,Social Services Pooled Budgets,Jcs For People With Learning Disabilitie,Third Party Payments,Home Care,568,01/07/2020,2007-00384,0.00,1080.00,R,Affinity Trust,No
Http://opendatacommunities.org/id/metropolitan-district-council/leeds,Leeds City Council as Accountable Body,31/07/2020,Social Services Pooled Budgets,Jcs For People With Learning Disabilitie,Third Party Payments,Home Care,568,01/07/2020,2007-00385,0.00,240.00,R,Affinity Trust,No
Http://opendatacommunities.org/id/metropolitan-district-council/leeds,Leeds City Council as Accountable Body,31/07/2020,Social Services Pooled Budgets,Jcs For People With Learning Disabilitie,Third Party Payments,Day Centre,564,01/07/2020,2007-00386,0.00,720.00,R,Affinity Trust,No
Http://opendatacommunities.org/id/metropolitan-district-council/leeds,Leeds City Council as Accountable Body,31/07/2020,Social Services Pooled Budgets,Jcs For People With Learning Disabilitie,Third Party Payments,Home Care,568,01/07/2020,2007-00387,0.00,1560.00,R,Affinity Trust,No
Http://opendatacommunities.org/id/metropolitan-district-council/leeds,Leeds City Council as Accountable Body,31/07/2020,Social Services Pooled Budgets,Jcs For People With Learning Disabilitie,Third Party Payments,Home Care,568,01/07/2020,2007-00388,0.00,2640.00,R,Affinity Trust,No
Http://opendatacommunities.org/id/metropolitan-district-council/leeds,Leeds City Council as Accountable Body,31/07/2020,Social Services Pooled Budgets,Jcs For People With Learning Disabilitie,Third Party Payments,Home Care,568,01/07/2020,2007-00389,0.00,2011.20,R,Affinity Trust,No
Http://opendatacommunities.org/id/metropolitan-district-council/leeds,Leeds City Council as Accountable Body,31/07/2020,Social Services Pooled Budgets,Jcs For People With Learning Disabilitie,Third Party Payments,Home Care,568,01/07/2020,2007-00390,0.00,1980.00,R,Affinity Trust,No
Http://opendatacommunities.org/id/metropolitan-district-council/leeds,Leeds City Council as Accountable Body,31/07/2020,Social Services Pooled Budgets,Jcs For People With Learning Disabilitie,Third Party Payments,Day Centre,564,01/07/2020,2007-00391,0.00,1080.00,R,Affinity Trust,No
Http://opendatacommunities.org/id/metropolitan-district-council/leeds,Leeds City Council as Accountable Body,31/07/2020,Social Services Pooled Budgets,Jcs For People With Learning Disabilitie,Third Party Payments,Day Centre,564,01/07/2020,2007-00392,0.00,2031.48,R,Affinity Trust,No
Http://opendatacommunities.org/id/metropolitan-district-council/leeds,Leeds City Council as Accountable Body,31/07/2020,Social Services Pooled Budgets,Jcs For People With Learning Disabilitie,Third Party Payments,Day Centre,564,01/07/2020,2007-00393,0.00,525.72,R,Affinity Trust,No
Http://opendatacommunities.org/id/metropolitan-district-council/leeds,Leeds City Council as Accountable Body,31/07/2020,Social Services Pooled Budgets,Jcs For People With Learning Disabilitie,Third Party Payments,Home Care,568,01/07/2020,2007-00394,0.00,804.48,R,Affinity Trust,No
Http://opendatacommunities.org/id/metropolitan-district-council/leeds,Leeds City Council as Accountable Body,31/07/2020,Social Services Pooled Budgets,Jcs For People With Learning Disabilitie,Third Party Payments,Home Care,568,01/07/2020,2007-00395,0.00,1800.00,R,Affinity Trust,No
Http://opendatacommunities.org/id/metropolitan-district-council/leeds,Leeds City Council as Accountable Body,31/07/2020,Social Services Pooled Budgets,Jcs For People With Learning Disabilitie,Third Party Payments,Home Care,568,01/07/2020,2007-00396,0.00,1005.60,R,Affinity Trust,No
Http://opendatacommunities.org/id/metropolitan-district-council/leeds,Leeds City Council as Accountable Body,31/07/2020,Social Services Pooled Budgets,Jcs For People With Learning Disabilitie,Third Party Payments,Home Care,568,01/07/2020,2007-00397,0.00,360.00,R,Affinity Trust,No
Http://opendatacommunities.org/id/metropolitan-district-council/leeds,Leeds City Council as Accountable Body,31/07/2020,Social Services Pooled Budgets,Jcs For People With Learning Disabilitie,Third Party Payments,Day Centre,564,01/07/2020,2007-00398,0.00,714.78,R,Affinity Trust,No
Http://opendatacommunities.org/id/metropolitan-district-council/leeds,Leeds City Council as Accountable Body,31/07/2020,Social Services Pooled Budgets,Jcs For People With Learning Disabilitie,Third Party Payments,Home Care,568,01/07/2020,2007-00399,0.00,2346.40,R,Affinity Trust,No
Http://opendatacommunities.org/id/metropolitan-district-council/leeds,Leeds City Council as Accountable Body,31/07/2020,Social Services Pooled Budgets,Jcs For People With Learning Disabilitie,Third Party Payments,Day Centre,564,01/07/2020,2007-00400,0.00,1440.00,R,Affinity Trust,No
Http://opendatacommunities.org/id/metropolitan-district-council/leeds,Leeds City Council,31/07/2020,Adults and Health,Services For Older People - 65 and Over,Third Party Payments,Home Care,568,01/07/2020,2007-00401,0.00,58.84,R,Affinity Trust,No
Http://opendatacommunities.org/id/metropolitan-district-council/leeds,Leeds City Council,31/07/2020,Adults and Health,Services For Older People - 65 and Over,Third Party Payments,Home Care,568,01/07/2020,2007-00402,0.00,17.31,R,Affinity Trust,No
Http://opendatacommunities.org/id/metropolitan-district-council/leeds,Leeds City Council as Accountable Body,31/07/2020,Social Services Pooled Budgets,Jcs For People With Learning Disabilitie,Third Party Payments,Sheltered Accommodation,569,01/07/2020,2007-00403,0.00,1695.79,R,Affinity Trust,No
Http://opendatacommunities.org/id/metropolitan-district-council/leeds,Leeds City Council as Accountable Body,31/07/2020,Social Services Pooled Budgets,Jcs For People With Learning Disabilitie,Third Party Payments,Day Centre,564,06/07/2020,2007-00404,0.00,525.72,R,Affinity Trust,No
Http://opendatacommunities.org/id/metropolitan-district-council/leeds,Leeds City Council as Accountable Body,31/07/2020,Social Services Pooled Budgets,Jcs For People With Learning Disabilitie,Third Party Payments,Home Care,568,06/07/2020,2007-00405,0.00,553.08,R,Affinity Trust,No
Http://opendatacommunities.org/id/metropolitan-district-council/leeds,Leeds City Council as Accountable Body,31/07/2020,Social Services Pooled Budgets,Jcs For People With Learning Disabilitie,Third Party Payments,Home Care,568,08/07/2020,2007-00406,0.00,770.96,R,Affinity Trust,No
Http://opendatacommunities.org/id/metropolitan-district-council/leeds,Leeds City Council as Accountable Body,31/07/2020,Social Services Pooled Budgets,Jcs For People With Learning Disabilitie,Third Party Payments,Home Care,568,08/07/2020,2007-00407,0.00,1342.32,R,Affinity Trust,No
Http://opendatacommunities.org/id/metropolitan-district-council/leeds,Leeds City Council as Accountable Body,31/07/2020,Social Services Pooled Budgets,Jcs For People With Learning Disabilitie,Third Party Payments,Home Care,568,08/07/2020,2007-00408,0.00,575.28,R,Affinity Trust,No
Http://opendatacommunities.org/id/metropolitan-district-council/leeds,Leeds City Council as Accountable Body,31/07/2020,Social Services Pooled Budgets,Jcs For People With Learning Disabilitie,Third Party Payments,Home Care,568,08/07/2020,2007-00409,0.00,990.76,R,Affinity Trust,No
Http://opendatacommunities.org/id/metropolitan-district-council/leeds,Leeds City Council as Accountable Body,31/07/2020,Social Services Pooled Budgets,Jcs For People With Learning Disabilitie,Third Party Payments,Home Care,568,08/07/2020,2007-00410,0.00,319.60,R,Affinity Trust,No
Http://opendatacommunities.org/id/metropolitan-district-council/leeds,Leeds City Council,31/07/2020,Adults and Health,Services For Older People - 65 and Over,Third Party Payments,HCAIT Community Support,575,08/07/2020,2007-00411,0.00,575.28,R,Affinity Trust,No
Http://opendatacommunities.org/id/metropolitan-district-council/leeds,Leeds City Council as Accountable Body,31/07/2020,Social Services Pooled Budgets,Jcs For People With Learning Disabilitie,Third Party Payments,Day Centre,564,08/07/2020,2007-00412,0.00,416.64,R,Affinity Trust,No
Http://opendatacommunities.org/id/metropolitan-district-council/leeds,Leeds City Council as Accountable Body,31/07/2020,Social Services Pooled Budgets,Jcs For People With Learning Disabilitie,Third Party Payments,Home Care,568,08/07/2020,2007-00413,0.00,1542.75,R,Affinity Trust,No
Http://opendatacommunities.org/id/metropolitan-district-council/leeds,Leeds City Council as Accountable Body,31/07/2020,Social Services Pooled Budgets,Jcs For People With Learning Disabilitie,Third Party Payments,Home Care,568,08/07/2020,2007-00414,0.00,1211.04,R,Affinity Trust,No
Http://opendatacommunities.org/id/metropolitan-district-council/leeds,Leeds City Council as Accountable Body,31/07/2020,Social Services Pooled Budgets,Jcs For People With Learning Disabilitie,Third Party Payments,Home Care,568,08/07/2020,2007-00415,0.00,639.20,R,Affinity Trust,No
Http://opendatacommunities.org/id/metropolitan-district-council/leeds,Leeds City Council as Accountable Body,31/07/2020,Social Services Pooled Budgets,Jcs For People With Learning Disabilitie,Third Party Payments,Day Centre,564,08/07/2020,2007-00416,0.00,639.20,R,Affinity Trust,No
Http://opendatacommunities.org/id/metropolitan-district-council/leeds,Leeds City Council as Accountable Body,31/07/2020,Social Services Pooled Budgets,Jcs For People With Learning Disabilitie,Third Party Payments,Home Care,568,08/07/2020,2007-00417,0.00,408.00,R,Affinity Trust,No
Http://opendatacommunities.org/id/metropolitan-district-council/leeds,Leeds City Council as Accountable Body,31/07/2020,Social Services Pooled Budgets,Jcs For People With Learning Disabilitie,Third Party Payments,Home Care,568,08/07/2020,2007-00418,0.00,1086.64,R,Affinity Trust,No
Http://opendatacommunities.org/id/metropolitan-district-council/leeds,Leeds City Council as Accountable Body,31/07/2020,Social Services Pooled Budgets,Jcs For People With Learning Disabilitie,Third Party Payments,Home Care,568,08/07/2020,2007-00419,0.00,4226.71,R,Affinity Trust,No
Http://opendatacommunities.org/id/metropolitan-district-council/leeds,Leeds City Council as Accountable Body,31/07/2020,Social Services Pooled Budgets,Jcs For People With Learning Disabilitie,Third Party Payments,Home Care,568,08/07/2020,2007-00420,0.00,408.64,R,Affinity Trust,No
Http://opendatacommunities.org/id/metropolitan-district-council/leeds,Leeds City Council as Accountable Body,31/07/2020,Social Services Pooled Budgets,Jcs For People With Learning Disabilitie,Third Party Payments,Home Care,568,08/07/2020,2007-00421,0.00,941.92,R,Affinity Trust,No
Http://opendatacommunities.org/id/metropolitan-district-council/leeds,Leeds City Council as Accountable Body,31/07/2020,Social Services Pooled Budgets,Jcs For People With Learning Disabilitie,Third Party Payments,Home Care,568,08/07/2020,2007-00422,0.00,958.80,R,Affinity Trust,No
Http://opendatacommunities.org/id/metropolitan-district-council/leeds,Leeds City Council as Accountable Body,31/07/2020,Social Services Pooled Budgets,Jcs For People With Learning Disabilitie,Third Party Payments,Home Care,568,08/07/2020,2007-00423,0.00,767.04,R,Affinity Trust,No
Http://opendatacommunities.org/id/metropolitan-district-council/leeds,Leeds City Council as Accountable Body,31/07/2020,Social Services Pooled Budgets,Jcs For People With Learning Disabilitie,Third Party Payments,Home Care,568,08/07/2020,2007-00424,0.00,639.20,R,Affinity Trust,No
Http://opendatacommunities.org/id/metropolitan-district-council/leeds,Leeds City Council as Accountable Body,31/07/2020,Social Services Pooled Budgets,Jcs For People With Learning Disabilitie,Third Party Payments,Home Care,568,08/07/2020,2007-00425,0.00,255.68,R,Affinity Trust,No
Http://opendatacommunities.org/id/metropolitan-district-council/leeds,Leeds City Council as Accountable Body,31/07/2020,Social Services Pooled Budgets,Jcs For People With Learning Disabilitie,Third Party Payments,Home Care,568,08/07/2020,2007-00426,0.00,319.60,R,Affinity Trust,No
Http://opendatacommunities.org/id/metropolitan-district-council/leeds,Leeds City Council as Accountable Body,31/07/2020,Social Services Pooled Budgets,Jcs For People With Learning Disabilitie,Third Party Payments,Home Care,568,08/07/2020,2007-00427,0.00,420.00,R,Affinity Trust,No
Http://opendatacommunities.org/id/metropolitan-district-council/leeds,Leeds City Council,31/07/2020,Adults and Health,Services For Adults Under 65 Mental/Dis,Third Party Payments,HCAIT Community Support,575,08/07/2020,2007-00428,0.00,336.40,R,Affinity Trust,No
Http://opendatacommunities.org/id/metropolitan-district-council/leeds,Leeds City Council as Accountable Body,31/07/2020,Social Services Pooled Budgets,Jcs For People With Learning Disabilitie,Third Party Payments,Day Centre,564,20/07/2020,2007-00429,0.00,1440.00,R,Affinity Trust,No
Http://opendatacommunities.org/id/metropolitan-district-council/leeds,Leeds City Council as Accountable Body,31/07/2020,Social Services Pooled Budgets,Jcs For People With Learning Disabilitie,Third Party Payments,Home Care,568,20/07/2020,2007-00430,0.00,1080.00,R,Affinity Trust,No
Http://opendatacommunities.org/id/metropolitan-district-council/leeds,Leeds City Council as Accountable Body,31/07/2020,Social Services Pooled Budgets,Jcs For People With Learning Disabilitie,Third Party Payments,Home Care,568,20/07/2020,2007-00431,0.00,2040.00,R,Affinity Trust,No
Http://opendatacommunities.org/id/metropolitan-district-council/leeds,Leeds City Council as Accountable Body,31/07/2020,Social Services Pooled Budgets,Jcs For People With Learning Disabilitie,Third Party Payments,Day Centre,564,20/07/2020,2007-00432,0.00,720.00,R,Affinity Trust,No
Http://opendatacommunities.org/id/metropolitan-district-council/leeds,Leeds City Council as Accountable Body,31/07/2020,Social Services Pooled Budgets,Jcs For People With Learning Disabilitie,Third Party Payments,Home Care,568,20/07/2020,2007-00433,0.00,1560.00,R,Affinity Trust,No
Http://opendatacommunities.org/id/metropolitan-district-council/leeds,Leeds City Council as Accountable Body,31/07/2020,Social Services Pooled Budgets,Jcs For People With Learning Disabilitie,Third Party Payments,Home Care,568,20/07/2020,2007-00434,0.00,2640.00,R,Affinity Trust,No
Http://opendatacommunities.org/id/metropolitan-district-council/leeds,Leeds City Council as Accountable Body,31/07/2020,Social Services Pooled Budgets,Jcs For People With Learning Disabilitie,Third Party Payments,Home Care,568,20/07/2020,2007-00435,0.00,2011.20,R,Affinity Trust,No
Http://opendatacommunities.org/id/metropolitan-district-council/leeds,Leeds City Council as Accountable Body,31/07/2020,Social Services Pooled Budgets,Jcs For People With Learning Disabilitie,Third Party Payments,Home Care,568,20/07/2020,2007-00436,0.00,1980.00,R,Affinity Trust,No
Http://opendatacommunities.org/id/metropolitan-district-council/leeds,Leeds City Council as Accountable Body,31/07/2020,Social Services Pooled Budgets,Jcs For People With Learning Disabilitie,Third Party Payments,Day Centre,564,20/07/2020,2007-00437,0.00,1080.00,R,Affinity Trust,No
Http://opendatacommunities.org/id/metropolitan-district-council/leeds,Leeds City Council as Accountable Body,31/07/2020,Social Services Pooled Budgets,Jcs For People With Learning Disabilitie,Third Party Payments,Day Centre,564,20/07/2020,2007-00438,0.00,2031.48,R,Affinity Trust,No
Http://opendatacommunities.org/id/metropolitan-district-council/leeds,Leeds City Council as Accountable Body,31/07/2020,Social Services Pooled Budgets,Jcs For People With Learning Disabilitie,Third Party Payments,Home Care,568,20/07/2020,2007-00439,0.00,770.96,R,Affinity Trust,No
Http://opendatacommunities.org/id/metropolitan-district-council/leeds,Leeds City Council as Accountable Body,31/07/2020,Social Services Pooled Budgets,Jcs For People With Learning Disabilitie,Third Party Payments,Day Centre,564,20/07/2020,2007-00440,0.00,525.72,R,Affinity Trust,No
Http://opendatacommunities.org/id/metropolitan-district-council/leeds,Leeds City Council as Accountable Body,31/07/2020,Social Services Pooled Budgets,Jcs For People With Learning Disabilitie,Third Party Payments,Home Care,568,20/07/2020,2007-00441,0.00,804.48,R,Affinity Trust,No
Http://opendatacommunities.org/id/metropolitan-district-council/leeds,Leeds City Council as Accountable Body,31/07/2020,Social Services Pooled Budgets,Jcs For People With Learning Disabilitie,Third Party Payments,Home Care,568,20/07/2020,2007-00442,0.00,1800.00,R,Affinity Trust,No
Http://opendatacommunities.org/id/metropolitan-district-council/leeds,Leeds City Council as Accountable Body,31/07/2020,Social Services Pooled Budgets,Jcs For People With Learning Disabilitie,Third Party Payments,Home Care,568,20/07/2020,2007-00443,0.00,1005.60,R,Affinity Trust,No
Http://opendatacommunities.org/id/metropolitan-district-council/leeds,Leeds City Council as Accountable Body,31/07/2020,Social Services Pooled Budgets,Jcs For People With Learning Disabilitie,Third Party Payments,Home Care,568,20/07/2020,2007-00444,0.00,360.00,R,Affinity Trust,No
Http://opendatacommunities.org/id/metropolitan-district-council/leeds,Leeds City Council as Accountable Body,31/07/2020,Social Services Pooled Budgets,Jcs For People With Learning Disabilitie,Third Party Payments,Day Centre,564,20/07/2020,2007-00445,0.00,714.78,R,Affinity Trust,No
Http://opendatacommunities.org/id/metropolitan-district-council/leeds,Leeds City Council as Accountable Body,31/07/2020,Social Services Pooled Budgets,Jcs For People With Learning Disabilitie,Third Party Payments,Home Care,568,20/07/2020,2007-00446,0.00,2346.40,R,Affinity Trust,No
Http://opendatacommunities.org/id/metropolitan-district-council/leeds,Leeds City Council as Accountable Body,31/07/2020,Social Services Pooled Budgets,Jcs For People With Learning Disabilitie,Third Party Payments,Day Centre,564,20/07/2020,2007-00447,0.00,1440.00,R,Affinity Trust,No
Http://opendatacommunities.org/id/metropolitan-district-council/leeds,Leeds City Council as Accountable Body,31/07/2020,Social Services Pooled Budgets,Jcs For People With Learning Disabilitie,Third Party Payments,Home Care,568,27/07/2020,2007-00448,0.00,1811.70,R,Affinity Trust,No
Http://opendatacommunities.org/id/metropolitan-district-council/leeds,Leeds City Council,31/07/2020,Adults and Health,Services For Older People - 65 and Over,Third Party Payments,Home Care,568,27/07/2020,2007-00449,0.00,511.36,R,Affinity Trust,No
Http://opendatacommunities.org/id/metropolitan-district-council/leeds,Leeds City Council as Accountable Body,31/07/2020,Social Services Pooled Budgets,Jcs For People With Learning Disabilitie,Third Party Payments,Home Care,568,27/07/2020,2007-00450,0.00,639.20,R,Affinity Trust,No
Http://opendatacommunities.org/id/metropolitan-district-council/leeds,Leeds City Council,31/07/2020,Adults and Health,Services For Adults Under 65 Mental/Dis,Third Party Payments,Home Care,568,31/07/2020,2007-00451,0.00,511.36,R,Affinity Trust,No
Http://opendatacommunities.org/id/metropolitan-district-council/leeds,Leeds City Council,31/07/2020,Adults and Health,Services For Older People - 65 and Over,Third Party Payments,Nursing Home,570,01/07/2020,2007-00452,0.00,6359.19,R,Affinity Trust North Divisional Office,No
Http://opendatacommunities.org/id/metropolitan-district-council/leeds,Leeds City Council,31/07/2020,Adults and Health,Services For Older People Under 65 P/Dis,Third Party Payments,Sheltered Accommodation,569,22/07/2020,2007-00453,0.00,8290.80,R,Affinity Trust North Divisional Office,No
Http://opendatacommunities.org/id/metropolitan-district-council/leeds,Leeds City Council as Accountable Body,31/07/2020,Social Services Pooled Budgets,Jcs For People With Learning Disabilitie,Third Party Payments,Sheltered Accommodation,569,22/07/2020,2007-00454,0.00,154257.60,R,Affinity Trust North Divisional Office,No
Http://opendatacommunities.org/id/metropolitan-district-council/leeds,Leeds City Council,31/07/2020,Communities and Environment,Parks and Countryside  ,Transport,Hire Of Movable Plant & Machinery,315,02/06/2020,2007-00455,0.00,100.00,R,Afi Uplift,Yes
Http://opendatacommunities.org/id/metropolitan-district-council/leeds,Leeds City Council,31/07/2020,Communities and Environment,Parks and Countryside  ,Transport,External Hire -Occasional,304,02/06/2020,2007-00456,0.00,950.00,R,Afi Uplift,Yes
Http://opendatacommunities.org/id/metropolitan-district-council/leeds,Leeds City Council,31/07/2020,Communities and Environment,Parks and Countryside  ,Transport,Hire Of Movable Plant & Machinery,315,02/06/2020,2007-00457,0.00,100.00,R,Afi Uplift,Yes
Http://opendatacommunities.org/id/metropolitan-district-council/leeds,Leeds City Council,31/07/2020,Communities and Environment,Parks and Countryside  ,Transport,External Hire -Occasional,304,02/06/2020,2007-00458,0.00,950.00,R,Afi Uplift,Yes
Http://opendatacommunities.org/id/metropolitan-district-council/leeds,Leeds City Council,31/07/2020,Communities and Environment,Parks and Countryside  ,Transport,External Hire -Occasional,304,02/06/2020,2007-00459,0.00,950.00,R,Afi Uplift,Yes
Http://opendatacommunities.org/id/metropolitan-district-council/leeds,Leeds City Council,31/07/2020,Communities and Environment,Parks and Countryside  ,Transport,External Hire -Occasional,304,02/06/2020,2007-00460,0.00,950.00,R,Afi Uplift,Yes
Http://opendatacommunities.org/id/metropolitan-district-council/leeds,Leeds City Council,31/07/2020,Communities and Environment,Parks and Countryside  ,Transport,Hire Of Movable Plant & Machinery,315,02/06/2020,2007-00461,0.00,100.00,R,Afi Uplift,Yes
Http://opendatacommunities.org/id/metropolitan-district-council/leeds,Leeds City Council,31/07/2020,Communities and Environment,Parks and Countryside  ,Transport,External Hire -Occasional,304,02/06/2020,2007-00462,0.00,950.00,R,Afi Uplift,Yes
Http://opendatacommunities.org/id/metropolitan-district-council/leeds,Leeds City Council,31/07/2020,Communities and Environment,Parks and Countryside  ,Transport,Hire Of Movable Plant & Machinery,315,02/06/2020,2007-00463,0.00,100.00,R,Afi Uplift,Yes
Http://opendatacommunities.org/id/metropolitan-district-council/leeds,Leeds City Council,31/07/2020,Communities and Environment,Parks and Countryside  ,Transport,Hire Of Movable Plant & Machinery,315,02/06/2020,2007-00464,0.00,100.00,R,Afi Uplift,Yes
Http://opendatacommunities.org/id/metropolitan-district-council/leeds,Leeds City Council,31/07/2020,City Development,Economic Development,Supplies and Services,Grants To Businesses,243,21/07/2020,2007-00465,0.00,4500.00,R,After The Bell,No
Http://opendatacommunities.org/id/metropolitan-district-council/leeds,Leeds City Council,31/07/2020,Adults and Health,Services For Older People - 65 and Over,Third Party Payments,Payments To Voluntary Organisations,561,01/07/2020,2007-00466,0.00,10599.75,R,Age Uk Leeds,No
Http://opendatacommunities.org/id/metropolitan-district-council/leeds,Leeds City Council,31/07/2020,Adults and Health,Public Health,Third Party Payments,Services Rendered By Voluntary Sector,505,16/07/2020,2007-00467,0.00,30000.00,R,Age Uk Leeds,No
Http://opendatacommunities.org/id/metropolitan-district-council/leeds,Leeds City Council,31/07/2020,Communities and Environment,Customer Access,Supplies and Services,Bought In Professional Services,277,22/07/2020,2007-00468,0.00,40.00,R,Agneta L Harrison,No
Http://opendatacommunities.org/id/metropolitan-district-council/leeds,Leeds City Council,31/07/2020,Children and Families,Social Care,Supplies and Services,General Amenity For Clients/Residents,285,08/07/2020,2007-00469,0.00,94.83,R,Agora Business Publications Llp,No
Http://opendatacommunities.org/id/metropolitan-district-council/leeds,Leeds City Council,31/07/2020,Communities and Environment,Parks and Countryside  ,Supplies and Services,Operational Materials,205,09/06/2020,2007-00470,0.00,178.40,R,Agrovista UK Ltd,Yes
Http://opendatacommunities.org/id/metropolitan-district-council/leeds,Leeds City Council,31/07/2020,Communities and Environment,Parks and Countryside  ,Premises,Maintenance Of Buildings,101,17/06/2020,2007-00471,0.00,402.00,R,Agrovista UK Ltd,Yes
Http://opendatacommunities.org/id/metropolitan-district-council/leeds,Leeds City Council,31/07/2020,City Development,Economic Development,Supplies and Services,Grants To Businesses,243,09/07/2020,2007-00472,0.00,9722.00,R,Ahead Partnership Ltd,No
Http://opendatacommunities.org/id/metropolitan-district-council/leeds,Leeds City Council,31/07/2020,Communities and Environment,Customer Access,Supplies and Services,Bought In Professional Services,277,01/07/2020,2007-00473,0.00,18.00,R,Ahmed Moustafa Moustafa Mousa,No
Http://opendatacommunities.org/id/metropolitan-district-council/leeds,Leeds City Council,31/07/2020,Communities and Environment,Customer Access,Supplies and Services,Bought In Professional Services,277,22/07/2020,2007-00474,0.00,18.00,R,Ahmed Moustafa Moustafa Mousa,No
Http://opendatacommunities.org/id/metropolitan-district-council/leeds,Leeds City Council,31/07/2020,Communities and Environment,Customer Access,Supplies and Services,Bought In Professional Services,277,29/07/2020,2007-00475,0.00,9.00,R,Ahmed Moustafa Moustafa Mousa,No
Http://opendatacommunities.org/id/metropolitan-district-council/leeds,Leeds City Council as Accountable Body,31/07/2020,Social Services Pooled Budgets,Leeds Community Equip Store Pooled Budgt,Supplies and Services,Other Equipment,203,08/07/2020,2007-00476,0.00,71.50,R,AIDAPT BATHROOMS LTD,No
Http://opendatacommunities.org/id/metropolitan-district-council/leeds,Leeds City Council as Accountable Body,31/07/2020,Social Services Pooled Budgets,Leeds Community Equip Store Pooled Budgt,Supplies and Services,Other Equipment,203,10/07/2020,2007-00477,0.00,814.30,R,AIDAPT BATHROOMS LTD,No
Http://opendatacommunities.org/id/metropolitan-district-council/leeds,Leeds City Council,31/07/2020,Resources and Housing,HRA Housing Leeds,Capital,OTHER COSTS,7,15/07/2020,2007-00478,0.00,80.00,C,REDACTED PERSONAL DATA,No
Http://opendatacommunities.org/id/metropolitan-district-council/leeds,Leeds City Council,31/07/2020,Resources and Housing,Leeds Building Services,Supplies and Services,Operational Materials,205,22/07/2020,2007-00479,0.00,3689.35,R,Air Conditioning Accessories,No
Http://opendatacommunities.org/id/metropolitan-district-council/leeds,Leeds City Council,31/07/2020,Resources and Housing,Leeds Building Services,Supplies and Services,Operational Materials,205,22/07/2020,2007-00480,0.00,1209.00,R,Air Conditioning Accessories,No
Http://opendatacommunities.org/id/metropolitan-district-council/leeds,Leeds City Council,31/07/2020,Communities and Environment,Environmental Health,Supplies and Services,Other Hired and Contracted Services,265,06/07/2020,2007-00481,0.00,10.45,R,AIR LIQUIDE UK,No
Http://opendatacommunities.org/id/metropolitan-district-council/leeds,Leeds City Council,31/07/2020,Communities and Environment,Environmental Health,Supplies and Services,Other Hired and Contracted Services,265,06/07/2020,2007-00482,0.00,10.45,R,AIR LIQUIDE UK,No
Http://opendatacommunities.org/id/metropolitan-district-council/leeds,Leeds City Council,31/07/2020,Communities and Environment,Environmental Health,Supplies and Services,Other Hired and Contracted Services,265,06/07/2020,2007-00483,0.00,15.93,R,AIR LIQUIDE UK,No
Http://opendatacommunities.org/id/metropolitan-district-council/leeds,Leeds City Council,31/07/2020,Communities and Environment,Environmental Health,Supplies and Services,Other Hired and Contracted Services,265,06/07/2020,2007-00484,0.00,73.15,R,AIR LIQUIDE UK,No
Http://opendatacommunities.org/id/metropolitan-district-council/leeds,Leeds City Council,31/07/2020,Communities and Environment,Environmental Health,Supplies and Services,Other Hired and Contracted Services,265,06/07/2020,2007-00485,0.00,10.45,R,AIR LIQUIDE UK,No
Http://opendatacommunities.org/id/metropolitan-district-council/leeds,Leeds City Council,31/07/2020,Communities and Environment,Environmental Health,Supplies and Services,Other Hired and Contracted Services,265,06/07/2020,2007-00486,0.00,10.45,R,AIR LIQUIDE UK,No
Http://opendatacommunities.org/id/metropolitan-district-council/leeds,Leeds City Council,31/07/2020,Communities and Environment,Environmental Health,Supplies and Services,Other Hired and Contracted Services,265,06/07/2020,2007-00487,0.00,15.93,R,AIR LIQUIDE UK,No
Http://opendatacommunities.org/id/metropolitan-district-council/leeds,Leeds City Council,31/07/2020,Communities and Environment,Environmental Health,Supplies and Services,Other Hired and Contracted Services,265,06/07/2020,2007-00488,0.00,73.15,R,AIR LIQUIDE UK,No
Http://opendatacommunities.org/id/metropolitan-district-council/leeds,Leeds City Council,31/07/2020,Resources and Housing,Leeds Building Services,Supplies and Services,Operational Materials,205,31/07/2020,2007-00489,0.00,196.32,R,AIR LIQUIDE UK,No
Http://opendatacommunities.org/id/metropolitan-district-council/leeds,Leeds City Council,31/07/2020,Resources and Housing,Strategic Housing Partnerships,Capital,CONSTRUCTION,3,14/07/2020,2007-00490,0.00,10000.00,C,Aire Building Services Ltd,No
Http://opendatacommunities.org/id/metropolitan-district-council/leeds,Leeds City Council,31/07/2020,Resources and Housing,Digital and Information Services,Capital,OTHER COSTS,7,20/07/2020,2007-00491,0.00,90487.50,C,Aire Logic Ltd,No
Http://opendatacommunities.org/id/metropolitan-district-council/leeds,Leeds City Council,31/07/2020,Communities and Environment,Parks and Countryside,Supplies and Services,Other Hired and Contracted Services,265,06/07/2020,2007-00492,0.00,750.00,R,Aire Valley Tree Services Ltd,No
Http://opendatacommunities.org/id/metropolitan-district-council/leeds,Leeds City Council,31/07/2020,Communities and Environment,Parks and Countryside,Supplies and Services,Other Hired and Contracted Services,265,14/07/2020,2007-00493,0.00,2225.00,R,Aire Valley Tree Services Ltd,No
Http://opendatacommunities.org/id/metropolitan-district-council/leeds,Leeds City Council,31/07/2020,Communities and Environment,Parks and Countryside,Supplies and Services,Other Hired and Contracted Services,265,15/07/2020,2007-00494,0.00,430.00,R,Aire Valley Tree Services Ltd,No
Http://opendatacommunities.org/id/metropolitan-district-council/leeds,Leeds City Council,31/07/2020,Communities and Environment,Parks and Countryside,Supplies and Services,Other Hired and Contracted Services,265,15/07/2020,2007-00495,0.00,280.00,R,Aire Valley Tree Services Ltd,No
Http://opendatacommunities.org/id/metropolitan-district-council/leeds,Leeds City Council,31/07/2020,Adults and Health,Services For Older People - 65 and Over,Third Party Payments,Nursing Home,570,01/07/2020,2007-00496,0.00,4130.53,R,Aire View Residential Home,No
Http://opendatacommunities.org/id/metropolitan-district-council/leeds,Leeds City Council,31/07/2020,Adults and Health,Services For Older People - 65 and Over,Third Party Payments,Residential Care Dementia,571,22/07/2020,2007-00497,0.00,36158.82,R,Aire View Residential Home,No
Http://opendatacommunities.org/id/metropolitan-district-council/leeds,Leeds City Council,31/07/2020,Adults and Health,Services For Older People - 65 and Over,Third Party Payments,Residential,580,22/07/2020,2007-00498,0.00,7617.58,R,Aire View Residential Home,No
Http://opendatacommunities.org/id/metropolitan-district-council/leeds,Leeds City Council,31/07/2020,Adults and Health,Services For Older People - 65 and Over,Third Party Payments,Nursing Home,570,01/07/2020,2007-00499,0.00,1561.53,R,Airedale Care Home,No
Http://opendatacommunities.org/id/metropolitan-district-council/leeds,Leeds City Council,31/07/2020,Adults and Health,Services For Older People - 65 and Over,Third Party Payments,Residential Care Dementia,571,22/07/2020,2007-00500,0.00,1511.60,R,Airedale Care Home,No
Http://opendatacommunities.org/id/metropolitan-district-council/leeds,Leeds City Council,31/07/2020,Adults and Health,Services For Older People - 65 and Over,Third Party Payments,Residential,580,22/07/2020,2007-00501,0.00,24018.75,R,Airedale Care Home,No
Http://opendatacommunities.org/id/metropolitan-district-council/leeds,Leeds City Council,31/07/2020,Resources and Housing,Commercial Services,Supplies and Services,Operational Furniture and Equipment,203,14/07/2020,2007-00502,0.00,1596.00,R,AIREDALE CATERING EQUIPMENT LTD,No
Http://opendatacommunities.org/id/metropolitan-district-council/leeds,Leeds City Council,31/07/2020,Resources and Housing,Commercial Services,Premises,Fixtures & Fittings,131,20/07/2020,2007-00503,0.00,26268.00,R,AIREDALE CATERING EQUIPMENT LTD,No
Http://opendatacommunities.org/id/metropolitan-district-council/leeds,Leeds City Council,31/07/2020,Resources and Housing,Leeds Building Services,Supplies and Services,Other Hired and Contracted Services,265,22/07/2020,2007-00504,0.00,2533.00,R,AIREDALE CATERING EQUIPMENT LTD,No
Http://opendatacommunities.org/id/metropolitan-district-council/leeds,Leeds City Council,31/07/2020,Communities and Environment,Waste Management  ,Transport,Public Transport Expenses,310,18/06/2020,2007-00505,0.00,17.25,R,Airpay Global Limited,Yes
Http://opendatacommunities.org/id/metropolitan-district-council/leeds,Leeds City Council,31/07/2020,Adults and Health,Services For Adults Under 65 Mental/Dis,Third Party Payments,Services Provided By Other NHS Bodies,522,01/07/2020,2007-00506,0.00,175.00,R,AIT Mitra Limited,No
Http://opendatacommunities.org/id/metropolitan-district-council/leeds,Leeds City Council,31/07/2020,Adults and Health,Services For Adults Under 65 Mental/Dis,Third Party Payments,Services Provided By Other NHS Bodies,522,01/07/2020,2007-00507,0.00,175.00,R,AIT Mitra Limited,No
Http://opendatacommunities.org/id/metropolitan-district-council/leeds,Leeds City Council,31/07/2020,Adults and Health,Services For Adults Under 65 Mental/Dis,Third Party Payments,Services Provided By Other NHS Bodies,522,01/07/2020,2007-00508,0.00,175.00,R,AIT Mitra Limited,No
Http://opendatacommunities.org/id/metropolitan-district-council/leeds,Leeds City Council,31/07/2020,Adults and Health,Services For Adults Under 65 Mental/Dis,Third Party Payments,Services Provided By Other NHS Bodies,522,03/07/2020,2007-00509,0.00,175.00,R,AIT Mitra Limited,No
Http://opendatacommunities.org/id/metropolitan-district-council/leeds,Leeds City Council,31/07/2020,Adults and Health,Services For Adults Under 65 Mental/Dis,Third Party Payments,Services Provided By Other NHS Bodies,522,03/07/2020,2007-00510,0.00,175.00,R,AIT Mitra Limited,No
Http://opendatacommunities.org/id/metropolitan-district-council/leeds,Leeds City Council,31/07/2020,Adults and Health,Services For Adults Under 65 Mental/Dis,Third Party Payments,Services Provided By Other NHS Bodies,522,06/07/2020,2007-00511,0.00,175.00,R,AIT Mitra Limited,No
Http://opendatacommunities.org/id/metropolitan-district-council/leeds,Leeds City Council,31/07/2020,Adults and Health,Services For Adults Under 65 Mental/Dis,Third Party Payments,Services Provided By Other NHS Bodies,522,06/07/2020,2007-00512,0.00,175.00,R,AIT Mitra Limited,No
Http://opendatacommunities.org/id/metropolitan-district-council/leeds,Leeds City Council,31/07/2020,Adults and Health,Services For Adults Under 65 Mental/Dis,Third Party Payments,Services Provided By Other NHS Bodies,522,06/07/2020,2007-00513,0.00,175.00,R,AIT Mitra Limited,No
Http://opendatacommunities.org/id/metropolitan-district-council/leeds,Leeds City Council,31/07/2020,Adults and Health,Services For Adults Under 65 Mental/Dis,Third Party Payments,Services Provided By Other NHS Bodies,522,07/07/2020,2007-00514,0.00,175.00,R,AIT Mitra Limited,No
Http://opendatacommunities.org/id/metropolitan-district-council/leeds,Leeds City Council,31/07/2020,Adults and Health,Services For Adults Under 65 Mental/Dis,Third Party Payments,Services Provided By Other NHS Bodies,522,07/07/2020,2007-00515,0.00,175.00,R,AIT Mitra Limited,No
Http://opendatacommunities.org/id/metropolitan-district-council/leeds,Leeds City Council,31/07/2020,Adults and Health,Services For Adults Under 65 Mental/Dis,Third Party Payments,Services Provided By Other NHS Bodies,522,07/07/2020,2007-00516,0.00,175.00,R,AIT Mitra Limited,No
Http://opendatacommunities.org/id/metropolitan-district-council/leeds,Leeds City Council,31/07/2020,Adults and Health,Services For Adults Under 65 Mental/Dis,Third Party Payments,Services Provided By Other NHS Bodies,522,07/07/2020,2007-00517,0.00,175.00,R,AIT Mitra Limited,No
Http://opendatacommunities.org/id/metropolitan-district-council/leeds,Leeds City Council,31/07/2020,Adults and Health,Services For Adults Under 65 Mental/Dis,Third Party Payments,Services Provided By Other NHS Bodies,522,08/07/2020,2007-00518,0.00,175.00,R,AIT Mitra Limited,No
Http://opendatacommunities.org/id/metropolitan-district-council/leeds,Leeds City Council,31/07/2020,Adults and Health,Services For Adults Under 65 Mental/Dis,Third Party Payments,Services Provided By Other NHS Bodies,522,08/07/2020,2007-00519,0.00,175.00,R,AIT Mitra Limited,No
Http://opendatacommunities.org/id/metropolitan-district-council/leeds,Leeds City Council,31/07/2020,Adults and Health,Services For Adults Under 65 Mental/Dis,Third Party Payments,Services Provided By Other NHS Bodies,522,08/07/2020,2007-00520,0.00,175.00,R,AIT Mitra Limited,No
Http://opendatacommunities.org/id/metropolitan-district-council/leeds,Leeds City Council,31/07/2020,Adults and Health,Services For Adults Under 65 Mental/Dis,Third Party Payments,Services Provided By Other NHS Bodies,522,08/07/2020,2007-00521,0.00,175.00,R,AIT Mitra Limited,No
Http://opendatacommunities.org/id/metropolitan-district-council/leeds,Leeds City Council,31/07/2020,Adults and Health,Services For Adults Under 65 Mental/Dis,Third Party Payments,Services Provided By Other NHS Bodies,522,08/07/2020,2007-00522,0.00,175.00,R,AIT Mitra Limited,No
Http://opendatacommunities.org/id/metropolitan-district-council/leeds,Leeds City Council,31/07/2020,Adults and Health,Services For Adults Under 65 Mental/Dis,Third Party Payments,Services Provided By Other NHS Bodies,522,14/07/2020,2007-00523,0.00,175.00,R,AIT Mitra Limited,No
Http://opendatacommunities.org/id/metropolitan-district-council/leeds,Leeds City Council,31/07/2020,Adults and Health,Services For Adults Under 65 Mental/Dis,Third Party Payments,Services Provided By Other NHS Bodies,522,14/07/2020,2007-00524,0.00,175.00,R,AIT Mitra Limited,No
Http://opendatacommunities.org/id/metropolitan-district-council/leeds,Leeds City Council,31/07/2020,Adults and Health,Services For Adults Under 65 Mental/Dis,Third Party Payments,Services Provided By Other NHS Bodies,522,14/07/2020,2007-00525,0.00,175.00,R,AIT Mitra Limited,No
Http://opendatacommunities.org/id/metropolitan-district-council/leeds,Leeds City Council,31/07/2020,Adults and Health,Services For Adults Under 65 Mental/Dis,Third Party Payments,Services Provided By Other NHS Bodies,522,14/07/2020,2007-00526,0.00,175.00,R,AIT Mitra Limited,No
Http://opendatacommunities.org/id/metropolitan-district-council/leeds,Leeds City Council,31/07/2020,Adults and Health,Services For Adults Under 65 Mental/Dis,Third Party Payments,Services Provided By Other NHS Bodies,522,15/07/2020,2007-00527,0.00,175.00,R,AIT Mitra Limited,No
Http://opendatacommunities.org/id/metropolitan-district-council/leeds,Leeds City Council,31/07/2020,Adults and Health,Services For Adults Under 65 Mental/Dis,Third Party Payments,Services Provided By Other NHS Bodies,522,15/07/2020,2007-00528,0.00,175.00,R,AIT Mitra Limited,No
Http://opendatacommunities.org/id/metropolitan-district-council/leeds,Leeds City Council,31/07/2020,Adults and Health,Services For Adults Under 65 Mental/Dis,Third Party Payments,Services Provided By Other NHS Bodies,522,17/07/2020,2007-00529,0.00,350.00,R,AIT Mitra Limited,No
Http://opendatacommunities.org/id/metropolitan-district-council/leeds,Leeds City Council,31/07/2020,Adults and Health,Services For Adults Under 65 Mental/Dis,Third Party Payments,Services Provided By Other NHS Bodies,522,17/07/2020,2007-00530,0.00,175.00,R,AIT Mitra Limited,No
Http://opendatacommunities.org/id/metropolitan-district-council/leeds,Leeds City Council,31/07/2020,Adults and Health,Services For Adults Under 65 Mental/Dis,Third Party Payments,Services Provided By Other NHS Bodies,522,17/07/2020,2007-00531,0.00,175.00,R,AIT Mitra Limited,No
Http://opendatacommunities.org/id/metropolitan-district-council/leeds,Leeds City Council,31/07/2020,Adults and Health,Services For Adults Under 65 Mental/Dis,Third Party Payments,Services Provided By Other NHS Bodies,522,17/07/2020,2007-00532,0.00,175.00,R,AIT Mitra Limited,No
Http://opendatacommunities.org/id/metropolitan-district-council/leeds,Leeds City Council,31/07/2020,Adults and Health,Services For Older People - 65 and Over,Third Party Payments,Nursing Home,570,01/07/2020,2007-00533,0.00,343.91,R,AITCH care homes,No
Http://opendatacommunities.org/id/metropolitan-district-council/leeds,Leeds City Council as Accountable Body,31/07/2020,Social Services Pooled Budgets,Jcs For People With Learning Disabilitie,Third Party Payments,Residential,580,22/07/2020,2007-00534,0.00,6709.72,R,AITCH care homes,No
Http://opendatacommunities.org/id/metropolitan-district-council/leeds,Leeds City Council,31/07/2020,Communities and Environment,Parks and Countryside  ,Supplies and Services,Operational Materials,205,29/06/2020,2007-00535,0.00,190.00,R,Aitkens Sportsturf Limite,Yes
Http://opendatacommunities.org/id/metropolitan-district-council/leeds,Leeds City Council,31/07/2020,Resources and Housing,Leeds Building Services,Supplies and Services,Operational Furniture and Equipment,203,09/07/2020,2007-00536,0.00,540.00,R,AJM FIXINGS & POWER TOOLS LTD,No
Http://opendatacommunities.org/id/metropolitan-district-council/leeds,Leeds City Council,31/07/2020,Resources and Housing,Leeds Building Services,Supplies and Services,Clothing & Uniforms,241,09/07/2020,2007-00537,0.00,860.32,R,AJM FIXINGS & POWER TOOLS LTD,No
Http://opendatacommunities.org/id/metropolitan-district-council/leeds,Leeds City Council,31/07/2020,Resources and Housing,Leeds Building Services,Supplies and Services,Operational Materials,205,09/07/2020,2007-00538,0.00,493.00,R,AJM FIXINGS & POWER TOOLS LTD,No
Http://opendatacommunities.org/id/metropolitan-district-council/leeds,Leeds City Council,31/07/2020,Resources and Housing,Leeds Building Services,Supplies and Services,Operational Materials,205,22/07/2020,2007-00539,0.00,111.00,R,AJM FIXINGS & POWER TOOLS LTD,No
Http://opendatacommunities.org/id/metropolitan-district-council/leeds,Leeds City Council,31/07/2020,Resources and Housing,Leeds Building Services,Supplies and Services,Operational Furniture and Equipment,203,22/07/2020,2007-00540,0.00,1210.00,R,AJM FIXINGS & POWER TOOLS LTD,No
Http://opendatacommunities.org/id/metropolitan-district-council/leeds,Leeds City Council,31/07/2020,Resources and Housing,Leeds Building Services,Supplies and Services,Operational Furniture and Equipment,203,22/07/2020,2007-00541,0.00,135.00,R,AJM FIXINGS & POWER TOOLS LTD,No
Http://opendatacommunities.org/id/metropolitan-district-council/leeds,Leeds City Council,31/07/2020,Resources and Housing,Leeds Building Services,Supplies and Services,Operational Furniture and Equipment,203,22/07/2020,2007-00542,0.00,285.70,R,AJM FIXINGS & POWER TOOLS LTD,No
Http://opendatacommunities.org/id/metropolitan-district-council/leeds,Leeds City Council,31/07/2020,Resources and Housing,Leeds Building Services,Supplies and Services,Operational Furniture and Equipment,203,22/07/2020,2007-00543,0.00,75.00,R,AJM FIXINGS & POWER TOOLS LTD,No
Http://opendatacommunities.org/id/metropolitan-district-council/leeds,Leeds City Council,31/07/2020,Resources and Housing,Leeds Building Services,Supplies and Services,Operational Furniture and Equipment,203,22/07/2020,2007-00544,0.00,218.00,R,AJM FIXINGS & POWER TOOLS LTD,No
Http://opendatacommunities.org/id/metropolitan-district-council/leeds,Leeds City Council,31/07/2020,Resources and Housing,Leeds Building Services,Supplies and Services,Operational Materials,205,23/07/2020,2007-00545,0.00,686.10,R,AJM FIXINGS & POWER TOOLS LTD,No
Http://opendatacommunities.org/id/metropolitan-district-council/leeds,Leeds City Council,31/07/2020,Resources and Housing,Leeds Building Services,Supplies and Services,Operational Materials,205,23/07/2020,2007-00546,0.00,82.40,R,AJM FIXINGS & POWER TOOLS LTD,No
Http://opendatacommunities.org/id/metropolitan-district-council/leeds,Leeds City Council,31/07/2020,Resources and Housing,Leeds Building Services,Supplies and Services,STORES - CENTRAL and OTHER DEPOTS,5,23/07/2020,2007-00547,0.00,2016.00,R,AJM FIXINGS & POWER TOOLS LTD,No
Http://opendatacommunities.org/id/metropolitan-district-council/leeds,Leeds City Council,31/07/2020,Resources and Housing,Leeds Building Services,Supplies and Services,Operational Materials,205,23/07/2020,2007-00548,0.00,85.75,R,AJM FIXINGS & POWER TOOLS LTD,No
Http://opendatacommunities.org/id/metropolitan-district-council/leeds,Leeds City Council,31/07/2020,Resources and Housing,Leeds Building Services,Supplies and Services,Operational Materials,205,23/07/2020,2007-00549,0.00,665.50,R,AJM FIXINGS & POWER TOOLS LTD,No
Http://opendatacommunities.org/id/metropolitan-district-council/leeds,Leeds City Council,31/07/2020,Resources and Housing,Leeds Building Services,Supplies and Services,Operational Materials,205,23/07/2020,2007-00550,0.00,111.00,R,AJM FIXINGS & POWER TOOLS LTD,No
Http://opendatacommunities.org/id/metropolitan-district-council/leeds,Leeds City Council,31/07/2020,Resources and Housing,Leeds Building Services,Supplies and Services,Operational Materials,205,23/07/2020,2007-00551,0.00,106.82,R,AJM FIXINGS & POWER TOOLS LTD,No
Http://opendatacommunities.org/id/metropolitan-district-council/leeds,Leeds City Council,31/07/2020,Resources and Housing,Leeds Building Services,Supplies and Services,Operational Materials,205,23/07/2020,2007-00552,0.00,200.00,R,AJM FIXINGS & POWER TOOLS LTD,No
Http://opendatacommunities.org/id/metropolitan-district-council/leeds,Leeds City Council,31/07/2020,Resources and Housing,Leeds Building Services,Supplies and Services,Operational Materials,205,23/07/2020,2007-00553,0.00,26.99,R,AJM FIXINGS & POWER TOOLS LTD,No
Http://opendatacommunities.org/id/metropolitan-district-council/leeds,Leeds City Council,31/07/2020,Resources and Housing,Leeds Building Services,Supplies and Services,Operational Materials,205,23/07/2020,2007-00554,0.00,26.99,R,AJM FIXINGS & POWER TOOLS LTD,No
Http://opendatacommunities.org/id/metropolitan-district-council/leeds,Leeds City Council,31/07/2020,Resources and Housing,Leeds Building Services,Supplies and Services,Operational Materials,205,23/07/2020,2007-00555,0.00,44.40,R,AJM FIXINGS & POWER TOOLS LTD,No
Http://opendatacommunities.org/id/metropolitan-district-council/leeds,Leeds City Council,31/07/2020,Children and Families,Social Care,Third Party Payments,Placement Support,550,31/07/2020,2007-00556,0.00,14.10,R,REDACTED PERSONAL DATA,No
Http://opendatacommunities.org/id/metropolitan-district-council/leeds,Leeds City Council,31/07/2020,Resources and Housing,Strategic Housing Partnerships,Capital,CONSTRUCTION,3,14/07/2020,2007-00557,0.00,10000.00,C,AKR Construction Ltd,No
Http://opendatacommunities.org/id/metropolitan-district-council/leeds,Leeds City Council,31/07/2020,Adults and Health,Services For Older People - 65 and Over,Third Party Payments,Payments To Voluntary Organisations,561,01/07/2020,2007-00558,0.00,3000.00,R,Al Khidmat Centre,No
Http://opendatacommunities.org/id/metropolitan-district-council/leeds,Leeds City Council,31/07/2020,Insurance,Insurance,Supplies and Services,Insurance Claims,248,06/07/2020,2007-00559,0.00,75.00,R,REDACTED PERSONAL DATA,No
Http://opendatacommunities.org/id/metropolitan-district-council/leeds,Leeds City Council,31/07/2020,Children and Families,Social Care,Third Party Payments,Services Rendered By Other Organisations,511,03/07/2020,2007-00560,0.00,525.60,R,REDACTED PERSONAL DATA,No
Http://opendatacommunities.org/id/metropolitan-district-council/leeds,Leeds City Council,31/07/2020,Communities and Environment,Parks and Countryside  ,Supplies and Services,Operational Materials,205,04/06/2020,2007-00561,0.00,18.29,R,.Alanwadkins.Co.Uk,Yes
Http://opendatacommunities.org/id/metropolitan-district-council/leeds,Leeds City Council,31/07/2020,Adults and Health,Services For Older People - 65 and Over,Third Party Payments,Residential,580,22/07/2020,2007-00562,0.00,1552.60,R,Albion Court Care Home,No
Http://opendatacommunities.org/id/metropolitan-district-council/leeds,Leeds City Council,31/07/2020,Communities and Environment,Communities,Supplies and Services,Computer Software & Equipment,214,07/07/2020,2007-00563,0.00,1228.33,R,Alcium Software Ltd,No
Http://opendatacommunities.org/id/metropolitan-district-council/leeds,Leeds City Council,31/07/2020,Children and Families,Social Care  ,Supplies and Services,Food & Drink,231,01/06/2020,2007-00564,0.00,122.61,R,Aldi 40 779,Yes
Http://opendatacommunities.org/id/metropolitan-district-council/leeds,Leeds City Council,31/07/2020,Children and Families,Social Care  ,Supplies and Services,Food & Drink,231,03/06/2020,2007-00565,0.00,46.18,R,Aldi 40 779,Yes
Http://opendatacommunities.org/id/metropolitan-district-council/leeds,Leeds City Council,31/07/2020,Children and Families,Social Care  ,Supplies and Services,Food & Drink,231,08/06/2020,2007-00566,0.00,107.97,R,Aldi 40 779,Yes
Http://opendatacommunities.org/id/metropolitan-district-council/leeds,Leeds City Council,31/07/2020,Children and Families,Social Care  ,Supplies and Services,Food & Drink,231,10/06/2020,2007-00567,0.00,72.73,R,Aldi 40 779,Yes
Http://opendatacommunities.org/id/metropolitan-district-council/leeds,Leeds City Council,31/07/2020,Children and Families,Social Care  ,Supplies and Services,Food & Drink,231,15/06/2020,2007-00568,0.00,104.34,R,Aldi 40 779,Yes
Http://opendatacommunities.org/id/metropolitan-district-council/leeds,Leeds City Council,31/07/2020,Children and Families,Social Care  ,Supplies and Services,Food & Drink,231,17/06/2020,2007-00569,0.00,17.21,R,Aldi 40 779,Yes
Http://opendatacommunities.org/id/metropolitan-district-council/leeds,Leeds City Council,31/07/2020,Children and Families,Social Care  ,Supplies and Services,Food & Drink,231,17/06/2020,2007-00570,0.00,77.94,R,Aldi 40 779,Yes
Http://opendatacommunities.org/id/metropolitan-district-council/leeds,Leeds City Council,31/07/2020,Children and Families,Social Care  ,Supplies and Services,Food & Drink,231,22/06/2020,2007-00571,0.00,73.48,R,Aldi 40 779,Yes
Http://opendatacommunities.org/id/metropolitan-district-council/leeds,Leeds City Council,31/07/2020,Children and Families,Social Care  ,Supplies and Services,Food & Drink,231,24/06/2020,2007-00572,0.00,52.37,R,Aldi 40 779,Yes
Http://opendatacommunities.org/id/metropolitan-district-council/leeds,Leeds City Council,31/07/2020,Children and Families,Social Care  ,Supplies and Services,Food & Drink,231,29/06/2020,2007-00573,0.00,45.39,R,Aldi 40 779,Yes
Http://opendatacommunities.org/id/metropolitan-district-council/leeds,Leeds City Council,31/07/2020,Children and Families,Social Care  ,Supplies and Services,Food & Drink,231,18/06/2020,2007-00574,0.00,5.32,R,Aldi 49 779,Yes
Http://opendatacommunities.org/id/metropolitan-district-council/leeds,Leeds City Council,31/07/2020,Children and Families,Social Care  ,Supplies and Services,Food & Drink,231,29/06/2020,2007-00575,0.00,90.23,R,Aldi 49 779,Yes
Http://opendatacommunities.org/id/metropolitan-district-council/leeds,Leeds City Council,31/07/2020,Adults and Health,Services For Older People - 65 and Over  ,Supplies and Services,Food & Drink,231,29/05/2020,2007-00576,0.00,4.07,R,Aldi 71 779,Yes
Http://opendatacommunities.org/id/metropolitan-district-council/leeds,Leeds City Council,31/07/2020,Children and Families,Social Care  ,Supplies and Services,Food & Drink,231,08/06/2020,2007-00577,0.00,15.13,R,Aldi 71 779,Yes
Http://opendatacommunities.org/id/metropolitan-district-council/leeds,Leeds City Council,31/07/2020,Children and Families,Social Care  ,Transfer Payments,Leaving Care Allowances,634,11/06/2020,2007-00578,0.00,24.41,R,Aldi 71 779,Yes
Http://opendatacommunities.org/id/metropolitan-district-council/leeds,Leeds City Council,31/07/2020,City Development,Highways  ,Supplies and Services,Operational Furniture and Equipment,203,23/06/2020,2007-00579,0.00,21.75,R,Aldi 71 779,Yes
Http://opendatacommunities.org/id/metropolitan-district-council/leeds,Leeds City Council,31/07/2020,Children and Families,Social Care  ,Supplies and Services,Food & Drink,231,29/05/2020,2007-00580,0.00,57.93,R,Aldi 85 779,Yes
Http://opendatacommunities.org/id/metropolitan-district-council/leeds,Leeds City Council,31/07/2020,Children and Families,Social Care  ,Supplies and Services,Food & Drink,231,30/05/2020,2007-00581,0.00,71.71,R,Aldi 85 779,Yes
Http://opendatacommunities.org/id/metropolitan-district-council/leeds,Leeds City Council,31/07/2020,Children and Families,Social Care  ,Supplies and Services,Food & Drink,231,05/06/2020,2007-00582,0.00,37.88,R,Aldi 85 779,Yes
Http://opendatacommunities.org/id/metropolitan-district-council/leeds,Leeds City Council,31/07/2020,Children and Families,Social Care  ,Supplies and Services,Food & Drink,231,12/06/2020,2007-00583,0.00,50.41,R,Aldi 85 779,Yes
Http://opendatacommunities.org/id/metropolitan-district-council/leeds,Leeds City Council,31/07/2020,Children and Families,Social Care  ,Supplies and Services,Food & Drink,231,18/06/2020,2007-00584,0.00,51.09,R,Aldi 85 779,Yes
Http://opendatacommunities.org/id/metropolitan-district-council/leeds,Leeds City Council,31/07/2020,Children and Families,Social Care  ,Premises,Cleaning Maintenance & Toiletries,127,18/06/2020,2007-00585,0.00,2.33,R,Aldi 85 779,Yes
Http://opendatacommunities.org/id/metropolitan-district-council/leeds,Leeds City Council,31/07/2020,Children and Families,Social Care  ,Transfer Payments,Leaving Care Allowances,634,18/06/2020,2007-00586,0.00,13.03,R,Aldi 85 779,Yes
Http://opendatacommunities.org/id/metropolitan-district-council/leeds,Leeds City Council,31/07/2020,Children and Families,Social Care  ,Transfer Payments,Leaving Care Allowances,634,18/06/2020,2007-00587,0.00,19.74,R,Aldi 85 779,Yes
Http://opendatacommunities.org/id/metropolitan-district-council/leeds,Leeds City Council,31/07/2020,Children and Families,Social Care  ,Supplies and Services,Food & Drink,231,22/06/2020,2007-00588,0.00,97.55,R,Aldi 85 779,Yes
Http://opendatacommunities.org/id/metropolitan-district-council/leeds,Leeds City Council,31/07/2020,Children and Families,Social Care  ,Supplies and Services,Food & Drink,231,23/06/2020,2007-00589,0.00,37.34,R,Aldi 85 779,Yes
Http://opendatacommunities.org/id/metropolitan-district-council/leeds,Leeds City Council,31/07/2020,Children and Families,Social Care  ,Supplies and Services,Food & Drink,231,26/06/2020,2007-00590,0.00,36.09,R,Aldi 85 779,Yes
Http://opendatacommunities.org/id/metropolitan-district-council/leeds,Leeds City Council,31/07/2020,Children and Families,Social Care  ,Supplies and Services,Crockery  Cutlery & Utensils,221,29/06/2020,2007-00591,0.00,4.98,R,Aldi 85 779,Yes
Http://opendatacommunities.org/id/metropolitan-district-council/leeds,Leeds City Council,31/07/2020,Children and Families,Social Care  ,Supplies and Services,Food & Drink,231,02/06/2020,2007-00592,0.00,2.18,R,Aldi Stores,Yes
Http://opendatacommunities.org/id/metropolitan-district-council/leeds,Leeds City Council,31/07/2020,Children and Families,Social Care  ,Supplies and Services,Food & Drink,231,09/06/2020,2007-00593,0.00,7.20,R,Aldi Stores,Yes
Http://opendatacommunities.org/id/metropolitan-district-council/leeds,Leeds City Council,31/07/2020,Communities and Environment,Waste Management  ,Supplies and Services,Operational Furniture and Equipment,203,15/06/2020,2007-00594,0.00,4.13,R,Aldi Stores,Yes
Http://opendatacommunities.org/id/metropolitan-district-council/leeds,Leeds City Council,31/07/2020,Adults and Health,Social Services Support Services,Employees,Training & Development,70,06/07/2020,2007-00595,0.00,13.00,R,REDACTED PERSONAL DATA,No
Http://opendatacommunities.org/id/metropolitan-district-council/leeds,Leeds City Council,31/07/2020,Communities and Environment,Customer Access,Supplies and Services,Bought In Professional Services,277,29/07/2020,2007-00596,0.00,33.00,R,Alena Zueva,No
Http://opendatacommunities.org/id/metropolitan-district-council/leeds,Leeds City Council,31/07/2020,Children and Families,Social Care,Supplies and Services,General Amenity For Clients/Residents,285,17/07/2020,2007-00597,0.00,14.84,R,REDACTED PERSONAL DATA,No
Http://opendatacommunities.org/id/metropolitan-district-council/leeds,Leeds City Council,31/07/2020,Children and Families,Social Care,Transport,Public Transport Expenses,310,17/07/2020,2007-00598,0.00,4.96,R,REDACTED PERSONAL DATA,No
Http://opendatacommunities.org/id/metropolitan-district-council/leeds,Leeds City Council,31/07/2020,Children and Families,Social Care,Support Services,Legal Disbursements,411,09/07/2020,2007-00599,0.00,722.00,R,Alex Taylor,No
Http://opendatacommunities.org/id/metropolitan-district-council/leeds,Leeds City Council,31/07/2020,Children and Families,Social Care,Support Services,Legal Disbursements,411,16/07/2020,2007-00600,0.00,1688.00,R,Alex Taylor,No
Http://opendatacommunities.org/id/metropolitan-district-council/leeds,Leeds City Council,31/07/2020,Resources and Housing,Commercial Services,Supplies and Services,Other Hired and Contracted Services,265,08/07/2020,2007-00601,0.00,150.00,R,ALEX WAGG,No
Http://opendatacommunities.org/id/metropolitan-district-council/leeds,Leeds City Council,31/07/2020,Resources and Housing,Commercial Services,Supplies and Services,Other Hired and Contracted Services,265,08/07/2020,2007-00602,0.00,220.00,R,ALEX WAGG,No
Http://opendatacommunities.org/id/metropolitan-district-council/leeds,Leeds City Council,31/07/2020,Resources and Housing,Commercial Services,Transport,Vehicle Spares,345,13/07/2020,2007-00603,0.00,157.50,R,ALEX WAGG,No
Http://opendatacommunities.org/id/metropolitan-district-council/leeds,Leeds City Council,31/07/2020,Resources and Housing,Commercial Services,Supplies and Services,Other Hired and Contracted Services,265,16/07/2020,2007-00604,0.00,140.00,R,ALEX WAGG,No
Http://opendatacommunities.org/id/metropolitan-district-council/leeds,Leeds City Council,31/07/2020,Resources and Housing,Commercial Services,Supplies and Services,Other Hired and Contracted Services,265,16/07/2020,2007-00605,0.00,240.00,R,ALEX WAGG,No
Http://opendatacommunities.org/id/metropolitan-district-council/leeds,Leeds City Council,31/07/2020,Resources and Housing,Commercial Services,Supplies and Services,Other Hired and Contracted Services,265,16/07/2020,2007-00606,0.00,200.00,R,ALEX WAGG,No
Http://opendatacommunities.org/id/metropolitan-district-council/leeds,Leeds City Council,31/07/2020,Resources and Housing,Commercial Services,Supplies and Services,Other Hired and Contracted Services,265,30/07/2020,2007-00607,0.00,297.50,R,ALEX WAGG,No
Http://opendatacommunities.org/id/metropolitan-district-council/leeds,Leeds City Council,31/07/2020,Communities and Environment,Elections  Licensing and Registration,Income,Admissions  Booking Fees & Ticket Sales,933,02/07/2020,2007-00608,0.00,367.00,R,REDACTED PERSONAL DATA,No
Http://opendatacommunities.org/id/metropolitan-district-council/leeds,Leeds City Council,31/07/2020,Adults and Health,Services For Older People - 65 and Over,Third Party Payments,Nursing Home,570,01/07/2020,2007-00609,0.00,3156.09,R,ALEXandER RESIDENTIAL HOME,No
Http://opendatacommunities.org/id/metropolitan-district-council/leeds,Leeds City Council,31/07/2020,Adults and Health,Services For Older People - 65 and Over,Third Party Payments,Residential Care Dementia,571,22/07/2020,2007-00610,0.00,927.89,R,ALEXandER RESIDENTIAL HOME,No
Http://opendatacommunities.org/id/metropolitan-district-council/leeds,Leeds City Council,31/07/2020,Adults and Health,Services For Older People - 65 and Over,Third Party Payments,Residential,580,22/07/2020,2007-00611,0.00,12260.06,R,ALEXandER RESIDENTIAL HOME,No
Http://opendatacommunities.org/id/metropolitan-district-council/leeds,Leeds City Council,31/07/2020,Adults and Health,Services For Older People - 65 and Over,Third Party Payments,Nursing Home,570,01/07/2020,2007-00612,0.00,1057.20,R,ALEXandRA COURT,No
Http://opendatacommunities.org/id/metropolitan-district-council/leeds,Leeds City Council,31/07/2020,Adults and Health,Services For Older People - 65 and Over,Third Party Payments,Residential Care Dementia,571,22/07/2020,2007-00613,0.00,10607.71,R,ALEXandRA COURT,No
Http://opendatacommunities.org/id/metropolitan-district-council/leeds,Leeds City Council,31/07/2020,Adults and Health,Services For Older People - 65 and Over,Third Party Payments,Residential,580,22/07/2020,2007-00614,0.00,6204.28,R,ALEXandRA COURT,No
Http://opendatacommunities.org/id/metropolitan-district-council/leeds,Leeds City Council,31/07/2020,Children and Families,Social Care,Third Party Payments,Services Rendered By Other Organisations,511,03/07/2020,2007-00615,0.00,630.72,R,REDACTED PERSONAL DATA,No
Http://opendatacommunities.org/id/metropolitan-district-council/leeds,Leeds City Council,31/07/2020,City Development,Recreation,Income,Training & Education Courses Income,937,07/07/2020,2007-00616,0.00,5.00,R,REDACTED PERSONAL DATA,No
Http://opendatacommunities.org/id/metropolitan-district-council/leeds,Leeds City Council,31/07/2020,Adults and Health,Services For Older People - 65 and Over  ,Supplies and Services,Clothing & Uniforms,241,08/06/2020,2007-00617,0.00,26.98,R,Alexandra Website,Yes
Http://opendatacommunities.org/id/metropolitan-district-council/leeds,Leeds City Council,31/07/2020,Adults and Health,Services For Older People - 65 and Over  ,Supplies and Services,Clothing & Uniforms,241,09/06/2020,2007-00618,0.00,224.85,R,Alexandra Website,Yes
Http://opendatacommunities.org/id/metropolitan-district-council/leeds,Leeds City Council,31/07/2020,Adults and Health,Services For Older People - 65 and Over  ,Supplies and Services,Operational Materials,205,09/06/2020,2007-00619,0.00,30.58,R,Alexandra Website,Yes
Http://opendatacommunities.org/id/metropolitan-district-council/leeds,Leeds City Council,31/07/2020,Adults and Health,Services For Older People - 65 and Over  ,Supplies and Services,Operational Materials,205,25/06/2020,2007-00620,0.00,15.29,R,Alexandra Website,Yes
Http://opendatacommunities.org/id/metropolitan-district-council/leeds,Leeds City Council,31/07/2020,Adults and Health,Services For Older People - 65 and Over  ,Supplies and Services,Clothing & Uniforms,241,26/06/2020,2007-00621,0.00,26.98,R,Alexandra Website,Yes
Http://opendatacommunities.org/id/metropolitan-district-council/leeds,Leeds City Council,31/07/2020,Adults and Health,Services For Older People - 65 and Over  ,Supplies and Services,Clothing & Uniforms,241,26/06/2020,2007-00622,0.00,269.69,R,Alexandra Website,Yes
Http://opendatacommunities.org/id/metropolitan-district-council/leeds,Leeds City Council,31/07/2020,Resources and Housing,Leeds Building Services,Supplies and Services,Other Hired and Contracted Services,265,15/07/2020,2007-00623,0.00,1378.50,R,Alfred Bagnall & Sons (Leeds) Ltd,No
Http://opendatacommunities.org/id/metropolitan-district-council/leeds,Leeds City Council,31/07/2020,Resources and Housing,Corporate Property Management,Premises,Maintenance Of Buildings,101,29/07/2020,2007-00624,0.00,9998.00,R,Alfred Bagnall & Sons (Leeds) Ltd,No
Http://opendatacommunities.org/id/metropolitan-district-council/leeds,Leeds City Council,31/07/2020,Communities and Environment,Customer Access,Supplies and Services,Bought In Professional Services,277,01/07/2020,2007-00625,0.00,78.30,R,Ali Pourakaberian,No
Http://opendatacommunities.org/id/metropolitan-district-council/leeds,Leeds City Council,31/07/2020,Communities and Environment,Customer Access,Supplies and Services,Bought In Professional Services,277,08/07/2020,2007-00626,0.00,15.00,R,Ali Pourakaberian,No
Http://opendatacommunities.org/id/metropolitan-district-council/leeds,Leeds City Council,31/07/2020,Communities and Environment,Customer Access,Supplies and Services,Bought In Professional Services,277,15/07/2020,2007-00627,0.00,85.00,R,Ali Pourakaberian,No
Http://opendatacommunities.org/id/metropolitan-district-council/leeds,Leeds City Council,31/07/2020,City Development,Libraries  Arts & Heritage,Supplies and Services,Bought In Professional Services,277,15/07/2020,2007-00628,0.00,1944.80,R,Alice Mary Duggan,No
Http://opendatacommunities.org/id/metropolitan-district-council/leeds,Leeds City Council,31/07/2020,Resources and Housing,Strategic Housing Partnership & Support,Supplies and Services,Other Hired and Contracted Services,265,28/07/2020,2007-00629,0.00,1281.55,R,Alinda Property,No
Http://opendatacommunities.org/id/metropolitan-district-council/leeds,Leeds City Council,31/07/2020,Children and Families,Social Care,Third Party Payments,Services Rendered By Other Organisations,511,03/07/2020,2007-00630,0.00,788.40,R,REDACTED PERSONAL DATA,No
Http://opendatacommunities.org/id/metropolitan-district-council/leeds,Leeds City Council,31/07/2020,Communities and Environment,Customer Access  ,Supplies and Services,Schools related grant expenditure,299,19/06/2020,2007-00631,0.00,6118.22,R,Alison Handling Services,Yes
Http://opendatacommunities.org/id/metropolitan-district-council/leeds,Leeds City Council,31/07/2020,Strategic Landlord,Property and Contracts,Support Services,Legal Disbursements,411,14/07/2020,2007-00632,0.00,1811.28,R,Alison Law Solicitors,No
Http://opendatacommunities.org/id/metropolitan-district-council/leeds,Leeds City Council,31/07/2020,Strategic Landlord,Property and Contracts,Support Services,Legal Disbursements,411,31/07/2020,2007-00633,0.00,2000.00,R,Alison Law Solicitors,No
Http://opendatacommunities.org/id/metropolitan-district-council/leeds,Leeds City Council,31/07/2020,Children and Families,Social Care,Third Party Payments,Services Rendered By Voluntary Sector,505,08/07/2020,2007-00634,0.00,1200.00,R,Alison Tribe,No
Http://opendatacommunities.org/id/metropolitan-district-council/leeds,Leeds City Council,31/07/2020,Adults and Health,Services For Adults Under 65 Mental/Dis,Third Party Payments,Home Care,568,17/07/2020,2007-00635,0.00,306.00,R,All Seasons Home Care,No
Http://opendatacommunities.org/id/metropolitan-district-council/leeds,Leeds City Council,31/07/2020,Children and Families,Social Care,Third Party Payments,Services Rendered By Other Organisations,511,01/07/2020,2007-00636,0.00,570.24,R,All Stars Childcare,No
Http://opendatacommunities.org/id/metropolitan-district-council/leeds,Leeds City Council,31/07/2020,City Development,Economic Development,Supplies and Services,Grants To Businesses,243,01/07/2020,2007-00637,0.00,7555.00,R,All Stars Childcare,No
Http://opendatacommunities.org/id/metropolitan-district-council/leeds,Leeds City Council,31/07/2020,Children and Families,Social Care,Third Party Payments,Services Rendered By Other Organisations,511,03/07/2020,2007-00638,0.00,9460.80,R,All Stars Childcare,No
Http://opendatacommunities.org/id/metropolitan-district-council/leeds,Leeds City Council,31/07/2020,Communities and Environment,Parks and Countryside,Supplies and Services,Schools related grant expenditure,299,08/07/2020,2007-00639,0.00,2099.00,R,ALLANSOUND COMMUNICATIONS,No
Http://opendatacommunities.org/id/metropolitan-district-council/leeds,Leeds City Council,31/07/2020,Adults and Health,Services For Older People - 65 and Over,Third Party Payments,Nursing Home,570,01/07/2020,2007-00640,0.00,839.53,R,Allerton Avenue,No
Http://opendatacommunities.org/id/metropolitan-district-council/leeds,Leeds City Council,31/07/2020,Adults and Health,Services For Older People - 65 and Over,Third Party Payments,Nursing Care Dementia,574,22/07/2020,2007-00641,0.00,2320.36,R,ALLERTON PARK N H,No
Http://opendatacommunities.org/id/metropolitan-district-council/leeds,Leeds City Council,31/07/2020,Resources and Housing,Finance,Supplies and Services,Bank Charges,263,01/07/2020,2007-00642,0.00,-1.71,R,ALLIANCE & LEICESTER COMMERCIAL BANK,No
Http://opendatacommunities.org/id/metropolitan-district-council/leeds,Leeds City Council,31/07/2020,Resources and Housing,Finance,Supplies and Services,Bank Charges,263,06/07/2020,2007-00643,0.00,100.14,R,ALLIANCE & LEICESTER COMMERCIAL BANK,No
Http://opendatacommunities.org/id/metropolitan-district-council/leeds,Leeds City Council,31/07/2020,Resources and Housing,Finance,Supplies and Services,Bank Charges,263,06/07/2020,2007-00644,0.00,42.78,R,ALLIANCE & LEICESTER COMMERCIAL BANK,No
Http://opendatacommunities.org/id/metropolitan-district-council/leeds,Leeds City Council,31/07/2020,Insurance,Insurance,Supplies and Services,Insurance Claims,248,29/07/2020,2007-00645,0.00,3650.00,R,Alliance Law Solicitors,No
Http://opendatacommunities.org/id/metropolitan-district-council/leeds,Leeds City Council,31/07/2020,City Development,Highways,Capital,OTHER COSTS,7,03/07/2020,2007-00646,0.00,597.60,C,ALLIED EXPLORATION & GEOTECHNICS LTD,No
Http://opendatacommunities.org/id/metropolitan-district-council/leeds,Leeds City Council as Accountable Body,31/07/2020,Social Services Pooled Budgets,Jcs For People With Learning Disabilitie,Third Party Payments,Sheltered Accommodation,569,01/07/2020,2007-00647,0.00,1340.56,R,Allied Healthcare,No
Http://opendatacommunities.org/id/metropolitan-district-council/leeds,Leeds City Council,31/07/2020,Adults and Health,Services For Older People - 65 and Over,Third Party Payments,Home Care,568,01/07/2020,2007-00648,0.00,2445.04,R,Allied Healthcare,No
Http://opendatacommunities.org/id/metropolitan-district-council/leeds,Leeds City Council,31/07/2020,Adults and Health,Other Generic Services,Third Party Payments,Home Care,568,06/07/2020,2007-00649,0.00,2883.60,R,Allied Healthcare,No
Http://opendatacommunities.org/id/metropolitan-district-council/leeds,Leeds City Council,31/07/2020,Adults and Health,Other Generic Services,Third Party Payments,Home Care,568,07/07/2020,2007-00650,0.00,3985.20,R,Allied Healthcare,No
Http://opendatacommunities.org/id/metropolitan-district-council/leeds,Leeds City Council,31/07/2020,Adults and Health,Other Generic Services,Third Party Payments,Home Care,568,09/07/2020,2007-00651,0.00,4066.20,R,Allied Healthcare,No
Http://opendatacommunities.org/id/metropolitan-district-council/leeds,Leeds City Council,31/07/2020,Children and Families,Social Care,Third Party Payments,Services Rendered By Voluntary Sector,505,16/07/2020,2007-00652,0.00,342.00,R,Allied Healthcare,No
Http://opendatacommunities.org/id/metropolitan-district-council/leeds,Leeds City Council as Accountable Body,31/07/2020,Social Services Pooled Budgets,Jcs For People With Learning Disabilitie,Third Party Payments,Home Care,568,20/07/2020,2007-00653,0.00,15273.76,R,Allied Healthcare,No
Http://opendatacommunities.org/id/metropolitan-district-council/leeds,Leeds City Council as Accountable Body,31/07/2020,Social Services Pooled Budgets,Jcs For People With Learning Disabilitie,Third Party Payments,Home Care,568,20/07/2020,2007-00654,0.00,15245.55,R,Allied Healthcare,No
Http://opendatacommunities.org/id/metropolitan-district-council/leeds,Leeds City Council,31/07/2020,Adults and Health,Services For Older People - 65 and Over,Third Party Payments,Home Care,568,22/07/2020,2007-00655,0.00,778.40,R,Allied Healthcare,No
Http://opendatacommunities.org/id/metropolitan-district-council/leeds,Leeds City Council,31/07/2020,Adults and Health,Services For Older People - 65 and Over,Third Party Payments,Home Care,568,22/07/2020,2007-00656,0.00,1611.94,R,Allied Healthcare,No
Http://opendatacommunities.org/id/metropolitan-district-council/leeds,Leeds City Council,31/07/2020,Adults and Health,Services For Older People - 65 and Over,Third Party Payments,Home Care,568,22/07/2020,2007-00657,0.00,12809.36,R,Allied Healthcare,No
Http://opendatacommunities.org/id/metropolitan-district-council/leeds,Leeds City Council,31/07/2020,Adults and Health,Services For Older People - 65 and Over,Third Party Payments,HCAIT Other,577,22/07/2020,2007-00658,0.00,16.18,R,Allied Healthcare,No
Http://opendatacommunities.org/id/metropolitan-district-council/leeds,Leeds City Council,31/07/2020,Adults and Health,Services For Older People Under 65 P/Dis,Third Party Payments,Home Care,568,22/07/2020,2007-00659,0.00,1935.92,R,Allied Healthcare,No
Http://opendatacommunities.org/id/metropolitan-district-council/leeds,Leeds City Council,31/07/2020,Adults and Health,Services For Adults Under 65 Mental/Dis,Third Party Payments,Home Care,568,22/07/2020,2007-00660,0.00,238.55,R,Allied Healthcare,No
Http://opendatacommunities.org/id/metropolitan-district-council/leeds,Leeds City Council,31/07/2020,Adults and Health,Services For Older People - 65 and Over,Third Party Payments,Home Care,568,22/07/2020,2007-00661,0.00,24876.23,R,Allied Healthcare,No
Http://opendatacommunities.org/id/metropolitan-district-council/leeds,Leeds City Council,31/07/2020,Adults and Health,Services For Older People - 65 and Over,Third Party Payments,HCAIT Other,577,22/07/2020,2007-00662,0.00,198.54,R,Allied Healthcare,No
Http://opendatacommunities.org/id/metropolitan-district-council/leeds,Leeds City Council,31/07/2020,Adults and Health,Services For Older People Under 65 P/Dis,Third Party Payments,Home Care,568,22/07/2020,2007-00663,0.00,4742.02,R,Allied Healthcare,No
Http://opendatacommunities.org/id/metropolitan-district-council/leeds,Leeds City Council,31/07/2020,Adults and Health,Other Generic Services,Third Party Payments,Home Care,568,29/07/2020,2007-00664,0.00,2916.00,R,Allied Healthcare,No
Http://opendatacommunities.org/id/metropolitan-district-council/leeds,Leeds City Council,31/07/2020,Adults and Health,Services For Adults Under 65 Mental/Dis,Third Party Payments,Home Care,568,29/07/2020,2007-00665,0.00,461.27,R,Allied Healthcare,No
Http://opendatacommunities.org/id/metropolitan-district-council/leeds,Leeds City Council,31/07/2020,Adults and Health,Services For Older People - 65 and Over,Third Party Payments,Home Care,568,29/07/2020,2007-00666,0.00,11735.41,R,Allied Healthcare,No
Http://opendatacommunities.org/id/metropolitan-district-council/leeds,Leeds City Council,31/07/2020,Adults and Health,Services For Older People Under 65 P/Dis,Third Party Payments,Home Care,568,29/07/2020,2007-00667,0.00,1183.20,R,Allied Healthcare,No
Http://opendatacommunities.org/id/metropolitan-district-council/leeds,Leeds City Council,31/07/2020,Adults and Health,Services For Older People Under 65 P/Dis,Third Party Payments,HCAIT Other,577,29/07/2020,2007-00668,0.00,104.40,R,Allied Healthcare,No
Http://opendatacommunities.org/id/metropolitan-district-council/leeds,Leeds City Council,31/07/2020,Communities and Environment,Customer Access,Supplies and Services,Printing,215,20/07/2020,2007-00669,0.00,2849.44,R,Allied Publicity Services,No
Http://opendatacommunities.org/id/metropolitan-district-council/leeds,Leeds City Council,31/07/2020,Children and Families,Social Care,Third Party Payments,Services Rendered By Other Organisations,511,03/07/2020,2007-00670,0.00,753.36,R,REDACTED PERSONAL DATA,No
Http://opendatacommunities.org/id/metropolitan-district-council/leeds,Leeds City Council,31/07/2020,Children and Families,Social Care  ,Transfer Payments,Leaving Care Allowances,634,02/06/2020,2007-00671,0.00,92.74,R,Allpay *leeds Federated H,Yes
Http://opendatacommunities.org/id/metropolitan-district-council/leeds,Leeds City Council,31/07/2020,Resources and Housing,Finance,Supplies and Services,Bank Charges,263,01/07/2020,2007-00672,0.00,3178.36,R,Allpay Limted,No
Http://opendatacommunities.org/id/metropolitan-district-council/leeds,Leeds City Council,31/07/2020,Resources and Housing,Finance,Supplies and Services,Bank Charges,263,01/07/2020,2007-00673,0.00,2717.24,R,Allpay Limted,No
Http://opendatacommunities.org/id/metropolitan-district-council/leeds,Leeds City Council,31/07/2020,Resources and Housing,Finance,Supplies and Services,Bank Charges,263,01/07/2020,2007-00674,0.00,122.52,R,Allpay Limted,No
Http://opendatacommunities.org/id/metropolitan-district-council/leeds,Leeds City Council,31/07/2020,Resources and Housing,Finance,Supplies and Services,Bank Charges,263,01/07/2020,2007-00675,0.00,4.92,R,Allpay Limted,No
Http://opendatacommunities.org/id/metropolitan-district-council/leeds,Leeds City Council,31/07/2020,Resources and Housing,Finance,Supplies and Services,Bank Charges,263,09/07/2020,2007-00676,0.00,10141.42,R,Allpay Limted,No
Http://opendatacommunities.org/id/metropolitan-district-council/leeds,Leeds City Council,31/07/2020,Strategic Landlord,Housing Management,Supplies and Services,Other Hired and Contracted Services,265,13/07/2020,2007-00677,0.00,182.55,R,Allpay Limted,No
Http://opendatacommunities.org/id/metropolitan-district-council/leeds,Leeds City Council,31/07/2020,Strategic Landlord,Housing Management,Supplies and Services,Other Hired and Contracted Services,265,13/07/2020,2007-00678,0.00,10.24,R,Allpay Limted,No
Http://opendatacommunities.org/id/metropolitan-district-council/leeds,Leeds City Council,31/07/2020,Strategic Landlord,Housing Management,Supplies and Services,Other Hired and Contracted Services,265,13/07/2020,2007-00679,0.00,0.58,R,Allpay Limted,No
Http://opendatacommunities.org/id/metropolitan-district-council/leeds,Leeds City Council,31/07/2020,Resources and Housing,Finance,Supplies and Services,Bank Charges,263,14/07/2020,2007-00680,0.00,340.94,R,Allpay Limted,No
Http://opendatacommunities.org/id/metropolitan-district-council/leeds,Leeds City Council,31/07/2020,Resources and Housing,Finance,Supplies and Services,Bank Charges,263,14/07/2020,2007-00681,0.00,3054.45,R,Allpay Limted,No
Http://opendatacommunities.org/id/metropolitan-district-council/leeds,Leeds City Council,31/07/2020,Resources and Housing,Finance,Supplies and Services,Bank Charges,263,14/07/2020,2007-00682,0.00,2636.69,R,Allpay Limted,No
Http://opendatacommunities.org/id/metropolitan-district-council/leeds,Leeds City Council,31/07/2020,Resources and Housing,Finance,Supplies and Services,Bank Charges,263,14/07/2020,2007-00683,0.00,120.62,R,Allpay Limted,No
Http://opendatacommunities.org/id/metropolitan-district-council/leeds,Leeds City Council,31/07/2020,Resources and Housing,Finance,Supplies and Services,Bank Charges,263,14/07/2020,2007-00684,0.00,13.47,R,Allpay Limted,No
Http://opendatacommunities.org/id/metropolitan-district-council/leeds,Leeds City Council,31/07/2020,Adults and Health,Services For Older People Under 65 P/Dis,Supplies and Services,Operational Materials,205,31/07/2020,2007-00685,0.00,105.99,R,Allpay Limted,No
Http://opendatacommunities.org/id/metropolitan-district-council/leeds,Leeds City Council,31/07/2020,Children and Families,Social Care  ,Supplies and Services,Operational Furniture and Equipment,203,15/06/2020,2007-00686,0.00,19.97,R,Allsorts Discount Stor,Yes
Http://opendatacommunities.org/id/metropolitan-district-council/leeds,Leeds City Council,31/07/2020,Children and Families,Social Care  ,Supplies and Services,Operational Furniture and Equipment,203,08/06/2020,2007-00687,0.00,6.63,R,Allsorts Discount Store,Yes
Http://opendatacommunities.org/id/metropolitan-district-council/leeds,Leeds City Council,31/07/2020,Resources and Housing,Commercial Services,Transport,Tyres,322,07/07/2020,2007-00688,0.00,684.69,R,Allstar Business Solutions Ltd,No
Http://opendatacommunities.org/id/metropolitan-district-council/leeds,Leeds City Council,31/07/2020,City Development,Highways,Transport,Fuel (Non LCC Supplies),321,07/07/2020,2007-00689,0.00,9.78,R,Allstar Business Solutions Ltd,No
Http://opendatacommunities.org/id/metropolitan-district-council/leeds,Leeds City Council,31/07/2020,Communities and Environment,Parks and Countryside,Transport,Fuel (Non LCC Supplies),321,07/07/2020,2007-00690,0.00,258.48,R,Allstar Business Solutions Ltd,No
Http://opendatacommunities.org/id/metropolitan-district-council/leeds,Leeds City Council,31/07/2020,Children and Families,Learning,Transport,Fuel (Non LCC Supplies),321,07/07/2020,2007-00691,0.00,302.86,R,Allstar Business Solutions Ltd,No
Http://opendatacommunities.org/id/metropolitan-district-council/leeds,Leeds City Council,31/07/2020,Resources and Housing,Commercial Services,Transport,Tyres,322,08/07/2020,2007-00692,0.00,1293.82,R,Allstar Business Solutions Ltd,No
Http://opendatacommunities.org/id/metropolitan-district-council/leeds,Leeds City Council,31/07/2020,Adults and Health,Services For Older People - 65 and Over,Third Party Payments,Nursing Home,570,01/07/2020,2007-00693,0.00,184.67,R,Alne Hall,No
Http://opendatacommunities.org/id/metropolitan-district-council/leeds,Leeds City Council,31/07/2020,Adults and Health,Services For Older People Under 65 P/Dis,Third Party Payments,Residential,580,22/07/2020,2007-00694,0.00,3534.24,R,Alne Hall,No
Http://opendatacommunities.org/id/metropolitan-district-council/leeds,Leeds City Council,31/07/2020,Resources and Housing,Human Resources,Supplies and Services,Other Hired and Contracted Services,265,13/07/2020,2007-00695,0.00,99.00,R,Alphabiolaboratories Corporate Ltd,No
Http://opendatacommunities.org/id/metropolitan-district-council/leeds,Leeds City Council,31/07/2020,Children and Families,Social Care,Support Services,Legal Disbursements,411,01/07/2020,2007-00696,0.00,191.80,R,Alphabiolabs,No
Http://opendatacommunities.org/id/metropolitan-district-council/leeds,Leeds City Council,31/07/2020,Children and Families,Social Care,Support Services,Legal Disbursements,411,03/07/2020,2007-00697,0.00,33.34,R,Alphabiolabs,No
Http://opendatacommunities.org/id/metropolitan-district-council/leeds,Leeds City Council,31/07/2020,Children and Families,Social Care,Support Services,Legal Disbursements,411,03/07/2020,2007-00698,0.00,112.25,R,Alphabiolabs,No
Http://opendatacommunities.org/id/metropolitan-district-council/leeds,Leeds City Council,31/07/2020,Children and Families,Social Care,Support Services,Legal Disbursements,411,07/07/2020,2007-00699,0.00,520.00,R,Alphabiolabs,No
Http://opendatacommunities.org/id/metropolitan-district-council/leeds,Leeds City Council,31/07/2020,Children and Families,Social Care,Support Services,Legal Disbursements,411,07/07/2020,2007-00700,0.00,520.00,R,Alphabiolabs,No
Http://opendatacommunities.org/id/metropolitan-district-council/leeds,Leeds City Council,31/07/2020,Children and Families,Social Care,Support Services,Legal Disbursements,411,07/07/2020,2007-00701,0.00,133.00,R,Alphabiolabs,No
Http://opendatacommunities.org/id/metropolitan-district-council/leeds,Leeds City Council,31/07/2020,Children and Families,Social Care,Support Services,Legal Disbursements,411,08/07/2020,2007-00702,0.00,213.75,R,Alphabiolabs,No
Http://opendatacommunities.org/id/metropolitan-district-council/leeds,Leeds City Council,31/07/2020,Children and Families,Social Care,Support Services,Legal Disbursements,411,15/07/2020,2007-00703,0.00,57.00,R,Alphabiolabs,No
Http://opendatacommunities.org/id/metropolitan-district-council/leeds,Leeds City Council,31/07/2020,Children and Families,Social Care,Support Services,Legal Disbursements,411,15/07/2020,2007-00704,0.00,227.25,R,Alphabiolabs,No
Http://opendatacommunities.org/id/metropolitan-district-council/leeds,Leeds City Council,31/07/2020,Children and Families,Social Care,Support Services,Legal Disbursements,411,17/07/2020,2007-00705,0.00,128.00,R,Alphabiolabs,No
Http://opendatacommunities.org/id/metropolitan-district-council/leeds,Leeds City Council,31/07/2020,Children and Families,Social Care,Support Services,Legal Disbursements,411,17/07/2020,2007-00706,0.00,128.00,R,Alphabiolabs,No
Http://opendatacommunities.org/id/metropolitan-district-council/leeds,Leeds City Council,31/07/2020,Children and Families,Social Care,Support Services,Legal Disbursements,411,31/07/2020,2007-00707,0.00,167.25,R,Alphabiolabs,No
Http://opendatacommunities.org/id/metropolitan-district-council/leeds,Leeds City Council,31/07/2020,City Development,Economic Development,Supplies and Services,Grants To Businesses,243,09/07/2020,2007-00708,0.00,6284.00,R,Alpine Scaffolding Contractors Ltd,No
Http://opendatacommunities.org/id/metropolitan-district-council/leeds,Leeds City Council,31/07/2020,Adults and Health,Services For Older People - 65 and Over,Third Party Payments,Nursing Care Dementia,574,22/07/2020,2007-00709,0.00,6290.75,R,Alt Park Nursing Home,No
Http://opendatacommunities.org/id/metropolitan-district-council/leeds,Leeds City Council,31/07/2020,Resources and Housing,Corporate Property Management,Premises,Maintenance Of Buildings,101,09/07/2020,2007-00710,0.00,200.00,R,ALTERNATIVE DRAINAGE COMPANY LTD,No
Http://opendatacommunities.org/id/metropolitan-district-council/leeds,Leeds City Council,31/07/2020,Adults and Health,Social Services Support Services,Employees,Training & Development,70,22/07/2020,2007-00711,0.00,13.00,R,REDACTED PERSONAL DATA,No
Http://opendatacommunities.org/id/metropolitan-district-council/leeds,Leeds City Council,31/07/2020,Children and Families,Social Care,Third Party Payments,Services Rendered By Other Organisations,511,03/07/2020,2007-00712,0.00,578.16,R,REDACTED PERSONAL DATA,No
Http://opendatacommunities.org/id/metropolitan-district-council/leeds,Leeds City Council,31/07/2020,Children and Families,Social Care,Third Party Payments,Services Rendered By Other Organisations,511,01/07/2020,2007-00713,0.00,190.08,R,REDACTED PERSONAL DATA,No
Http://opendatacommunities.org/id/metropolitan-district-council/leeds,Leeds City Council,31/07/2020,Children and Families,Social Care,Third Party Payments,Services Rendered By Other Organisations,511,03/07/2020,2007-00714,0.00,31.54,R,REDACTED PERSONAL DATA,No
Http://opendatacommunities.org/id/metropolitan-district-council/leeds,Leeds City Council,31/07/2020,Children and Families,Social Care,Third Party Payments,Allowances,546,17/07/2020,2007-00715,0.00,246.44,R,REDACTED PERSONAL DATA,No
Http://opendatacommunities.org/id/metropolitan-district-council/leeds,Leeds City Council,31/07/2020,Children and Families,Social Care,Third Party Payments,Services Rendered By Other Organisations,511,01/07/2020,2007-00716,0.00,190.08,R,REDACTED PERSONAL DATA,No
Http://opendatacommunities.org/id/metropolitan-district-council/leeds,Leeds City Council,31/07/2020,Children and Families,Social Care,Third Party Payments,Services Rendered By Other Organisations,511,03/07/2020,2007-00717,0.00,1261.44,R,REDACTED PERSONAL DATA,No
Http://opendatacommunities.org/id/metropolitan-district-council/leeds,Leeds City Council,31/07/2020,Children and Families,Social Care  ,Premises,Maintenance Of Buildings,101,22/06/2020,2007-00718,0.00,346.00,R,Amari Leeds,Yes
Http://opendatacommunities.org/id/metropolitan-district-council/leeds,Leeds City Council,31/07/2020,Children and Families,Social Care,Third Party Payments,Services Rendered By Other Organisations,511,01/07/2020,2007-00719,0.00,2471.04,R,Amazing Grace Early Years Childcare,No
Http://opendatacommunities.org/id/metropolitan-district-council/leeds,Leeds City Council,31/07/2020,Children and Families,Social Care,Third Party Payments,Services Rendered By Other Organisations,511,03/07/2020,2007-00720,0.00,4415.04,R,Amazing Grace Early Years Childcare,No
Http://opendatacommunities.org/id/metropolitan-district-council/leeds,Leeds City Council,31/07/2020,City Development,Economic Development,Supplies and Services,Grants To Businesses,243,17/07/2020,2007-00721,0.00,9736.00,R,Amazing Grace Early Years Childcare,No
Http://opendatacommunities.org/id/metropolitan-district-council/leeds,Leeds City Council,31/07/2020,Adults and Health,Services For Older People - 65 and Over  ,Supplies and Services,Resaleable Materials,204,25/06/2020,2007-00722,0.00,-7.99,R,Amazon Prime,Yes
Http://opendatacommunities.org/id/metropolitan-district-council/leeds,Leeds City Council,31/07/2020,City Development,Libraries  Arts & Heritage  ,Supplies and Services,Operational Materials,205,09/06/2020,2007-00723,0.00,7.99,R,Amazon Prime*0u5r078d5 Am,Yes
Http://opendatacommunities.org/id/metropolitan-district-council/leeds,Leeds City Council,31/07/2020,Resources and Housing,Commercial Services  ,Supplies and Services,Operational Furniture and Equipment,203,27/06/2020,2007-00724,0.00,7.99,R,Amazon Prime*671al6ys5,Yes
Http://opendatacommunities.org/id/metropolitan-district-council/leeds,Leeds City Council,31/07/2020,City Development,Libraries  Arts & Heritage  ,Supplies and Services,Operational Materials,205,14/06/2020,2007-00725,0.00,7.99,R,Amazon Prime*6l3jx2mw5,Yes
Http://opendatacommunities.org/id/metropolitan-district-council/leeds,Leeds City Council,31/07/2020,Communities and Environment,Parks and Countryside  ,Supplies and Services,Operational Materials,205,23/06/2020,2007-00726,0.00,7.99,R,Amazon Prime*7g7ck4mb5,Yes
Http://opendatacommunities.org/id/metropolitan-district-council/leeds,Leeds City Council,31/07/2020,Resources and Housing,Shared Services  ,Supplies and Services,Memberships,226,05/06/2020,2007-00727,0.00,0.99,R,Amazon Prime*8p2q73c95,Yes
Http://opendatacommunities.org/id/metropolitan-district-council/leeds,Leeds City Council,31/07/2020,Adults and Health,Services For Older People - 65 and Over  ,Supplies and Services,Resaleable Materials,204,12/06/2020,2007-00728,0.00,7.99,R,Amazon Prime*cr8kr03f5,Yes
Http://opendatacommunities.org/id/metropolitan-district-council/leeds,Leeds City Council,31/07/2020,Resources and Housing,Strategy and Improvement  ,Supplies and Services,Operational Furniture and Equipment,203,13/06/2020,2007-00729,0.00,6.66,R,Amazon Prime*ek3t25bb5,Yes
Http://opendatacommunities.org/id/metropolitan-district-council/leeds,Leeds City Council,31/07/2020,Communities and Environment,Parks and Countryside  ,Supplies and Services,Operational Materials,205,27/06/2020,2007-00730,0.00,7.99,R,Amazon Prime*im19y5xs5,Yes
Http://opendatacommunities.org/id/metropolitan-district-council/leeds,Leeds City Council,31/07/2020,Resources and Housing,Strategic Housing Partnership & Support  ,Supplies and Services,Office Consumables,210,27/06/2020,2007-00731,0.00,7.99,R,Amazon Prime*iy8ci6n65,Yes
Http://opendatacommunities.org/id/metropolitan-district-council/leeds,Leeds City Council,31/07/2020,Communities and Environment,Customer Access  ,Supplies and Services,Memberships,226,08/06/2020,2007-00732,0.00,7.99,R,Amazon Prime*jw6e89te5,Yes
Http://opendatacommunities.org/id/metropolitan-district-council/leeds,Leeds City Council,31/07/2020,City Development,Libraries  Arts & Heritage  ,Supplies and Services,Memberships,226,21/06/2020,2007-00733,0.00,7.99,R,Amazon Prime*jy3t32ji5,Yes
Http://opendatacommunities.org/id/metropolitan-district-council/leeds,Leeds City Council,31/07/2020,Adults and Health,Services For Adults Under 65 Learn/Dis  ,Supplies and Services,Office Consumables,210,10/06/2020,2007-00734,0.00,7.99,R,Amazon Prime*mm6gj3bz5,Yes
Http://opendatacommunities.org/id/metropolitan-district-council/leeds,Leeds City Council,31/07/2020,Children and Families,Social Care  ,Supplies and Services,Office Consumables,210,19/06/2020,2007-00735,0.00,7.99,R,Amazon Prime*mp5725hw5 Am,Yes
Http://opendatacommunities.org/id/metropolitan-district-council/leeds,Leeds City Council,31/07/2020,Communities and Environment,Community Safety  ,Supplies and Services,Office Consumables,210,16/06/2020,2007-00736,0.00,7.99,R,Amazon Prime*ms6en4nn5,Yes
Http://opendatacommunities.org/id/metropolitan-district-council/leeds,Leeds City Council,31/07/2020,Resources and Housing,Human Resources  ,Supplies and Services,Office Consumables,210,28/06/2020,2007-00737,0.00,7.99,R,Amazon Prime*qi2ye9725 Am,Yes
Http://opendatacommunities.org/id/metropolitan-district-council/leeds,Leeds City Council,31/07/2020,Children and Families,Social Care  ,Transfer Payments,Leaving Care Grants,635,24/06/2020,2007-00738,0.00,7.99,R,Amazon Prime*th44f76k5,Yes
Http://opendatacommunities.org/id/metropolitan-district-council/leeds,Leeds City Council,31/07/2020,Resources and Housing,Commercial Services  ,Supplies and Services,Memberships,226,05/06/2020,2007-00739,0.00,7.99,R,Amazon Prime*wd42k9j45,Yes
Http://opendatacommunities.org/id/metropolitan-district-council/leeds,Leeds City Council,31/07/2020,Adults and Health,Services For Adults Under 65 Mental/Dis  ,Supplies and Services,Clothing & Uniforms,241,13/06/2020,2007-00740,0.00,7.99,R,Amazon Prime*wr2wf7l65 Am,Yes
Http://opendatacommunities.org/id/metropolitan-district-council/leeds,Leeds City Council,31/07/2020,Communities and Environment,Customer Access  ,Supplies and Services,Other Hired and Contracted Services,265,19/06/2020,2007-00741,0.00,6.66,R,Amazon Prime*xm94a8vf5 Am,Yes
Http://opendatacommunities.org/id/metropolitan-district-council/leeds,Leeds City Council,31/07/2020,Children and Families,Social Care  ,Supplies and Services,Teaching Materials,202,03/06/2020,2007-00742,0.00,7.99,R,Amazon Prime*y79y68ec5,Yes
Http://opendatacommunities.org/id/metropolitan-district-council/leeds,Leeds City Council,31/07/2020,Communities and Environment,Parks and Countryside  ,Supplies and Services,Postages,212,25/06/2020,2007-00743,0.00,7.99,R,Amazon Prime*yc1yn5ti5,Yes
Http://opendatacommunities.org/id/metropolitan-district-council/leeds,Leeds City Council,31/07/2020,Children and Families,Social Care  ,Supplies and Services,Office Consumables,210,06/06/2020,2007-00744,0.00,-177.69,R,Amazon.Co.Uk,Yes
Http://opendatacommunities.org/id/metropolitan-district-council/leeds,Leeds City Council,31/07/2020,Children and Families,Social Care  ,Supplies and Services,Telephones,213,08/06/2020,2007-00745,0.00,27.58,R,Amazon.Co.Uk*043k51335,Yes
Http://opendatacommunities.org/id/metropolitan-district-council/leeds,Leeds City Council,31/07/2020,Communities and Environment,Parks and Countryside  ,Supplies and Services,Operational Furniture and Equipment,203,23/06/2020,2007-00746,0.00,63.65,R,Amazon.Co.Uk*068n11ca5 Am,Yes
Http://opendatacommunities.org/id/metropolitan-district-council/leeds,Leeds City Council,31/07/2020,Children and Families,Social Care  ,Supplies and Services,Office Consumables,210,12/06/2020,2007-00747,0.00,19.98,R,Amazon.Co.Uk*184f506w5 Am,Yes
Http://opendatacommunities.org/id/metropolitan-district-council/leeds,Leeds City Council,31/07/2020,Children and Families,Social Care  ,Supplies and Services,Operational Furniture and Equipment,203,10/06/2020,2007-00748,0.00,46.35,R,Amazon.Co.Uk*1g6td0ev5,Yes
Http://opendatacommunities.org/id/metropolitan-district-council/leeds,Leeds City Council,31/07/2020,Communities and Environment,Customer Access  ,Supplies and Services,Publication and Promotion,267,05/06/2020,2007-00749,0.00,50.00,R,Amazon.Co.Uk*1w6ch5po5 Am,Yes
Http://opendatacommunities.org/id/metropolitan-district-council/leeds,Leeds City Council,31/07/2020,Children and Families,Social Care  ,Supplies and Services,Teaching Furniture & Equipment,207,22/06/2020,2007-00750,0.00,82.88,R,Amazon.Co.Uk*270dy7515,Yes
Http://opendatacommunities.org/id/metropolitan-district-council/leeds,Leeds City Council,31/07/2020,Communities and Environment,Customer Access  ,Supplies and Services,Schools related grant expenditure,299,26/06/2020,2007-00751,0.00,80.38,R,Amazon.Co.Uk*2i9tv1c35,Yes
Http://opendatacommunities.org/id/metropolitan-district-council/leeds,Leeds City Council,31/07/2020,Children and Families,Social Care  ,Third Party Payments,Placement Support,550,05/06/2020,2007-00752,0.00,12.95,R,Amazon.Co.Uk*2j3b32fj5 Am,Yes
Http://opendatacommunities.org/id/metropolitan-district-council/leeds,Leeds City Council,31/07/2020,Communities and Environment,Community Safety  ,Supplies and Services,Other Hired and Contracted Services,265,02/06/2020,2007-00753,0.00,41.66,R,Amazon.Co.Uk*2p0xi3sw5 Am,Yes
Http://opendatacommunities.org/id/metropolitan-district-council/leeds,Leeds City Council,31/07/2020,Strategic Landlord,Housing Management  ,Supplies and Services,Operational Furniture and Equipment,203,23/06/2020,2007-00754,0.00,29.16,R,Amazon.Co.Uk*3c03b73g5,Yes
Http://opendatacommunities.org/id/metropolitan-district-council/leeds,Leeds City Council,31/07/2020,Resources and Housing,Sustainable Energy & Air Quality  ,Supplies and Services,Schools related grant expenditure,299,11/06/2020,2007-00755,0.00,62.49,R,Amazon.Co.Uk*3n0si4po5 Am,Yes
Http://opendatacommunities.org/id/metropolitan-district-council/leeds,Leeds City Council,31/07/2020,Communities and Environment,Customer Access  ,Supplies and Services,Schools related grant expenditure,299,29/06/2020,2007-00756,0.00,10.74,R,Amazon.Co.Uk*5m8lz0a25,Yes
Http://opendatacommunities.org/id/metropolitan-district-council/leeds,Leeds City Council,31/07/2020,Resources and Housing,Commercial Services  ,Supplies and Services,Conference Meetings,253,20/06/2020,2007-00757,0.00,47.28,R,Amazon.Co.Uk*6786c1115,Yes
Http://opendatacommunities.org/id/metropolitan-district-council/leeds,Leeds City Council,31/07/2020,City Development,Highways  ,Supplies and Services,Operational Furniture and Equipment,203,16/06/2020,2007-00758,0.00,15.65,R,Amazon.Co.Uk*6y38m5c85 Am,Yes
Http://opendatacommunities.org/id/metropolitan-district-council/leeds,Leeds City Council,31/07/2020,Communities and Environment,Customer Access  ,Supplies and Services,Schools related grant expenditure,299,09/06/2020,2007-00759,0.00,19.84,R,Amazon.Co.Uk*9e9sc0si5,Yes
Http://opendatacommunities.org/id/metropolitan-district-council/leeds,Leeds City Council,31/07/2020,Children and Families,Social Care  ,Supplies and Services,Teaching Furniture & Equipment,207,02/06/2020,2007-00760,0.00,42.37,R,Amazon.Co.Uk*a151v6085,Yes
Http://opendatacommunities.org/id/metropolitan-district-council/leeds,Leeds City Council,31/07/2020,City Development,Highways  ,Supplies and Services,Operational Materials,205,25/06/2020,2007-00761,0.00,327.67,R,Amazon.Co.Uk*al0x18kr5,Yes
Http://opendatacommunities.org/id/metropolitan-district-council/leeds,Leeds City Council,31/07/2020,Children and Families,Social Care  ,Supplies and Services,Operational Furniture and Equipment,203,12/06/2020,2007-00762,0.00,78.99,R,Amazon.Co.Uk*b35g13tp5,Yes
Http://opendatacommunities.org/id/metropolitan-district-council/leeds,Leeds City Council,31/07/2020,Children and Families,Social Care  ,Supplies and Services,Office Consumables,210,12/06/2020,2007-00763,0.00,4.62,R,Amazon.Co.Uk*b35g13tp5,Yes
Http://opendatacommunities.org/id/metropolitan-district-council/leeds,Leeds City Council,31/07/2020,Children and Families,Social Care  ,Supplies and Services,Office Consumables,210,01/06/2020,2007-00764,0.00,15.10,R,Amazon.Co.Uk*b72c224p5 Am,Yes
